Workbook

Sheet RM
A1: MEXICAN STOCK EXCHANGE
A2: DECEMBER OPERATIONAL HIGHLIGHTS
A3: Mexico City, Mexico, January 8th, 2021. Bolsa Mexicana de Valores, S.A.B. de C.V. (BMV: BOLSAA), today announced its trading volumes for the month of December 2020.
D6: 2020-12-01 | E6: 2020-11-01 | F6: % | H6: 2019-12-01 | I6: % | K6: QTD '20 | L6: QTD '19 | M6: % | O6: YTD '20 | P6: YTD '19 | Q6: %
A7: Debt Listings
B9: Medium & Long Term Listings
B10: New Listings | D10: 5 | E10: 7 | F10: -0.2857142857 | H10: 10 | I10: -0.5 | K10: 22 | L10: 39 | M10: -0.4358974359 | O10: 77 | P10: 158 | Q10: -0.5126582278
B11: Amounts Raised(1) | D11: 18480 | E11: 13897 | F11: 0.3297834065 | H11: 26097 | I11: -0.291872629 | K11: 51607 | L11: 57482 | M11: -0.1022059079 | O11: 144953 | P11: 215508 | Q11: -0.3273892385
B13: Short Term Listing
B14: New Listings | D14: 75 | E14: 88 | F14: -0.1477272727 | H14: 68 | I14: 0.1029411765 | K14: 282 | L14: 278 | M14: 0.01438848921 | O14: 1160 | P14: 1187 | Q14: -0.02274641955
B15: Amounts Raised(1) | D15: 9991 | E15: 13722 | F15: -0.2718991401 | H15: 9798 | I15: 0.01969789753 | K15: 41814 | L15: 50779 | M15: -0.176549361 | O15: 162446 | P15: 217722 | Q15: -0.2538833926
A17: Development Certificates (CKDs)
B18: New Listings | D18: 0 | E18: 0 | F18: - | H18: 0 | I18: - | K18: 0 | L18: 0 | M18: - | O18: 3 | P18: 3 | Q18: 0
B19: Amounts Raised(1) | D19: 0 | E19: 0 | F19: - | H19: 0 | I19: - | K19: 0 | L19: 0 | M19: - | O19: 3498 | P19: 1194 | Q19: 1.929648241
A21: Inv. Project Certificates (CERPIS)
B22: New Listings | D22: 0 | E22: 0 | F22: - | H22: 7 | I22: -1 | K22: 0 | L22: 7 | M22: -1 | O22: 1 | P22: 11 | Q22: -0.9090909091
B23: Amounts Raised(1) | D23: 0 | E23: 0 | F23: - | H23: 1304 | I23: -1 | K23: 0 | L23: 1304 | M23: -1 | O23: 677 | P23: 5896 | Q23: -0.8851763908
A25: Equity Listings
B26: New Listings | D26: 0 | E26: 0 | F26: - | H26: 0 | I26: - | K26: 0 | L26: 0 | M26: - | O26: 0 | P26: 1 | Q26: -1
B27: Amounts Raised(1) | D27: 0 | E27: 0 | F27: - | H27: 0 | I27: - | K27: 0 | L27: 0 | M27: - | O27: 0 | P27: 2031 | Q27: -1
A29: FIBRAS
B30: New Listings | D30: 0 | E30: 0 | F30: - | H30: 0 | I30: - | K30: 0 | L30: 1 | M30: -1 | O30: 1 | P30: 1 | Q30: 0
B31: Amounts Raised(1) | D31: 0 | E31: 0 | F31: - | H31: 0 | I31: - | K31: 0 | L31: 3900 | M31: -1 | O31: 12037 | P31: 3900 | Q31: 2.086410256
A33: FIBRAS E
B34: New Listings | D34: 0 | E34: 0 | F34: - | H34: 0 | I34: - | K34: 0 | L34: 0 | M34: - | O34: 1 | P34: 0 | Q34: -
B35: Amounts Raised(1) | D35: 0 | E35: 0 | F35: - | H35: 0 | I35: - | K35: 0 | L35: 0 | M35: - | O35: 25827 | P35: 0 | Q35: -
A37: Equity Trading(3)
B39: Total Market
C40: Value Traded(1) | D40: 14884.1112 | E40: 18680.14028 | F40: -0.2032120222 | H40: 12526.00856 | I40: 0.1882565091 | K40: 15594.30644 | L40: 12368.80799 | M40: 0.2607768236 | O40: 16048.52577 | P40: 13245.35879 | Q40: 0.2116339027
C41: Transaction | D41: 367862.7727 | E41: 425966.4737 | F41: -0.1364043993 | H41: 301529.45 | I41: 0.2199895325 | K41: 372644.0794 | L41: 318916.1746 | M41: 0.1684703036 | O41: 383661.6667 | P41: 353585.8367 | Q41: 0.08505948739
C42: Volume(2) | D42: 444260.036 | E42: 537821.4801 | F42: -0.1739637548 | H42: 212183.7906 | I42: 1.093751058 | K42: 419376.4781 | L42: 214302.488 | M42: 0.9569370472 | O42: 307252.5239 | P42: 239522.0137 | Q42: 0.2827736337
B44: Local market
C45: Value Traded(1) | D45: 7299.674758 | E45: 9352.847827 | F45: -0.2195238399 | H45: 6628.064686 | I45: 0.1013282314 | K45: 7713.688449 | L45: 6991.620662 | M45: 0.1032761676 | O45: 7762.346443 | P45: 7640.108552 | Q45: 0.01599949664
C46: Transaction | D46: 353670.0455 | E46: 409950.2632 | F46: -0.1372854777 | H46: 298157.75 | I46: 0.1861843117 | K46: 358475.0159 | L46: 315439.4444 | M46: 0.1364305327 | O46: 371653.877 | P46: 350179.5657 | Q46: 0.06132371317
C47: Volume(2) | D47: 429566.3997 | E47: 523278.7336 | F47: -0.1790868382 | H47: 199007.4915 | I47: 1.158543864 | K47: 405085.4029 | L47: 203053.9411 | M47: 0.9949644937 | O47: 291915.6609 | P47: 227054.5884 | Q47: 0.2856629015
B49: Global Market
C50: Value Traded(1) | D50: 7584.436442 | E50: 9327.292456 | F50: -0.1868555126 | H50: 5897.943871 | I50: 0.2859458497 | K50: 7880.617995 | L50: 5377.187324 | M50: 0.4655650846 | O50: 8286.179325 | P50: 5605.250243 | Q50: 0.4782889196
C51: Transaction | D51: 14192.72727 | E51: 16016.21053 | F51: -0.1138523529 | H51: 3371.7 | I51: 3.209368352 | K51: 14169.06349 | L51: 3476.730159 | M51: 3.075399253 | O51: 12007.78968 | P51: 3406.270916 | Q51: 2.525201012
C52: Volume(2) | D52: 14693.63623 | E52: 14542.74642 | F52: 0.01037560594 | H52: 13176.29905 | I52: 0.1151565528 | K52: 14291.07525 | L52: 11248.54689 | M52: 0.2704819027 | O52: 15336.86296 | P52: 12467.4253 | Q52: 0.2301547907
A54: Derivatives(3)
B55: Futures Volume
C56: IPC Index | D56: 2766.090909 | E56: 1621.263158 | F56: 0.7061332058 | H56: 6163.5 | I56: -0.5512142599 | K56: 1872.063492 | L56: 2964.412698 | M56: -0.3684875614 | O56: 2344.40873 | P56: 3587.003984 | Q56: -0.3464159113
C57: Mini IPC | D57: 9.454545455 | E57: 10.05263158 | F57: -0.05949547834 | H57: 25.3 | I57: -0.6263025512 | K57: 9.80952381 | L57: 16.92063492 | M57: -0.4202626642 | O57: 17.09920635 | P57: 34.7689243 | Q57: -0.5082043321
C58: 28 Day TIIE | D58: 0 | E58: 0 | F58: - | H58: 0 | I58: - | K58: 0 | L58: 0 | M58: - | O58: 0 | P58: 0 | Q58: -
C59: 91 Day Cete | D59: 0 | E59: 0 | F59: - | H59: 0 | I59: - | K59: 0 | L59: 0 | M59: - | O59: 0 | P59: 0 | Q59: -
C60: Currencies | D60: 54152.22727 | E60: 5971.789474 | F60: 8.068006753 | H60: 30307.75 | I60: 0.7867452144 | K60: 23171.44444 | L60: 25326.09524 | M60: -0.08507631253 | O60: 23480.57937 | P60: 20300.58566 | Q60: 0.1566454171
C61: Bonds | D61: 409.0909091 | E61: 78.94736842 | F61: 4.181818182 | H61: 1430 | I61: -0.7139224412 | K61: 203.1746032 | L61: 831.1111111 | M61: -0.7555385791 | O61: 237.1071429 | P61: 1271.645418 | Q61: -0.8135430369
C62: Equities | D62: 22.72727273 | E62: 143.6842105 | F62: -0.8418248418 | H62: 735.6 | I62: -0.9691037619 | K62: 87.46031746 | L62: 279.6507937 | M62: -0.6872516744 | O62: 67.72222222 | P62: 129.2988048 | Q62: -0.4762347391
C63: Centrally Cleared Swaps | D63: 0 | E63: 0 | F63: - | H63: 0 | I63: - | K63: 0 | L63: 0 | M63: - | O63: 0 | P63: 0 | Q63: -
C64: Swaps | D64: 0 | E64: 0 | F64: - | H64: 0 | I64: - | K64: 0 | L64: 0 | M64: - | O64: 0 | P64: 0 | Q64: -
C65: Tracks | D65: 0 | E65: 0 | F65: - | H65: 0 | I65: - | K65: 0 | L65: 0 | M65: - | O65: 0 | P65: 0 | Q65: -
C66: TOTAL FUTURES | D66: 57359.59091 | E66: 7825.736842 | F66: 6.329608964 | H66: 38662.15 | I66: 0.483610997 | K66: 25343.95238 | L66: 29418.19048 | M66: -0.1384938376 | O66: 26146.91667 | P66: 25323.30279 | Q66: 0.03252395174
B67: Swaps
C68: Swaps TIIE 28 | D68: 5091.045455 | E68: 61038.84211 | F68: -0.9165933481 | H68: 22647.5 | I68: -0.7752049694 | K68: 38318.11111 | L68: 29740.47619 | M68: 0.288416193 | O68: 31695.94444 | P68: 28173.98805 | Q68: 0.1250073788
B69: TOTAL DERIVATIVES | D69: 62450.63636 | E69: 68864.57895 | F69: -0.09313848544 | H69: 61309.65 | I69: 0.01861022471 | K69: 63662.06349 | L69: 59158.66667 | M69: 0.07612404199 | O69: 57842.86111 | P69: 53497.29084 | Q69: 0.08122972596
C71: Margin Deposits(1) | D71: 39977.79446 | E71: 42225.69165 | F71: -0.05323529588 | H71: 34845.87643 | I71: 0.1472747582 | K71: 39958.71098 | L71: 32656.49821 | M71: 0.2236067296 | O71: 40168.3511 | P71: 32332.89284 | Q71: 0.2423370621
A73: Total Assets Under Custody
C74: Local Market (4) | D74: 26707.09959 | E74: 26059.07559 | F74: 0.0248674979 | H74: 25229.38679 | I74: 0.05857109481 | K74: 26128.40202 | L74: 25099.9023 | M74: 0.04097624383 | O74: 25330.46039 | P74: 24405.41191 | Q74: 0.03790341586
C75: Global Market (4) | D75: 1398.483589 | E75: 1360.057958 | F75: 0.02825293667 | H75: 1079.725541 | I75: 0.2952213651 | K75: 1370.193419 | L75: 1067.346321 | M75: 0.2837383625 | O75: 1260.270583 | P75: 1057.43231 | Q75: 0.1918215201
A77: (1) Million Pesos | D77: (3) Daily Average
A78: (2) Thousand Shares | D78: (4) Billion Pesos

Sheet Cash Equities Summary
A1: MEXICAN STOCK EXCHANGE
A2: DECEMBER OPERATIONAL HIGHLIGHTS
A4: OPERATING FIGURES OF THE STOCK MARKET
B6: Trading on the Exchange
A7: Domestic Equities | B7: 2019-01-01 | C7: 2019-02-01 | D7: 2019-03-01 | E7: 2019-04-01 | F7: 2019-05-01 | G7: 2019-06-01 | H7: 2019-07-01 | I7: 2019-08-01 | J7: 2019-09-01 | K7: 2019-10-01 | L7: 2019-11-01 | M7: 2019-12-01
A9: Number of Trades | B9: 7336560 | C9: 6535104 | D9: 7978313 | E9: 6712681 | F9: 8818952 | G9: 7522374 | H9: 7225423 | I9: 8708409 | J9: 7184570 | K9: 7365167 | L9: 6544363 | M9: 5963155
A10: Daily Average | B10: 333480 | C10: 343952.8421 | D10: 398915.65 | E10: 335634.05 | F10: 400861.4545 | G10: 376118.7 | H10: 314148.8261 | I10: 395836.7727 | J10: 359228.5 | K10: 320224.6522 | L10: 327218.15 | M10: 298157.75
A11: Value Traded(1) | B11: 187770.544 | C11: 144389.43 | D11: 161544.0861 | E11: 140801.0658 | F11: 177044.9826 | G11: 145525.7449 | H11: 142634.0038 | I11: 197044.707 | J11: 180440.5808 | K11: 173472.5053 | L11: 134438.3027 | M11: 132561.2937
A12: Daily Average(1) | B12: 8535.024725 | C12: 7599.443682 | D12: 8077.204307 | E12: 7040.053291 | F12: 8047.49921 | G12: 7276.287245 | H12: 6201.478425 | I12: 8956.577592 | J12: 9022.029038 | K12: 7542.28284 | L12: 6721.915133 | M12: 6628.064686
A13: Trading Volume(2) | B13: 5298835.419 | C13: 4185688.391 | D13: 4955951.444 | E13: 4029692.146 | F13: 5944810.604 | G13: 4208813.774 | H13: 4080583.412 | I13: 6432203.919 | J13: 5061724.288 | K13: 4821230.103 | L13: 3991018.358 | M13: 3980149.83
A14: Daily Average(2) | B14: 240856.1554 | C14: 220299.389 | D14: 247797.5722 | E14: 201484.6073 | F14: 270218.6638 | G14: 210440.6887 | H14: 177416.6701 | I14: 292372.9054 | J14: 253086.2144 | K14: 209618.7001 | L14: 199550.9179 | M14: 199007.4915
B17: Trading on the Exchange
A18: Domestic Equities | B18: 2020-01-01 | C18: 2020-02-01 | D18: 2020-03-01 | E18: 2020-04-01 | F18: 2020-05-01 | G18: 2020-06-01 | H18: 2020-07-01 | I18: 2020-08-01 | J18: 2020-09-01 | K18: 2020-10-01 | L18: 2020-11-01 | M18: 2020-12-01
A20: Number of Trades | B20: 6425766 | C20: 7048238 | D20: 11222511 | E20: 7960404 | F20: 8095911 | G20: 8908589 | H20: 8135917 | I20: 6534661 | J20: 6740854 | K20: 7014130 | L20: 7789055 | M20: 7780741
A21: Daily Average | B21: 292080.2727 | C21: 370959.8947 | D21: 534405.2857 | E21: 398020.2 | F21: 404795.55 | G21: 404935.8636 | H21: 353735.5217 | I21: 311174.3333 | J21: 320993.0476 | K21: 318824.0909 | L21: 409950.2632 | M21: 353670.0455
A22: Value Traded(1) | B22: 165575.8975 | C22: 156085.4311 | D22: 228971.0958 | E22: 148409.0673 | F22: 152442.4643 | G22: 187938.3525 | H22: 138751.3929 | I22: 129836.944 | J22: 162138.2861 | K22: 147665.4189 | L22: 177704.1087 | M22: 160592.8447
A23: Daily Average(1) | B23: 7526.177159 | C23: 8215.022688 | D23: 10903.38552 | E23: 7420.453364 | F23: 7622.123216 | G23: 8542.652385 | H23: 6032.669257 | I23: 6182.711617 | J23: 7720.870767 | K23: 6712.064495 | L23: 9352.847827 | M23: 7299.674758
A24: Trading Volume(2) | B24: 4672287.132 | C24: 4610458.997 | D24: 7887317.158 | E24: 5409981.158 | F24: 5274423.45 | G24: 6195545.256 | H24: 4414862.192 | I24: 4145318.873 | J24: 5432171.953 | K24: 6127623.647 | L24: 9942295.939 | M24: 9450460.794
A25: Daily Average(2) | B25: 212376.6878 | C25: 242655.7367 | D25: 375586.5313 | E25: 270499.0579 | F25: 263721.1725 | G25: 281615.6935 | H25: 191950.5301 | I25: 197396.1368 | J25: 258674.8549 | K25: 278528.3476 | L25: 523278.7336 | M25: 429566.3997
B28: Trading on the Global BMV Market
A29: Foreign Equities | B29: 2019-01-01 | C29: 2019-02-01 | D29: 2019-03-01 | E29: 2019-04-01 | F29: 2019-05-01 | G29: 2019-06-01 | H29: 2019-07-01 | I29: 2019-08-01 | J29: 2019-09-01 | K29: 2019-10-01 | L29: 2019-11-01 | M29: 2019-12-01
A31: Number of Trades | B31: 78110 | C31: 63356 | D31: 70224 | E31: 68394 | F31: 67272 | G31: 68533 | H31: 68083 | I31: 87521 | J31: 64447 | K31: 76873 | L31: 74727 | M31: 67434
A32: Daily Average | B32: 3550.454545 | C32: 3334.526316 | D32: 3511.2 | E32: 3419.7 | F32: 3057.818182 | G32: 3426.65 | H32: 2960.130435 | I32: 3978.227273 | J32: 3222.35 | K32: 3342.304348 | L32: 3736.35 | M32: 3371.7
A33: Value Traded(1) | B33: 124749.5066 | C33: 112859.5159 | D33: 126303.6773 | E33: 123039.1315 | F33: 100323.5232 | G33: 105985.9656 | H33: 153850.3645 | I33: 128366.8493 | J33: 92676.47546 | K33: 111804.1507 | L33: 108999.7732 | M33: 117958.8774
A34: Daily Average(1) | B34: 5670.432119 | C34: 5939.974522 | D34: 6315.183866 | E34: 6151.956574 | F34: 4560.160147 | G34: 5299.298281 | H34: 6689.146283 | I34: 5834.856787 | J34: 4633.823773 | K34: 4861.050032 | L34: 5449.988662 | M34: 5897.943871
A35: Trading Volume(2) | B35: 201120.735 | C35: 212738.643 | D35: 215905.937 | E35: 273152.783 | F35: 186748.934 | G35: 192520.121 | H35: 747101.807 | I35: 210206.019 | J35: 181170.318 | K35: 226585.213 | L35: 218547.26 | M35: 263525.981
A36: Daily Average(2) | B36: 9141.851591 | C36: 11196.77068 | D36: 10795.29685 | E36: 13657.63915 | F36: 8488.587909 | G36: 9626.00605 | H36: 32482.68726 | I36: 9554.819045 | J36: 9058.5159 | K36: 9851.531 | L36: 10927.363 | M36: 13176.29905
B39: Trading on the Global BMV Market
A40: Foreign Equities | B40: 2020-01-01 | C40: 2020-02-01 | D40: 2020-03-01 | E40: 2020-04-01 | F40: 2020-05-01 | G40: 2020-06-01 | H40: 2020-07-01 | I40: 2020-08-01 | J40: 2020-09-01 | K40: 2020-10-01 | L40: 2020-11-01 | M40: 2020-12-01
A42: Number of Trades | B42: 105762 | C42: 121314 | D42: 252523 | E42: 246861 | F42: 226457 | G42: 308997 | H42: 281591 | I42: 290208 | J42: 299599 | K42: 276103 | L42: 304308 | M42: 312240
A43: Daily Average | B43: 4807.363636 | C43: 6384.947368 | D43: 12024.90476 | E43: 12343.05 | F43: 11322.85 | G43: 14045.31818 | H43: 12243.08696 | I43: 13819.42857 | J43: 14266.61905 | K43: 12550.13636 | L43: 16016.21053 | M43: 14192.72727
A44: Value Traded(1) | B44: 131943.9819 | C44: 161751.9096 | D44: 269169.6681 | E44: 162116.4991 | F44: 192418.8214 | G44: 178363.7764 | H44: 183192.7224 | I44: 160995.0841 | J44: 151685.7932 | K44: 152402.7753 | L44: 177218.5567 | M44: 166857.6017
A45: Daily Average(1) | B45: 5997.453724 | C45: 8513.258401 | D45: 12817.60324 | E45: 8105.824954 | F45: 9620.941071 | G45: 8107.444384 | H45: 7964.900975 | I45: 7666.432576 | J45: 7223.133007 | K45: 6927.398877 | L45: 9327.292456 | M45: 7584.436442
A46: Trading Volume(2) | B46: 245890.464 | C46: 287052.895 | D46: 525102.707 | E46: 309101.88 | F46: 348820.487 | G46: 405973.759 | H46: 399604.448 | I46: 235008.264 | J46: 207996.822 | K46: 300765.562 | L46: 276312.182 | M46: 323259.997
A47: Daily Average(2) | B47: 11176.83927 | C47: 15108.04711 | D47: 25004.89081 | E47: 15455.094 | F47: 17441.02435 | G47: 18453.35268 | H47: 17374.10643 | I47: 11190.86971 | J47: 9904.610571 | K47: 13671.16191 | L47: 14542.74642 | M47: 14693.63623
B50: FIXED INCOME TRADING
A52: Fixed Income | B52: 2020-01-01 | C52: 2020-02-01 | D52: 2020-03-01 | E52: 2020-04-01 | F52: 2020-05-01 | G52: 2020-06-01 | H52: 2020-07-01 | I52: 2020-08-01 | J52: 2020-09-01 | K52: 2020-10-01 | L52: 2020-11-01 | M52: 2020-12-01
A54: Value Traded(1) | B54: 6.152024 | C54: 3.9348 | D54: 2.6530518 | E54: 30.2537 | F54: 11 | G54: 20.3256 | H54: 30.2038 | I54: 0.36 | J54: 0.1 | K54: 31 | L54: 1.0457 | M54: 3.6543
A55: Daily Average(1) | B55: 0.2796374545 | C55: 0.2070947368 | D55: 0.1263358 | E55: 1.512685 | F55: 0.55 | G55: 0.9238909091 | H55: 1.313208696 | I55: 0.01714285714 | J55: 0.004761904762 | K55: 1.409090909 | L55: 0.05503684211 | M55: 0.1740142857
A56: Trading Volume(2) | B56: 61.32 | C56: 39.301 | D56: 26.356 | E56: 302.537 | F56: 110 | G56: 203.256 | H56: 302.044 | I56: 3.6 | J56: 1 | K56: 310 | L56: 10.457 | M56: 36.543
A57: Daily Average(2) | B57: 2.787272727 | C57: 2.068473684 | D57: 1.255047619 | E57: 15.12685 | F57: 5.5 | G57: 9.238909091 | H57: 13.13234783 | I57: 0.1714285714 | J57: 0.04761904762 | K57: 14.09090909 | L57: 0.5503684211 | M57: 1.740142857
A59: (1) In Millions
A60: (2) In thousands
A61: Source: BMV

Sheet Derivatives Summary
A1: MEXICAN STOCK EXCHANGE
A2: DECEMBER OPERATIONAL HIGHLIGHTS
A4: OPERATING FIGURES FUTURES MARKET
B6: Futures Trading (MexDer)
B7: 2019-01-01 | C7: 2019-02-01 | D7: 2019-03-01 | E7: 2019-04-01 | F7: 2019-05-01 | G7: 2019-06-01 | H7: 2019-07-01 | I7: 2019-08-01 | J7: 2019-09-01 | K7: 2019-10-01 | L7: 2019-11-01 | M7: 2019-12-01
A9: Number of Trades | B9: 24258 | C9: 17660 | D9: 19933 | E9: 20072 | F9: 21485 | G9: 21189 | H9: 20036 | I9: 22564 | J9: 25147 | K9: 18697 | L9: 13114 | M9: 19621
A10: Volume (1) | B10: 234443 | C10: 305668 | D10: 774262 | E10: 281247 | F10: 511251 | G10: 980335 | H10: 185122 | I10: 426624 | J10: 812955 | K10: 195391 | L10: 891912 | M10: 778373
A11: Notional Value (2) | B11: 56035.55169 | C11: 65746.49515 | D11: 173093.3119 | E11: 63913.67386 | F11: 105284.9142 | G11: 226332.5268 | H11: 43733.75665 | I11: 94275.86488 | J11: 192925.4513 | K11: 46539.25437 | L11: 178484.0897 | M11: 177015.2914
A12: Open Interest (1) | B12: 508560 | C12: 514975 | D12: 488530 | E12: 521261 | F12: 531068 | G12: 529384 | H12: 515216 | I12: 564975 | J12: 504277 | K12: 492993 | L12: 734408 | M12: 594781
B15: Futures Trading (MexDer)
B16: 2020-01-01 | C16: 2020-02-01 | D16: 2020-03-01 | E16: 2020-04-01 | F16: 2020-05-01 | G16: 2020-06-01 | H16: 2020-07-01 | I16: 2020-08-01 | J16: 2020-09-01 | K16: 2020-10-01 | L16: 2020-11-01 | M16: 2020-12-01
A18: Number of Trades | B18: 16700 | C18: 13484 | D18: 29089 | E18: 14382 | F18: 13477 | G18: 17658 | H18: 18732 | I18: 12481 | J18: 17176 | K18: 15818 | L18: 16136 | M18: 12619
A19: Volume (1) | B19: 342015 | C19: 301589 | D19: 1103217 | E19: 223183 | F19: 167142 | G19: 1202058 | H19: 174544 | I19: 100317 | J19: 1395549 | K19: 186789 | L19: 149359 | M19: 1265225
A20: Notional Value (2) | B20: 73226.85224 | C20: 64267.1233 | D20: 257885.3116 | E20: 56327.90948 | F20: 42207.67208 | G20: 277335.3466 | H20: 44099.01126 | I20: 25592.23977 | J20: 311243.1391 | K20: 43684.0289 | L20: 35855.42143 | M20: 265960.8528
A21: Open Interest (1) | B21: 670506 | C21: 728139 | D21: 529135 | E21: 491277 | F21: 449794 | G21: 451407 | H21: 496147 | I21: 524289 | J21: 519325 | K21: 534422 | L21: 552562 | M21: 491875
B24: Swaps Trading (MexDer)
B25: 2019-01-01 | C25: 2019-02-01 | D25: 2019-03-01 | E25: 2019-04-01 | F25: 2019-05-01 | G25: 2019-06-01 | H25: 2019-07-01 | I25: 2019-08-01 | J25: 2019-09-01 | K25: 2019-10-01 | L25: 2019-11-01 | M25: 2019-12-01
A27: Number of Trades | B27: 49 | C27: 49 | D27: 35 | E27: 45 | F27: 31 | G27: 97 | H27: 184 | I27: 40 | J27: 63 | K27: 41 | L27: 29 | M27: 23
A28: Volume (1) | B28: 194600 | C28: 197730 | D28: 334670 | E28: 491125 | F28: 137216 | G28: 476021 | H28: 2577870 | I28: 176289 | J28: 612500 | K28: 848100 | L28: 572600 | M28: 452950
A29: Notional Value (2) | B29: 19460 | C29: 19773 | D29: 33467 | E29: 49112.5 | F29: 13721.6 | G29: 47602.1 | H29: 257787 | I29: 17628.9 | J29: 61250 | K29: 84810 | L29: 57260 | M29: 45295
A30: Open Interest (1) | B30: 6301842 | C30: 6234712 | D30: 6232252 | E30: 6534517 | F30: 6264203 | G30: 6247752 | H30: 5469023 | I30: 5331253 | J30: 5395653 | K30: 5988234 | L30: 6355234 | M30: 6761534
B33: Swaps Trading (MexDer)
B34: 2020-01-01 | C34: 2020-02-01 | D34: 2020-03-01 | E34: 2020-04-01 | F34: 2020-05-01 | G34: 2020-06-01 | H34: 2020-07-01 | I34: 2020-08-01 | J34: 2020-09-01 | K34: 2020-10-01 | L34: 2020-11-01 | M34: 2020-12-01
A36: Number of Trades | B36: 40 | C36: 38 | D36: 60 | E36: 25 | F36: 40 | G36: 45 | H36: 31 | I36: 34 | J36: 38 | K36: 54 | L36: 147 | M36: 18
A37: Volume (1) | B37: 503320 | C37: 522240 | D37: 1213820 | E37: 695100 | F37: 887575 | G37: 456950 | H37: 209150 | I37: 276594 | J37: 808588 | K37: 1142300 | L37: 1159738 | M37: 112003
A38: Notional Value (2) | B38: 50332 | C38: 52224 | D38: 121382 | E38: 69510 | F38: 88757.5 | G38: 45695 | H38: 20915 | I38: 27659.4 | J38: 80858.8 | K38: 114230 | L38: 115973.8 | M38: 11200.3
A39: Open Interest (1) | B39: 6675094 | C39: 6408844 | D39: 6576865 | E39: 6458765 | F39: 5940240 | G39: 5963827 | H39: 5287454 | I39: 5215452 | J39: 5786540 | K39: 6669440 | L39: 6498387 | M39: 5707850
B43: Options Trading (MexDer)
B44: 2019-01-01 | C44: 2019-02-01 | D44: 2019-03-01 | E44: 2019-04-01 | F44: 2019-05-01 | G44: 2019-06-01 | H44: 2019-07-01 | I44: 2019-08-01 | J44: 2019-09-01 | K44: 2019-10-01 | L44: 2019-11-01 | M44: 2019-12-01
A46: Number of Trades | B46: 260 | C46: 183 | D46: 226 | E46: 190 | F46: 259 | G46: 458 | H46: 376 | I46: 334 | J46: 425 | K46: 450 | L46: 422 | M46: 647
A47: Volume (1) | B47: 28058 | C47: 44736 | D47: 62220 | E47: 79924 | F47: 166457 | G47: 47213 | H47: 28993 | I47: 60242 | J47: 48574 | K47: 45387 | L47: 126405 | M47: 124866
A48: Notional Value (2) | B48: 4235.2856 | C48: 444.89 | D48: 840.5325 | E48: 848.51 | F48: 1092.7045 | G48: 1482.937 | H48: 957.89 | I48: 1839.075 | J48: 716.385 | K48: 943.63285 | L48: 801.8735 | M48: 1298.31535
A49: Open Interest (1) | B49: 97612 | C49: 123743 | D49: 99145 | E49: 162942 | F49: 210733 | G49: 39249 | H49: 67286 | I49: 89112 | J49: 39740 | K49: 71887 | L49: 152258 | M49: 17143
B53: Options Trading (MexDer)
B54: 2020-01-01 | C54: 2020-02-01 | D54: 2020-03-01 | E54: 2020-04-01 | F54: 2020-05-01 | G54: 2020-06-01 | H54: 2020-07-01 | I54: 2020-08-01 | J54: 2020-09-01 | K54: 2020-10-01 | L54: 2020-11-01 | M54: 2020-12-01
A56: Number of Trades | B56: 808 | C56: 635 | D56: 445 | E56: 164 | F56: 205 | G56: 509 | H56: 497 | I56: 376 | J56: 439 | K56: 496 | L56: 187 | M56: 384
A57: Volume (1) | B57: 29317 | C57: 70553 | D57: 29275 | E57: 235 | F57: 2114 | G57: 3029 | H57: 12491 | I57: 43860 | J57: 27158 | K57: 9223 | L57: 1598 | M57: 7570
A58: Notional Value (2) | B58: 1076.85655 | C58: 5468.77105 | D58: 4703.695 | E58: 74.418 | F58: 520.795 | G58: 740.85 | H58: 641.485 | I58: 439.2924 | J58: 2830.105 | K58: 1191.345 | L58: 279.705 | M58: 1260.06
A59: Open Interest (1) | B59: 30694 | C59: 71139 | D59: 26914 | E59: 26970 | F59: 28953 | G59: 5982 | H59: 18056 | I59: 61446 | J59: 32018 | K59: 40728 | L59: 42190 | M59: 2668
A62: (1) contracts
A63: (2) million pesos
B65: Margin Deposits
B66: 2019-01-01 | C66: 2019-02-01 | D66: 2019-03-01 | E66: 2019-04-01 | F66: 2019-05-01 | G66: 2019-06-01 | H66: 2019-07-01 | I66: 2019-08-01 | J66: 2019-09-01 | K66: 2019-10-01 | L66: 2019-11-01 | M66: 2019-12-01
A68: Margin Deposits (2) | B68: 30540.90863 | C68: 30420.11603 | D68: 32022.94833 | E68: 32078.18771 | F68: 32504.13269 | G68: 33041.645 | H68: 33747.01676 | I68: 33096.3 | J68: 32573.96432 | K68: 31266.3933 | L68: 31857.22491 | M68: 34845.87643
B73: Margin Deposits
B74: 2020-01-01 | C74: 2020-02-01 | D74: 2020-03-01 | E74: 2020-04-01 | F74: 2020-05-01 | G74: 2020-06-01 | H74: 2020-07-01 | I74: 2020-08-01 | J74: 2020-09-01 | K74: 2020-10-01 | L74: 2020-11-01 | M74: 2020-12-01
A76: Margin Deposits (2) | B76: 35114.75803 | C76: 35897.15286 | D76: 39375.70255 | E76: 40801.97732 | F76: 41684.85318 | G76: 41787.7289 | H76: 41309.40784 | I76: 44129.41325 | J76: 42043.0864 | K76: 37672.64683 | L76: 42225.69165 | M76: 39977.79446
A78: (1) contracts
B80: Open Interest OTC
B81: 2020-01-01 | C81: 2020-02-01 | D81: 2020-03-01 | E81: 2020-04-01 | F81: 2020-05-01 | G81: 2020-06-01 | H81: 2020-07-01 | I81: 2020-08-01 | J81: 2020-09-01 | K81: 2020-10-01 | L81: 2020-11-01 | M81: 2020-12-01
A83: Open Interest (1) | B83: 5801474 | C83: 5807474 | D83: 5832774 | E83: 5922924 | F83: 5929374 | G83: 5913974 | H83: 6061434 | I83: 6438996 | J83: 6541034 | K83: 7325982 | L83: 7290360 | M83: 7329290
A85: (1) contracts

Sheet Futures Data
A1: MEXICAN STOCK EXCHANGE | O1: MEXICAN STOCK EXCHANGE | AC1: MEXICAN STOCK EXCHANGE | AQ1: MEXICAN STOCK EXCHANGE | BE1: MEXICAN STOCK EXCHANGE
A2: DECEMBER OPERATIONAL HIGHLIGHTS | O2: DECEMBER OPERATIONAL HIGHLIGHTS | AC2: DECEMBER OPERATIONAL HIGHLIGHTS | AQ2: DECEMBER OPERATIONAL HIGHLIGHTS | BE2: DECEMBER OPERATIONAL HIGHLIGHTS
A4: OPERATING FIGURES FUTURES MARKET | O4: OPERATING FIGURES FUTURES MARKET | AC4: OPERATING FIGURES FUTURES MARKET | AQ4: OPERATING FIGURES FUTURES MARKET
B6: DOLLAR | F6: EURO | J6: IPC | P6: TIIE 28 | T6: CETE 91 | X6: AMERICA MOVIL (AXL) | AD6: 10 YEAR CENTRALLY CLEARED SWAP | AH6: 2 YEAR CENTRALLY CLEARED SWAP | AL6: MINI IPC | AR6: 30 YEAR BOND | AV6: DC24 | AZ6: NV42 | BF6: JN22 | BJ6: NV47
B7: Trades | C7: Volume | D7: Notional Value(1) | E7: Open Interest | F7: Trades | G7: Volume | H7: Notional Value(1) | I7: Open Interest | J7: Trades | K7: Volume | L7: Notional Value(1) | M7: Open Interest | P7: Trades | Q7: Volume | R7: Notional Value(1) | S7: Open Interest | T7: Trades | U7: Volume | V7: Notional Value(1) | W7: Open Interest | X7: Trades | Y7: Volume | Z7: Notional Value(1) | AA7: Open Interest | AD7: Trades | AE7: Volume | AF7: Notional Value(1) | AG7: Open Interest | AH7: Trades | AI7: Volume | AJ7: Notional Value(1) | AK7: Open Interest | AL7: Trades | AM7: Volume | AN7: Notional Value(1) | AO7: Open Interest | AR7: Trades | AS7: Volume | AT7: Notional Value(1) | AU7: Open Interest | AV7: Trades | AW7: Volume | AX7: Notional Value(1) | AY7: Open Interest | AZ7: Trades | BA7: Volume | BB7: Notional Value(1) | BC7: Open Interest | BF7: Trades | BG7: Volume | BH7: Notional Value(1) | BI7: Open Interest | BJ7: Trades | BK7: Volume | BL7: Notional Value(1) | BM7: Open Interest
A9: 2019-01-01 | B9: 431 | C9: 155534 | D9: 30006.03613 | E9: 372963 | F9: 0 | G9: 0 | H9: 0 | I9: 0 | J9: 22891 | K9: 53474 | L9: 23379.05944 | M9: 39995 | O9: 2019-01-01 | P9: 0 | Q9: 0 | R9: 0 | S9: 65521 | T9: 0 | U9: 0 | V9: 0 | W9: 0 | X9: 0 | Y9: 0 | Z9: 0 | AA9: 0 | AC9: 2019-01-01 | AD9: 0 | AE9: 0 | AF9: 0 | AG9: 0 | AH9: 0 | AI9: 0 | AJ9: 0 | AK9: 0 | AL9: 863 | AM9: 1432 | AN9: 125.7215 | AO9: 779 | AQ9: 2019-01-01 | AR9: 0 | AS9: 0 | AT9: 0 | AU9: 0 | AV9: 61 | AW9: 22703 | AX9: 2502.493925 | AY9: 23002 | AZ9: 0 | BA9: 0 | BB9: 0 | BC9: 0 | BE9: 2019-01-01 | BF9: 0 | BG9: 0 | BH9: 0 | BI9: 0 | BJ9: 0 | BK9: 0 | BL9: 0 | BM9: 0
A10: 2019-02-01 | B10: 448 | C10: 244025 | D10: 47028.30729 | E10: 385675 | F10: 1 | G10: 150 | H10: 33.6 | I10: 150 | J10: 16560 | K10: 37162 | L10: 16173.65552 | M10: 40917 | O10: 2019-02-01 | P10: 0 | Q10: 0 | R10: 0 | S10: 59768 | T10: 0 | U10: 0 | V10: 0 | W10: 0 | X10: 0 | Y10: 0 | Z10: 0 | AA10: 0 | AC10: 2019-02-01 | AD10: 0 | AE10: 0 | AF10: 0 | AG10: 0 | AH10: 0 | AI10: 0 | AJ10: 0 | AK10: 0 | AL10: 580 | AM10: 991 | AN10: 86.3556 | AO10: 1363 | AQ10: 2019-02-01 | AR10: 0 | AS10: 0 | AT10: 0 | AU10: 0 | AV10: 52 | AW10: 20700 | AX10: 2304.065 | AY10: 20402 | AZ10: 0 | BA10: 0 | BB10: 0 | BC10: 0 | BE10: 2019-02-01 | BF10: 0 | BG10: 0 | BH10: 0 | BI10: 0 | BJ10: 1 | BK10: 500 | BL10: 46.6375 | BM10: 500
A11: 2019-03-01 | B11: 569 | C11: 600152 | D11: 117433.2184 | E11: 382214 | F11: 0 | G11: 0 | H11: 0 | I11: 150 | J11: 18780 | K11: 118734 | L11: 50161.90883 | M11: 29846 | O11: 2019-03-01 | P11: 0 | Q11: 0 | R11: 0 | S11: 54015 | T11: 0 | U11: 0 | V11: 0 | W11: 0 | X11: 1 | Y11: 200 | Z11: 0.2818 | AA11: 200 | AC11: 2019-03-01 | AD11: 0 | AE11: 0 | AF11: 0 | AG11: 0 | AH11: 0 | AI11: 0 | AJ11: 0 | AK11: 0 | AL11: 520 | AM11: 865 | AN11: 73.786292 | AO11: 96 | AQ11: 2019-03-01 | AR11: 0 | AS11: 0 | AT11: 0 | AU11: 0 | AV11: 41 | AW11: 41202 | AX11: 4566.4091 | AY11: 16600 | AZ11: 0 | BA11: 0 | BB11: 0 | BC11: 0 | BE11: 2019-03-01 | BF11: 0 | BG11: 0 | BH11: 0 | BI11: 0 | BJ11: 0 | BK11: 0 | BL11: 0 | BM11: 0
A12: 2019-04-01 | B12: 516 | C12: 213092 | D12: 40788.95494 | E12: 406130 | F12: 0 | G12: 0 | H12: 0 | I12: 150 | J12: 19167 | K12: 47231 | L12: 21145.60284 | M12: 35983 | O12: 2019-04-01 | P12: 0 | Q12: 0 | R12: 0 | S12: 48262 | T12: 0 | U12: 0 | V12: 0 | W12: 0 | X12: 5 | Y12: 600 | Z12: 0.886 | AA12: 0 | AC12: 2019-04-01 | AD12: 0 | AE12: 0 | AF12: 0 | AG12: 0 | AH12: 0 | AI12: 0 | AJ12: 0 | AK12: 0 | AL12: 343 | AM12: 674 | AN12: 60.33974 | AO12: 177 | AQ12: 2019-04-01 | AR12: 0 | AS12: 0 | AT12: 0 | AU12: 0 | AV12: 27 | AW12: 16100 | AX12: 1767.84 | AY12: 23900 | AZ12: 0 | BA12: 0 | BB12: 0 | BC12: 0 | BE12: 2019-04-01 | BF12: 0 | BG12: 0 | BH12: 0 | BI12: 0 | BJ12: 1 | BK12: 500 | BL12: 47.35 | BM12: 500
A13: 2019-05-01 | B13: 708 | C13: 422897 | D13: 81557.62286 | E13: 414848 | F13: 1 | G13: 150 | H13: 32.37 | I13: 0 | J13: 20109 | K13: 44935 | L13: 19389.52912 | M13: 41695 | O13: 2019-05-01 | P13: 0 | Q13: 0 | R13: 0 | S13: 42509 | T13: 0 | U13: 0 | V13: 0 | W13: 0 | X13: 7 | Y13: 800 | Z13: 1.1012 | AA13: 0 | AC13: 2019-05-01 | AD13: 0 | AE13: 0 | AF13: 0 | AG13: 0 | AH13: 0 | AI13: 0 | AJ13: 0 | AK13: 0 | AL13: 597 | AM13: 1119 | AN13: 96.90598 | AO13: 407 | AQ13: 2019-05-01 | AR13: 0 | AS13: 0 | AT13: 0 | AU13: 0 | AV13: 43 | AW13: 31000 | AX13: 3427.1325 | AY13: 24200 | AZ13: 0 | BA13: 0 | BB13: 0 | BC13: 0 | BE13: 2019-05-01 | BF13: 0 | BG13: 0 | BH13: 0 | BI13: 0 | BJ13: 1 | BK13: 500 | BL13: 47.225 | BM13: 0
A14: 2019-06-01 | B14: 656 | C14: 796849 | D14: 156620.8892 | E14: 430734 | F14: 0 | G14: 0 | H14: 0 | I14: 0 | J14: 20166 | K14: 152892 | L14: 66648.0801 | M14: 39331 | O14: 2019-06-01 | P14: 0 | Q14: 0 | R14: 0 | S14: 36756 | T14: 0 | U14: 0 | V14: 0 | W14: 0 | X14: 0 | Y14: 0 | Z14: 0 | AA14: 0 | AC14: 2019-06-01 | AD14: 0 | AE14: 0 | AF14: 0 | AG14: 0 | AH14: 0 | AI14: 0 | AJ14: 0 | AK14: 0 | AL14: 293 | AM14: 453 | AN14: 39.26304 | AO14: 33 | AQ14: 2019-06-01 | AR14: 0 | AS14: 0 | AT14: 0 | AU14: 0 | AV14: 53 | AW14: 26723 | AX14: 3008.0754 | AY14: 16921 | AZ14: 0 | BA14: 0 | BB14: 0 | BC14: 0 | BE14: 2019-06-01 | BF14: 0 | BG14: 0 | BH14: 0 | BI14: 0 | BJ14: 0 | BK14: 0 | BL14: 0 | BM14: 0
A15: 2019-07-01 | B15: 519 | C15: 115658 | D15: 22273.65315 | E15: 421548 | F15: 0 | G15: 0 | H15: 0 | I15: 0 | J15: 18892 | K15: 43397 | L15: 18551.90923 | M15: 41848 | O15: 2019-07-01 | P15: 0 | Q15: 0 | R15: 0 | S15: 31200 | T15: 0 | U15: 0 | V15: 0 | W15: 0 | X15: 0 | Y15: 0 | Z15: 0 | AA15: 0 | AC15: 2019-07-01 | AD15: 0 | AE15: 0 | AF15: 0 | AG15: 0 | AH15: 0 | AI15: 0 | AJ15: 0 | AK15: 0 | AL15: 584 | AM15: 1025 | AN15: 87.90368 | AO15: 393 | AQ15: 2019-07-01 | AR15: 0 | AS15: 0 | AT15: 0 | AU15: 0 | AV15: 36 | AW15: 24133 | AX15: 2772.80235 | AY15: 14127 | AZ15: 0 | BA15: 0 | BB15: 0 | BC15: 0 | BE15: 2019-07-01 | BF15: 0 | BG15: 0 | BH15: 0 | BI15: 0 | BJ15: 0 | BK15: 0 | BL15: 0 | BM15: 0
A16: 2019-08-01 | B16: 633 | C16: 341573 | D16: 67937.75459 | E16: 470249 | F16: 0 | G16: 0 | H16: 0 | I16: 0 | J16: 21484 | K16: 58572 | L16: 23538.88471 | M16: 46481 | O16: 2019-08-01 | P16: 0 | Q16: 0 | R16: 0 | S16: 25644 | T16: 0 | U16: 0 | V16: 0 | W16: 0 | X16: 0 | Y16: 0 | Z16: 0 | AA16: 0 | AC16: 2019-08-01 | AD16: 0 | AE16: 0 | AF16: 0 | AG16: 0 | AH16: 0 | AI16: 0 | AJ16: 0 | AK16: 0 | AL16: 387 | AM16: 704 | AN16: 57.48672 | AO16: 63 | AQ16: 2019-08-01 | AR16: 0 | AS16: 0 | AT16: 0 | AU16: 0 | AV16: 39 | AW16: 23210 | AX16: 2686.5185 | AY16: 15937 | AZ16: 0 | BA16: 0 | BB16: 0 | BC16: 0 | BE16: 2019-08-01 | BF16: 0 | BG16: 0 | BH16: 0 | BI16: 0 | BJ16: 0 | BK16: 0 | BL16: 0 | BM16: 0
A17: 2019-09-01 | B17: 409 | C17: 609816 | D17: 119967.9746 | E17: 433265 | F17: 1 | G17: 7 | H17: 1.53153 | I17: 7 | J17: 24456 | K17: 157183 | L17: 68112.58068 | M17: 36536 | O17: 2019-09-01 | P17: 0 | Q17: 0 | R17: 0 | S17: 20088 | T17: 0 | U17: 0 | V17: 0 | W17: 0 | X17: 0 | Y17: 0 | Z17: 0 | AA17: 0 | AC17: 2019-09-01 | AD17: 0 | AE17: 0 | AF17: 0 | AG17: 0 | AH17: 0 | AI17: 0 | AJ17: 0 | AK17: 0 | AL17: 218 | AM17: 398 | AN17: 34.40352 | AO17: 31 | AQ17: 2019-09-01 | AR17: 0 | AS17: 0 | AT17: 0 | AU17: 0 | AV17: 40 | AW17: 36450 | AX17: 4218.725 | AY17: 13650 | AZ17: 0 | BA17: 0 | BB17: 0 | BC17: 0 | BE17: 2019-09-01 | BF17: 0 | BG17: 0 | BH17: 0 | BI17: 0 | BJ17: 2 | BK17: 1000 | BL17: =110125000/1000000 -> 110.125 | BM17: 0
A18: 2019-10-01 | B18: 415 | C18: 130981 | D18: 25617.15883 | E18: 425409 | F18: 2 | G18: 17 | H18: 3.699355 | I18: 24 | J18: 18016 | K18: 42603 | L18: 18576.01471 | M18: 36851 | O18: 2019-10-01 | P18: 0 | Q18: 0 | R18: 0 | S18: 14532 | T18: 0 | U18: 0 | V18: 0 | W18: 0 | X18: 0 | Y18: 0 | Z18: 0 | AA18: 0 | AC18: 2019-10-01 | AD18: 0 | AE18: 0 | AF18: 0 | AG18: 0 | AH18: 0 | AI18: 0 | AJ18: 0 | AK18: 0 | AL18: 213 | AM18: 300 | AN18: 26.1119 | AO18: 47 | AQ18: 2019-10-01 | AR18: 0 | AS18: 0 | AT18: 0 | AU18: 0 | AV18: 37 | AW18: 20110 | AX18: 2309.45605 | AY18: 15250 | AZ18: 0 | BA18: 0 | BB18: 0 | BC18: 0 | BE18: 2019-10-01 | BF18: 0 | BG18: 0 | BH18: 0 | BI18: 0 | BJ18: 0 | BK18: 0 | BL18: 0 | BM18: 0
A19: 2019-11-01 | B19: 411 | C19: 858391 | D19: 168196.7596 | E19: 669365 | F19: 0 | G19: 0 | H19: 0 | I19: 24 | J19: 12518 | K19: 20885 | L19: 9113.77545 | M19: 37849 | O19: 2019-11-01 | P19: 0 | Q19: 0 | R19: 0 | S19: 8976 | T19: 0 | U19: 0 | V19: 0 | W19: 0 | X19: 0 | Y19: 0 | Z19: 0 | AA19: 0 | AC19: 2019-11-01 | AD19: 0 | AE19: 0 | AF19: 0 | AG19: 0 | AH19: 0 | AI19: 0 | AJ19: 0 | AK19: 0 | AL19: 146 | AM19: 260 | AN19: 22.70966 | AO19: 38 | AQ19: 2019-11-01 | AR19: 0 | AS19: 0 | AT19: 0 | AU19: 0 | AV19: 7 | AW19: 2150 | AX19: 245.32 | AY19: 15650 | AZ19: 0 | BA19: 0 | BB19: 0 | BC19: 0 | BE19: 2019-11-01 | BF19: 0 | BG19: 0 | BH19: 0 | BI19: 0 | BJ19: 9 | BK19: 6000 | BL19: =645425000/1000000 -> 645.425 | BM19: 0
A20: 2019-12-01 | B20: 435 | C20: 606155 | D20: 118094.4843 | E20: 533976 | F20: 0 | G20: 0 | H20: 0 | I20: 0 | J20: 18907 | K20: 123270 | L20: 54981.55166 | M20: 40164 | O20: 2019-12-01 | P20: 0 | Q20: 0 | R20: 0 | S20: 3420 | T20: 0 | U20: 0 | V20: 0 | W20: 0 | X20: 3 | Y20: 10000 | Z20: 15.2825 | AA20: 0 | AC20: 2019-12-01 | AD20: 0 | AE20: 0 | AF20: 0 | AG20: 0 | AH20: 0 | AI20: 0 | AJ20: 0 | AK20: 0 | AL20: 238 | AM20: 506 | AN20: 44.484394 | AO20: 85 | AQ20: 2019-12-01 | AR20: 0 | AS20: 0 | AT20: 0 | AU20: 0 | AV20: 16 | AW20: 28600 | AX20: 3309.9025 | AY20: 14500 | AZ20: 0 | BA20: 0 | BB20: 0 | BC20: 0 | BE20: 2019-12-01 | BF20: 0 | BG20: 0 | BH20: 0 | BI20: 0 | BJ20: 6 | BK20: 5000 | BL20: 545.2375 | BM20: 0
A21: 2020-01-01 | B21: 373 | C21: 296409 | D21: 56244.92754 | E21: 605705 | F21: 2 | G21: 30 | H21: 6.33825 | I21: 0 | J21: 15993 | K21: 35874 | L21: 16246.75268 | M21: 43984 | O21: 2020-01-01 | P21: 0 | Q21: 0 | R21: 0 | S21: 3050 | T21: 0 | U21: 0 | V21: 0 | W21: 0 | X21: 2 | Y21: 600 | Z21: 0.9258 | AA21: 0 | AC21: 2020-01-01 | AD21: 0 | AE21: 0 | AF21: 0 | AG21: 0 | AH21: 0 | AI21: 0 | AJ21: 0 | AK21: 0 | AL21: 298 | AM21: 546 | AN21: 49.4451 | AO21: 287 | AQ21: 2020-01-01 | AR21: 0 | AS21: 0 | AT21: 0 | AU21: 0 | AV21: 5 | AW21: 2800 | AX21: 327.1075 | AY21: 16300 | AZ21: 0 | BA21: 0 | BB21: 0 | BC21: 0 | BE21: 2020-01-01 | BF21: 0 | BG21: 0 | BH21: 0 | BI21: 0 | BJ21: 6 | BK21: 3000 | BL21: 340.375 | BM21: 0
A22: 2020-02-01 | B22: =VLOOKUP("22020DÓLAR",'[1]Pegar datos'!$C$1406:$L$1893,3,0) -> 426 | C22: =VLOOKUP("22020DÓLAR",'[1]Pegar datos'!$C$1406:$L$1893,4,0) -> 267765 | D22: =VLOOKUP("22020DÓLAR",'[1]Pegar datos'!$C$1406:$L$1893,5,0)/1000000 -> 51022.4396 | E22: =VLOOKUP("22020DÓLAR",'[1]Pegar datos'!$C$1406:$L$1893,6,0) -> 660347 | F22: =VLOOKUP("22020EURO",'[1]Pegar datos'!$C$1406:$L$1893,3,0) -> 0 | G22: =VLOOKUP("22020EURO",'[1]Pegar datos'!$C$1406:$L$1893,4,0) -> 0 | H22: =VLOOKUP("22020EURO",'[1]Pegar datos'!$C$1406:$L$1893,5,0)/1000000 -> 0 | I22: =VLOOKUP("22020EURO",'[1]Pegar datos'!$C$1406:$L$1893,6,0) -> 0 | J22: =VLOOKUP("22020IPC",'[1]Pegar datos'!$C$1406:$L$1893,3,0) -> 12806 | K22: =VLOOKUP("22020IPC",'[1]Pegar datos'!$C$1406:$L$1893,4,0) -> 29399 | L22: =VLOOKUP("22020IPC",'[1]Pegar datos'!$C$1406:$L$1893,5,0)/1000000 -> 12936.58612 | M22: =VLOOKUP("22020IPC",'[1]Pegar datos'!$C$1406:$L$1893,6,0) -> 45097 | O22: 2020-02-01 | P22: =VLOOKUP("22020TIIE 28",'[1]Pegar datos'!$C$1406:$L$1893,3,0) -> 0 | Q22: =VLOOKUP("22020TIIE 28",'[1]Pegar datos'!$C$1406:$L$1893,4,0) -> 0 | R22: =VLOOKUP("22020TIIE 28",'[1]Pegar datos'!$C$1406:$L$1893,5,0)/1000000 -> 0 | S22: =VLOOKUP("22020TIIE 28",'[1]Pegar datos'!$C$1406:$L$1893,6,0) -> 2680 | T22: =VLOOKUP("22020CETE 91",'[1]Pegar datos'!$C$1406:$L$1893,3,0) -> 0 | U22: =VLOOKUP("22020CETE 91",'[1]Pegar datos'!$C$1406:$L$1893,4,0) -> 0 | V22: =VLOOKUP("22020CETE 91",'[1]Pegar datos'!$C$1406:$L$1893,5,0)/1000000 -> 0 | W22: =VLOOKUP("22020CETE 91",'[1]Pegar datos'!$C$1406:$L$1893,6,0) -> 0 | X22: =VLOOKUP("22020AMOVIL",'[1]Pegar datos'!$C$1406:$L$1893,3,0) -> 0 | Y22: =VLOOKUP("22020AMOVIL",'[1]Pegar datos'!$C$1406:$L$1893,4,0) -> 0 | Z22: =VLOOKUP("22020AMOVIL",'[1]Pegar datos'!$C$1406:$L$1893,5,0)/1000000 -> 0 | AA22: =VLOOKUP("22020AMOVIL",'[1]Pegar datos'!$C$1406:$L$1893,6,0) -> 0 | AC22: 2020-02-01 | AD22: =VLOOKUP("22020SWAP D10",'[1]Pegar datos'!$C$1406:$L$1893,3,0) -> 0 | AE22: =VLOOKUP("22020SWAP D10",'[1]Pegar datos'!$C$1406:$L$1893,4,0) -> 0 | AF22: =VLOOKUP("22020SWAP D10",'[1]Pegar datos'!$C$1406:$L$1893,5,0)/1000000 -> 0 | AG22: =VLOOKUP("22020SWAP D10",'[1]Pegar datos'!$C$1406:$L$1893,6,0) -> 0 | AH22: =VLOOKUP("22020SWAP D2",'[1]Pegar datos'!$C$1406:$L$1893,3,0) -> 0 | AI22: =VLOOKUP("22020SWAP D2",'[1]Pegar datos'!$C$1406:$L$1893,4,0) -> 0 | AJ22: =VLOOKUP("22020SWAP D2",'[1]Pegar datos'!$C$1406:$L$1893,5,0)/1000000 -> 0 | AK22: =VLOOKUP("22020SWAP D2",'[1]Pegar datos'!$C$1406:$L$1893,6,0) -> 0 | AL22: =VLOOKUP("22020Mini IPC",'[1]Pegar datos'!$C$1406:$L$1893,3,0) -> 233 | AM22: =VLOOKUP("22020Mini IPC",'[1]Pegar datos'!$C$1406:$L$1893,4,0) -> 345 | AN22: =VLOOKUP("22020Mini IPC",'[1]Pegar datos'!$C$1406:$L$1893,5,0)/1000000 -> 30.0182 | AO22: =VLOOKUP("22020Mini IPC",'[1]Pegar datos'!$C$1406:$L$1893,6,0) -> 315 | AQ22: 2020-02-01 | AR22: =VLOOKUP("22020M30",'[1]Pegar datos'!$C$1406:$L$1893,3,0) -> 0 | AS22: =VLOOKUP("22020M30",'[1]Pegar datos'!$C$1406:$L$1893,4,0) -> 0 | AT22: =VLOOKUP("22020M30",'[1]Pegar datos'!$C$1406:$L$1893,5,0)/1000000 -> 0 | AU22: =VLOOKUP("22020M30",'[1]Pegar datos'!$C$1406:$L$1893,6,0) -> 0 | AV22: =VLOOKUP("22020DC24",'[1]Pegar datos'!$C$1406:$L$1893,3,0) -> 4 | AW22: =VLOOKUP("22020DC24",'[1]Pegar datos'!$C$1406:$L$1893,4,0) -> 1800 | AX22: =VLOOKUP("22020DC24",'[1]Pegar datos'!$C$1406:$L$1893,5,0)/1000000 -> 211.3425 | AY22: =VLOOKUP("22020DC24",'[1]Pegar datos'!$C$1406:$L$1893,6,0) -> 17200 | AZ22: =VLOOKUP("22020NV42",'[1]Pegar datos'!$C$1406:$L$1893,3,0) -> 0 | BA22: =VLOOKUP("22020NV42",'[1]Pegar datos'!$C$1406:$L$1893,4,0) -> 0 | BB22: =VLOOKUP("22020NV42",'[1]Pegar datos'!$C$1406:$L$1893,5,0)/1000000 -> 0 | BC22: =VLOOKUP("22020NV42",'[1]Pegar datos'!$C$1406:$L$1893,6,0) -> 0 | BE22: 2020-02-01 | BF22: =VLOOKUP("22020JN22",'[1]Pegar datos'!$C$1406:$L$1893,3,0) -> 0 | BG22: =VLOOKUP("22020JN22",'[1]Pegar datos'!$C$1406:$L$1893,4,0) -> 0 | BH22: =VLOOKUP("22020JN22",'[1]Pegar datos'!$C$1406:$L$1893,5,0)/1000000 -> 0 | BI22: =VLOOKUP("22020JN22",'[1]Pegar datos'!$C$1406:$L$1893,6,0) -> 0 | BJ22: =VLOOKUP("22020NV47",'[1]Pegar datos'!$C$1406:$L$1893,3,0) -> 1 | BK22: =VLOOKUP("22020NV47",'[1]Pegar datos'!$C$1406:$L$1893,4,0) -> 500 | BL22: =VLOOKUP("22020NV47",'[1]Pegar datos'!$C$1406:$L$1893,5,0)/1000000 -> 57.9625 | BM22: =VLOOKUP("22020NV47",'[1]Pegar datos'!$C$1406:$L$1893,6,0) -> 500
A23: 2020-03-01 | B23: =VLOOKUP("32020DÓLAR",'[2]Pegar datos'!$C$1406:$L$1894,3,0) -> 906 | C23: =VLOOKUP("32020DÓLAR",'[2]Pegar datos'!$C$1406:$L$1894,4,0) -> 955577 | D23: =VLOOKUP("32020DÓLAR",'[2]Pegar datos'!$C$1406:$L$1894,5,0)/1000000 -> 209037.52 | E23: =VLOOKUP("32020DÓLAR",'[2]Pegar datos'!$C$1406:$L$1894,6,0) -> 483706 | F23: =VLOOKUP("32020EURO",'[2]Pegar datos'!$C$1406:$L$1894,3,0) -> 0 | G23: =VLOOKUP("32020EURO",'[2]Pegar datos'!$C$1406:$L$1894,4,0) -> 0 | H23: =VLOOKUP("32020EURO",'[2]Pegar datos'!$C$1406:$L$1894,5,0)/1000000 -> 0 | I23: =VLOOKUP("32020EURO",'[2]Pegar datos'!$C$1406:$L$1894,6,0) -> 0 | J23: =VLOOKUP("32020IPC",'[2]Pegar datos'!$C$1406:$L$1894,3,0) -> 27659 | K23: =VLOOKUP("32020IPC",'[2]Pegar datos'!$C$1406:$L$1894,4,0) -> 126930 | L23: =VLOOKUP("32020IPC",'[2]Pegar datos'!$C$1406:$L$1894,5,0)/1000000 -> 47507.90612 | M23: =VLOOKUP("32020IPC",'[2]Pegar datos'!$C$1406:$L$1894,6,0) -> 34526 | O23: 2020-03-01 | P23: =VLOOKUP("32020TIIE 28",'[2]Pegar datos'!$C$1406:$L$1894,3,0) -> 0 | Q23: =VLOOKUP("32020TIIE 28",'[2]Pegar datos'!$C$1406:$L$1894,4,0) -> 0 | R23: =VLOOKUP("32020TIIE 28",'[2]Pegar datos'!$C$1406:$L$1894,5,0)/1000000 -> 0 | S23: =VLOOKUP("32020TIIE 28",'[2]Pegar datos'!$C$1406:$L$1894,6,0) -> 2310 | T23: =VLOOKUP("32020CETE 91",'[2]Pegar datos'!$C$1406:$L$1894,3,0) -> 0 | U23: =VLOOKUP("32020CETE 91",'[2]Pegar datos'!$C$1406:$L$1894,4,0) -> 0 | V23: =VLOOKUP("32020CETE 91",'[2]Pegar datos'!$C$1406:$L$1894,5,0)/1000000 -> 0 | W23: =VLOOKUP("32020CETE 91",'[2]Pegar datos'!$C$1406:$L$1894,6,0) -> 0 | X23: =VLOOKUP("32020AMOVIL",'[2]Pegar datos'!$C$1406:$L$1894,3,0) -> 0 | Y23: =VLOOKUP("32020AMOVIL",'[2]Pegar datos'!$C$1406:$L$1894,4,0) -> 0 | Z23: =VLOOKUP("32020AMOVIL",'[2]Pegar datos'!$C$1406:$L$1894,5,0)/1000000 -> 0 | AA23: =VLOOKUP("32020AMOVIL",'[2]Pegar datos'!$C$1406:$L$1894,6,0) -> 0 | AC23: 2020-03-01 | AD23: =VLOOKUP("32020SWAP D10",'[2]Pegar datos'!$C$1406:$L$1894,3,0) -> 0 | AE23: =VLOOKUP("32020SWAP D10",'[2]Pegar datos'!$C$1406:$L$1894,4,0) -> 0 | AF23: =VLOOKUP("32020SWAP D10",'[2]Pegar datos'!$C$1406:$L$1894,5,0)/1000000 -> 0 | AG23: =VLOOKUP("32020SWAP D10",'[2]Pegar datos'!$C$1406:$L$1894,6,0) -> 0 | AH23: =VLOOKUP("32020SWAP D2",'[2]Pegar datos'!$C$1406:$L$1894,3,0) -> 0 | AI23: =VLOOKUP("32020SWAP D2",'[2]Pegar datos'!$C$1406:$L$1894,4,0) -> 0 | AJ23: =VLOOKUP("32020SWAP D2",'[2]Pegar datos'!$C$1406:$L$1894,5,0)/1000000 -> 0 | AK23: =VLOOKUP("32020SWAP D2",'[2]Pegar datos'!$C$1406:$L$1894,6,0) -> 0 | AL23: =VLOOKUP("32020Mini IPC",'[2]Pegar datos'!$C$1406:$L$1894,3,0) -> 455 | AM23: =VLOOKUP("32020Mini IPC",'[2]Pegar datos'!$C$1406:$L$1894,4,0) -> 950 | AN23: =VLOOKUP("32020Mini IPC",'[2]Pegar datos'!$C$1406:$L$1894,5,0)/1000000 -> 71.26332 | AO23: =VLOOKUP("32020Mini IPC",'[2]Pegar datos'!$C$1406:$L$1894,6,0) -> 53 | AQ23: 2020-03-01 | AR23: =VLOOKUP("32020M30",'[2]Pegar datos'!$C$1406:$L$1894,3,0) -> 0 | AS23: =VLOOKUP("32020M30",'[2]Pegar datos'!$C$1406:$L$1894,4,0) -> 0 | AT23: =VLOOKUP("32020M30",'[2]Pegar datos'!$C$1406:$L$1894,5,0)/1000000 -> 0 | AU23: =VLOOKUP("32020M30",'[2]Pegar datos'!$C$1406:$L$1894,6,0) -> 0 | AV23: =VLOOKUP("32020DC24",'[2]Pegar datos'!$C$1406:$L$1894,3,0) -> 3 | AW23: =VLOOKUP("32020DC24",'[2]Pegar datos'!$C$1406:$L$1894,4,0) -> 11000 | AX23: =VLOOKUP("32020DC24",'[2]Pegar datos'!$C$1406:$L$1894,5,0)/1000000 -> 1240.775 | AY23: =VLOOKUP("32020DC24",'[2]Pegar datos'!$C$1406:$L$1894,6,0) -> 5000 | AZ23: =VLOOKUP("32020NV42",'[2]Pegar datos'!$C$1406:$L$1894,3,0) -> 0 | BA23: =VLOOKUP("32020NV42",'[2]Pegar datos'!$C$1406:$L$1894,4,0) -> 0 | BB23: =VLOOKUP("32020NV42",'[2]Pegar datos'!$C$1406:$L$1894,5,0)/1000000 -> 0 | BC23: =VLOOKUP("32020NV42",'[2]Pegar datos'!$C$1406:$L$1894,6,0) -> 0 | BE23: 2020-03-01 | BF23: =VLOOKUP("32020JN22",'[2]Pegar datos'!$C$1406:$L$1894,3,0) -> 0 | BG23: =VLOOKUP("32020JN22",'[2]Pegar datos'!$C$1406:$L$1894,4,0) -> 0 | BH23: =VLOOKUP("32020JN22",'[2]Pegar datos'!$C$1406:$L$1894,5,0)/1000000 -> 0 | BI23: =VLOOKUP("32020JN22",'[2]Pegar datos'!$C$1406:$L$1894,6,0) -> 0 | BJ23: =VLOOKUP("32020NV47",'[2]Pegar datos'!$C$1406:$L$1894,3,0) -> 0 | BK23: =VLOOKUP("32020NV47",'[2]Pegar datos'!$C$1406:$L$1894,4,0) -> 0 | BL23: =VLOOKUP("32020NV47",'[2]Pegar datos'!$C$1406:$L$1894,5,0)/1000000 -> 0 | BM23: =VLOOKUP("32020NV47",'[2]Pegar datos'!$C$1406:$L$1894,6,0) -> 0
A24: 2020-04-01 | B24: 681 | C24: 197228 | D24: 48067.1643 | E24: 445146 | F24: 0 | G24: 0 | H24: 0 | I24: 0 | J24: 13418 | K24: 23399 | L24: 8226.38451 | M24: 37111 | O24: 2020-04-01 | P24: 0 | Q24: 0 | R24: 0 | S24: 1940 | T24: 0 | U24: 0 | V24: 0 | W24: 0 | X24: 0 | Y24: 0 | Z24: 0 | AA24: 0 | AC24: 2020-04-01 | AD24: 0 | AE24: 0 | AF24: 0 | AG24: 0 | AH24: 0 | AI24: 0 | AJ24: 0 | AK24: 0 | AL24: 265 | AM24: 416 | AN24: 29.46602 | AO24: 80 | AQ24: 2020-04-01 | AR24: 0 | AS24: 0 | AT24: 0 | AU24: 0 | AV24: 0 | AW24: 0 | AX24: 0 | AY24: 5000 | AZ24: 0 | BA24: 0 | BB24: 0 | BC24: 0 | BE24: 2020-04-01 | BF24: =VLOOKUP("32020JN22",'[2]Pegar datos'!$C$1406:$L$1894,3,0) -> 0 | BG24: =VLOOKUP("32020JN22",'[2]Pegar datos'!$C$1406:$L$1894,4,0) -> 0 | BH24: =VLOOKUP("32020JN22",'[2]Pegar datos'!$C$1406:$L$1894,5,0)/1000000 -> 0 | BI24: =VLOOKUP("32020JN22",'[2]Pegar datos'!$C$1406:$L$1894,6,0) -> 0 | BJ24: =VLOOKUP("32020NV47",'[2]Pegar datos'!$C$1406:$L$1894,3,0) -> 0 | BK24: =VLOOKUP("32020NV47",'[2]Pegar datos'!$C$1406:$L$1894,4,0) -> 0 | BL24: =VLOOKUP("32020NV47",'[2]Pegar datos'!$C$1406:$L$1894,5,0)/1000000 -> 0 | BM24: =VLOOKUP("32020NV47",'[2]Pegar datos'!$C$1406:$L$1894,6,0) -> 0
A25: 2020-05-01 | B25: =VLOOKUP("52020DÓLAR",'[3]Pegar datos'!$C$1407:$L$1898,3,0) -> 703 | C25: =VLOOKUP("52020DÓLAR",'[3]Pegar datos'!$C$1407:$L$1898,4,0) -> 127226 | D25: =VLOOKUP("52020DÓLAR",'[3]Pegar datos'!$C$1407:$L$1898,5,0)/1000000 -> 29752.30155 | E25: =VLOOKUP("52020DÓLAR",'[3]Pegar datos'!$C$1407:$L$1898,6,0) -> 413780 | F25: =VLOOKUP("52020EURO",'[3]Pegar datos'!$C$1407:$L$1898,3,0) -> 0 | G25: =VLOOKUP("52020EURO",'[3]Pegar datos'!$C$1407:$L$1898,4,0) -> 0 | H25: =VLOOKUP("52020EURO",'[3]Pegar datos'!$C$1407:$L$1898,5,0)/1000000 -> 0 | I25: =VLOOKUP("52020EURO",'[3]Pegar datos'!$C$1407:$L$1898,6,0) -> 0 | J25: =VLOOKUP("52020IPC",'[3]Pegar datos'!$C$1407:$L$1898,3,0) -> 12587 | K25: =VLOOKUP("52020IPC",'[3]Pegar datos'!$C$1407:$L$1898,4,0) -> 32397 | L25: =VLOOKUP("52020IPC",'[3]Pegar datos'!$C$1407:$L$1898,5,0)/1000000 -> 11800.20329 | M25: =VLOOKUP("52020IPC",'[3]Pegar datos'!$C$1407:$L$1898,6,0) -> 27102 | O25: 2020-05-01 | P25: =VLOOKUP("52020TIIE 28",'[3]Pegar datos'!$C$1407:$L$1898,3,0) -> 0 | Q25: =VLOOKUP("52020TIIE 28",'[3]Pegar datos'!$C$1407:$L$1898,4,0) -> 0 | R25: =VLOOKUP("52020TIIE 28",'[3]Pegar datos'!$C$1407:$L$1898,5,0)/1000000 -> 0 | S25: =VLOOKUP("52020TIIE 28",'[3]Pegar datos'!$C$1407:$L$1898,6,0) -> 1570 | T25: =VLOOKUP("52020CETE 91",'[3]Pegar datos'!$C$1407:$L$1898,3,0) -> 0 | U25: =VLOOKUP("52020CETE 91",'[3]Pegar datos'!$C$1407:$L$1898,4,0) -> 0 | V25: =VLOOKUP("52020CETE 91",'[3]Pegar datos'!$C$1407:$L$1898,5,0)/1000000 -> 0 | W25: =VLOOKUP("52020CETE 91",'[3]Pegar datos'!$C$1407:$L$1898,6,0) -> 0 | X25: =VLOOKUP("52020AMOVIL",'[3]Pegar datos'!$C$1407:$L$1898,3,0) -> 0 | Y25: =VLOOKUP("52020AMOVIL",'[3]Pegar datos'!$C$1407:$L$1898,4,0) -> 0 | Z25: =VLOOKUP("52020AMOVIL",'[3]Pegar datos'!$C$1407:$L$1898,5,0)/1000000 -> 0 | AA25: =VLOOKUP("52020AMOVIL",'[3]Pegar datos'!$C$1407:$L$1898,6,0) -> 0 | AC25: 2020-05-01 | AD25: =VLOOKUP("52020SWAP D10",'[3]Pegar datos'!$C$1407:$L$1898,3,0) -> 0 | AE25: =VLOOKUP("52020SWAP D10",'[3]Pegar datos'!$C$1407:$L$1898,4,0) -> 0 | AF25: =VLOOKUP("52020SWAP D10",'[3]Pegar datos'!$C$1407:$L$1898,5,0)/1000000 -> 0 | AG25: =VLOOKUP("52020SWAP D10",'[3]Pegar datos'!$C$1407:$L$1898,6,0) -> 0 | AH25: =VLOOKUP("52020SWAP D2",'[3]Pegar datos'!$C$1407:$L$1898,3,0) -> 0 | AI25: =VLOOKUP("52020SWAP D2",'[3]Pegar datos'!$C$1407:$L$1898,4,0) -> 0 | AJ25: =VLOOKUP("52020SWAP D2",'[3]Pegar datos'!$C$1407:$L$1898,5,0)/1000000 -> 0 | AK25: =VLOOKUP("52020SWAP D2",'[3]Pegar datos'!$C$1407:$L$1898,6,0) -> 0 | AL25: =VLOOKUP("52020Mini IPC",'[3]Pegar datos'!$C$1407:$L$1898,3,0) -> 165 | AM25: =VLOOKUP("52020Mini IPC",'[3]Pegar datos'!$C$1407:$L$1898,4,0) -> 319 | AN25: =VLOOKUP("52020Mini IPC",'[3]Pegar datos'!$C$1407:$L$1898,5,0)/1000000 -> 23.33494 | AO25: =VLOOKUP("52020Mini IPC",'[3]Pegar datos'!$C$1407:$L$1898,6,0) -> 142 | AQ25: 2020-05-01 | AR25: =VLOOKUP("52020M30",'[3]Pegar datos'!$C$1407:$L$1898,3,0) -> 0 | AS25: =VLOOKUP("52020M30",'[3]Pegar datos'!$C$1407:$L$1898,4,0) -> 0 | AT25: =VLOOKUP("52020M30",'[3]Pegar datos'!$C$1407:$L$1898,5,0)/1000000 -> 0 | AU25: =VLOOKUP("52020M30",'[3]Pegar datos'!$C$1407:$L$1898,6,0) -> 0 | AV25: =VLOOKUP("52020DC24",'[3]Pegar datos'!$C$1407:$L$1898,3,0) -> 2 | AW25: =VLOOKUP("52020DC24",'[3]Pegar datos'!$C$1407:$L$1898,4,0) -> 800 | AX25: =VLOOKUP("52020DC24",'[3]Pegar datos'!$C$1407:$L$1898,5,0)/1000000 -> 95.6 | AY25: =VLOOKUP("52020DC24",'[3]Pegar datos'!$C$1407:$L$1898,6,0) -> 5000 | AZ25: =VLOOKUP("52020NV42",'[3]Pegar datos'!$C$1407:$L$1898,3,0) -> 4 | BA25: =VLOOKUP("52020NV42",'[3]Pegar datos'!$C$1407:$L$1898,4,0) -> 800 | BB25: =VLOOKUP("52020NV42",'[3]Pegar datos'!$C$1407:$L$1898,5,0)/1000000 -> 87.25 | BC25: =VLOOKUP("52020NV42",'[3]Pegar datos'!$C$1407:$L$1898,6,0) -> 0 | BE25: 2020-05-01 | BF25: =VLOOKUP("52020JN22",'[3]Pegar datos'!$C$1407:$L$1898,3,0) -> 0 | BG25: =VLOOKUP("52020JN22",'[3]Pegar datos'!$C$1407:$L$1898,4,0) -> 0 | BH25: =VLOOKUP("52020JN22",'[3]Pegar datos'!$C$1407:$L$1898,5,0)/1000000 -> 0 | BI25: =VLOOKUP("52020JN22",'[3]Pegar datos'!$C$1407:$L$1898,6,0) -> 0 | BJ25: =VLOOKUP("52020NV47",'[3]Pegar datos'!$C$1407:$L$1898,3,0) -> 8 | BK25: =VLOOKUP("52020NV47",'[3]Pegar datos'!$C$1407:$L$1898,4,0) -> 4000 | BL25: =VLOOKUP("52020NV47",'[3]Pegar datos'!$C$1407:$L$1898,5,0)/1000000 -> 445.3375 | BM25: =VLOOKUP("52020NV47",'[3]Pegar datos'!$C$1407:$L$1898,6,0) -> 0
A26: 2020-06-01 | B26: =VLOOKUP("62020DÓLAR",'[4]Pegar datos'!$C$1409:$L$1900,3,0) -> 774 | C26: =VLOOKUP("62020DÓLAR",'[4]Pegar datos'!$C$1409:$L$1900,4,0) -> 1096996 | D26: =VLOOKUP("62020DÓLAR",'[4]Pegar datos'!$C$1409:$L$1900,5,0)/1000000 -> 242018.8274 | E26: =VLOOKUP("62020DÓLAR",'[4]Pegar datos'!$C$1409:$L$1900,6,0) -> 415152 | F26: =VLOOKUP("62020EURO",'[4]Pegar datos'!$C$1409:$L$1900,3,0) -> 0 | G26: =VLOOKUP("62020EURO",'[4]Pegar datos'!$C$1409:$L$1900,4,0) -> 0 | H26: =VLOOKUP("62020EURO",'[4]Pegar datos'!$C$1409:$L$1900,5,0)/1000000 -> 0 | I26: =VLOOKUP("62020EURO",'[4]Pegar datos'!$C$1409:$L$1900,6,0) -> 0 | J26: =VLOOKUP("62020IPC",'[4]Pegar datos'!$C$1409:$L$1900,3,0) -> 16576 | K26: =VLOOKUP("62020IPC",'[4]Pegar datos'!$C$1409:$L$1900,4,0) -> 88584 | L26: =VLOOKUP("62020IPC",'[4]Pegar datos'!$C$1409:$L$1900,5,0)/1000000 -> 33605.34821 | M26: =VLOOKUP("62020IPC",'[4]Pegar datos'!$C$1409:$L$1900,6,0) -> 28730 | O26: 2020-06-01 | P26: =VLOOKUP("62020TIIE 28",'[4]Pegar datos'!$C$1409:$L$1900,3,0) -> 0 | Q26: =VLOOKUP("62020TIIE 28",'[4]Pegar datos'!$C$1409:$L$1900,4,0) -> 0 | R26: =VLOOKUP("62020TIIE 28",'[4]Pegar datos'!$C$1409:$L$1900,5,0)/1000000 -> 0 | S26: =VLOOKUP("62020TIIE 28",'[4]Pegar datos'!$C$1409:$L$1900,6,0) -> 1200 | T26: =VLOOKUP("62020CETE 91",'[4]Pegar datos'!$C$1409:$L$1900,3,0) -> 0 | U26: =VLOOKUP("62020CETE 91",'[4]Pegar datos'!$C$1409:$L$1900,4,0) -> 0 | V26: =VLOOKUP("62020CETE 91",'[4]Pegar datos'!$C$1409:$L$1900,5,0)/1000000 -> 0 | W26: =VLOOKUP("62020CETE 91",'[4]Pegar datos'!$C$1409:$L$1900,6,0) -> 0 | X26: =VLOOKUP("62020AMOVIL",'[4]Pegar datos'!$C$1409:$L$1900,3,0) -> 0 | Y26: =VLOOKUP("62020AMOVIL",'[4]Pegar datos'!$C$1409:$L$1900,4,0) -> 0 | Z26: =VLOOKUP("62020AMOVIL",'[4]Pegar datos'!$C$1409:$L$1900,5,0)/1000000 -> 0 | AA26: =VLOOKUP("62020AMOVIL",'[4]Pegar datos'!$C$1409:$L$1900,6,0) -> 0 | AC26: 2020-06-01 | AD26: =VLOOKUP("62020SWAP D10",'[4]Pegar datos'!$C$1409:$L$1900,3,0) -> 0 | AE26: =VLOOKUP("62020SWAP D10",'[4]Pegar datos'!$C$1409:$L$1900,4,0) -> 0 | AF26: =VLOOKUP("62020SWAP D10",'[4]Pegar datos'!$C$1409:$L$1900,5,0)/1000000 -> 0 | AG26: =VLOOKUP("62020SWAP D10",'[4]Pegar datos'!$C$1409:$L$1900,6,0) -> 0 | AH26: =VLOOKUP("62020SWAP D2",'[4]Pegar datos'!$C$1409:$L$1900,3,0) -> 0 | AI26: =VLOOKUP("62020SWAP D2",'[4]Pegar datos'!$C$1409:$L$1900,4,0) -> 0 | AJ26: =VLOOKUP("62020SWAP D2",'[4]Pegar datos'!$C$1409:$L$1900,5,0)/1000000 -> 0 | AK26: =VLOOKUP("62020SWAP D2",'[4]Pegar datos'!$C$1409:$L$1900,6,0) -> 0 | AL26: =VLOOKUP("62020Mini IPC",'[4]Pegar datos'!$C$1409:$L$1900,3,0) -> 274 | AM26: =VLOOKUP("62020Mini IPC",'[4]Pegar datos'!$C$1409:$L$1900,4,0) -> 528 | AN26: =VLOOKUP("62020Mini IPC",'[4]Pegar datos'!$C$1409:$L$1900,5,0)/1000000 -> 40.14224 | AO26: =VLOOKUP("62020Mini IPC",'[4]Pegar datos'!$C$1409:$L$1900,6,0) -> 25 | AQ26: 2020-06-01 | AR26: =VLOOKUP("62020M30",'[4]Pegar datos'!$C$1409:$L$1900,3,0) -> 0 | AS26: =VLOOKUP("62020M30",'[4]Pegar datos'!$C$1409:$L$1900,4,0) -> 0 | AT26: =VLOOKUP("62020M30",'[4]Pegar datos'!$C$1409:$L$1900,5,0)/1000000 -> 0 | AU26: =VLOOKUP("62020M30",'[4]Pegar datos'!$C$1409:$L$1900,6,0) -> 0 | AV26: =VLOOKUP("62020DC24",'[4]Pegar datos'!$C$1409:$L$1900,3,0) -> 9 | AW26: =VLOOKUP("62020DC24",'[4]Pegar datos'!$C$1409:$L$1900,4,0) -> 11700 | AX26: =VLOOKUP("62020DC24",'[4]Pegar datos'!$C$1409:$L$1900,5,0)/1000000 -> 1414.8 | AY26: =VLOOKUP("62020DC24",'[4]Pegar datos'!$C$1409:$L$1900,6,0) -> 5600 | AZ26: =VLOOKUP("62020NV42",'[4]Pegar datos'!$C$1409:$L$1900,3,0) -> 13 | BA26: =VLOOKUP("62020NV42",'[4]Pegar datos'!$C$1409:$L$1900,4,0) -> 2350 | BB26: =VLOOKUP("62020NV42",'[4]Pegar datos'!$C$1409:$L$1900,5,0)/1000000 -> 252.733125 | BC26: =VLOOKUP("62020NV42",'[4]Pegar datos'!$C$1409:$L$1900,6,0) -> 0 | BE26: 2020-06-01 | BF26: =VLOOKUP("62020JN22",'[4]Pegar datos'!$C$1409:$L$1900,3,0) -> 0 | BG26: =VLOOKUP("62020JN22",'[4]Pegar datos'!$C$1409:$L$1900,4,0) -> 0 | BH26: =VLOOKUP("62020JN22",'[4]Pegar datos'!$C$1409:$L$1900,5,0)/1000000 -> 0 | BI26: =VLOOKUP("62020JN22",'[4]Pegar datos'!$C$1409:$L$1900,6,0) -> 0 | BJ26: =VLOOKUP("62020NV47",'[4]Pegar datos'!$C$1409:$L$1900,3,0) -> 0 | BK26: =VLOOKUP("62020NV47",'[4]Pegar datos'!$C$1409:$L$1900,4,0) -> 0 | BL26: =VLOOKUP("62020NV47",'[4]Pegar datos'!$C$1409:$L$1900,5,0)/1000000 -> 0 | BM26: =VLOOKUP("62020NV47",'[4]Pegar datos'!$C$1409:$L$1900,6,0) -> 0
A27: 2020-07-01 | B27: =VLOOKUP("72020DÓLAR",'[5]Pegar datos'!$C$1409:$L$1903,3,0) -> 444 | C27: =VLOOKUP("72020DÓLAR",'[5]Pegar datos'!$C$1409:$L$1903,4,0) -> 139049 | D27: =VLOOKUP("72020DÓLAR",'[5]Pegar datos'!$C$1409:$L$1903,5,0)/1000000 -> 31534.25923 | E27: =VLOOKUP("72020DÓLAR",'[5]Pegar datos'!$C$1409:$L$1903,6,0) -> 465572 | F27: =VLOOKUP("72020EURO",'[5]Pegar datos'!$C$1409:$L$1903,3,0) -> 0 | G27: =VLOOKUP("72020EURO",'[5]Pegar datos'!$C$1409:$L$1903,4,0) -> 0 | H27: =VLOOKUP("72020EURO",'[5]Pegar datos'!$C$1409:$L$1903,5,0)/1000000 -> 0 | I27: =VLOOKUP("72020EURO",'[5]Pegar datos'!$C$1409:$L$1903,6,0) -> 0 | J27: =VLOOKUP("72020IPC",'[5]Pegar datos'!$C$1409:$L$1903,3,0) -> 18093 | K27: =VLOOKUP("72020IPC",'[5]Pegar datos'!$C$1409:$L$1903,4,0) -> 33033 | L27: =VLOOKUP("72020IPC",'[5]Pegar datos'!$C$1409:$L$1903,5,0)/1000000 -> 12301.53461 | M27: =VLOOKUP("72020IPC",'[5]Pegar datos'!$C$1409:$L$1903,6,0) -> 23325 | O27: 2020-07-01 | P27: =VLOOKUP("72020TIIE 28",'[5]Pegar datos'!$C$1409:$L$1903,3,0) -> 0 | Q27: =VLOOKUP("72020TIIE 28",'[5]Pegar datos'!$C$1409:$L$1903,4,0) -> 0 | R27: =VLOOKUP("72020TIIE 28",'[5]Pegar datos'!$C$1409:$L$1903,5,0)/1000000 -> 0 | S27: =VLOOKUP("72020TIIE 28",'[5]Pegar datos'!$C$1409:$L$1903,6,0) -> 1000 | T27: =VLOOKUP("72020CETE 91",'[5]Pegar datos'!$C$1409:$L$1903,3,0) -> 0 | U27: =VLOOKUP("72020CETE 91",'[5]Pegar datos'!$C$1409:$L$1903,4,0) -> 0 | V27: =VLOOKUP("72020CETE 91",'[5]Pegar datos'!$C$1409:$L$1903,5,0)/1000000 -> 0 | W27: =VLOOKUP("72020CETE 91",'[5]Pegar datos'!$C$1409:$L$1903,6,0) -> 0 | X27: =VLOOKUP("72020AMOVIL",'[5]Pegar datos'!$C$1409:$L$1903,3,0) -> 0 | Y27: =VLOOKUP("72020AMOVIL",'[5]Pegar datos'!$C$1409:$L$1903,4,0) -> 0 | Z27: =VLOOKUP("72020AMOVIL",'[5]Pegar datos'!$C$1409:$L$1903,5,0)/1000000 -> 0 | AA27: =VLOOKUP("72020AMOVIL",'[5]Pegar datos'!$C$1409:$L$1903,6,0) -> 0 | AC27: 2020-07-01 | AD27: =VLOOKUP("72020SWAP D10",'[5]Pegar datos'!$C$1409:$L$1903,3,0) -> 0 | AE27: =VLOOKUP("72020SWAP D10",'[5]Pegar datos'!$C$1409:$L$1903,4,0) -> 0 | AF27: =VLOOKUP("72020SWAP D10",'[5]Pegar datos'!$C$1409:$L$1903,5,0)/1000000 -> 0 | AG27: =VLOOKUP("72020SWAP D10",'[5]Pegar datos'!$C$1409:$L$1903,6,0) -> 0 | AH27: =VLOOKUP("72020SWAP D2",'[5]Pegar datos'!$C$1409:$L$1903,3,0) -> 0 | AI27: =VLOOKUP("72020SWAP D2",'[5]Pegar datos'!$C$1409:$L$1903,4,0) -> 0 | AJ27: =VLOOKUP("72020SWAP D2",'[5]Pegar datos'!$C$1409:$L$1903,5,0)/1000000 -> 0 | AK27: =VLOOKUP("72020SWAP D2",'[5]Pegar datos'!$C$1409:$L$1903,6,0) -> 0 | AL27: =VLOOKUP("72020Mini IPC",'[5]Pegar datos'!$C$1409:$L$1903,3,0) -> 184 | AM27: =VLOOKUP("72020Mini IPC",'[5]Pegar datos'!$C$1409:$L$1903,4,0) -> 281 | AN27: =VLOOKUP("72020Mini IPC",'[5]Pegar datos'!$C$1409:$L$1903,5,0)/1000000 -> 20.994018 | AO27: =VLOOKUP("72020Mini IPC",'[5]Pegar datos'!$C$1409:$L$1903,6,0) -> 50 | AQ27: 2020-07-01 | AR27: =VLOOKUP("72020M30",'[5]Pegar datos'!$C$1409:$L$1903,3,0) -> 0 | AS27: =VLOOKUP("72020M30",'[5]Pegar datos'!$C$1409:$L$1903,4,0) -> 0 | AT27: =VLOOKUP("72020M30",'[5]Pegar datos'!$C$1409:$L$1903,5,0)/1000000 -> 0 | AU27: =VLOOKUP("72020M30",'[5]Pegar datos'!$C$1409:$L$1903,6,0) -> 0 | AV27: =VLOOKUP("72020DC24",'[5]Pegar datos'!$C$1409:$L$1903,3,0) -> 1 | AW27: =VLOOKUP("72020DC24",'[5]Pegar datos'!$C$1409:$L$1903,4,0) -> 500 | AX27: =VLOOKUP("72020DC24",'[5]Pegar datos'!$C$1409:$L$1903,5,0)/1000000 -> 61.3 | AY27: =VLOOKUP("72020DC24",'[5]Pegar datos'!$C$1409:$L$1903,6,0) -> 5600 | AZ27: =VLOOKUP("72020NV42",'[5]Pegar datos'!$C$1409:$L$1903,3,0) -> 7 | BA27: =VLOOKUP("72020NV42",'[5]Pegar datos'!$C$1409:$L$1903,4,0) -> 1201 | BB27: =VLOOKUP("72020NV42",'[5]Pegar datos'!$C$1409:$L$1903,5,0)/1000000 -> 135.3335 | BC27: =VLOOKUP("72020NV42",'[5]Pegar datos'!$C$1409:$L$1903,6,0) -> 0 | BE27: 2020-07-01 | BF27: =VLOOKUP("72020JN22",'[5]Pegar datos'!$C$1409:$L$1903,3,0) -> 0 | BG27: =VLOOKUP("72020JN22",'[5]Pegar datos'!$C$1409:$L$1903,4,0) -> 0 | BH27: =VLOOKUP("72020JN22",'[5]Pegar datos'!$C$1409:$L$1903,5,0)/1000000 -> 0 | BI27: =VLOOKUP("72020JN22",'[5]Pegar datos'!$C$1409:$L$1903,6,0) -> 0 | BJ27: =VLOOKUP("72020NV47",'[5]Pegar datos'!$C$1409:$L$1903,3,0) -> 2 | BK27: =VLOOKUP("72020NV47",'[5]Pegar datos'!$C$1409:$L$1903,4,0) -> 380 | BL27: =VLOOKUP("72020NV47",'[5]Pegar datos'!$C$1409:$L$1903,5,0)/1000000 -> 45.03 | BM27: =VLOOKUP("72020NV47",'[5]Pegar datos'!$C$1409:$L$1903,6,0) -> 0
A28: 2020-08-01 | B28: =VLOOKUP("82020DÓLAR",'[6]Pegar datos'!$C$1409:$L$1906,3,0) -> 447 | C28: =VLOOKUP("82020DÓLAR",'[6]Pegar datos'!$C$1409:$L$1906,4,0) -> 75863 | D28: =VLOOKUP("82020DÓLAR",'[6]Pegar datos'!$C$1409:$L$1906,5,0)/1000000 -> 16991.37966 | E28: =VLOOKUP("82020DÓLAR",'[6]Pegar datos'!$C$1409:$L$1906,6,0) -> 493242 | F28: =VLOOKUP("82020EURO",'[6]Pegar datos'!$C$1409:$L$1906,3,0) -> 0 | G28: =VLOOKUP("82020EURO",'[6]Pegar datos'!$C$1409:$L$1906,4,0) -> 0 | H28: =VLOOKUP("82020EURO",'[6]Pegar datos'!$C$1409:$L$1906,5,0)/1000000 -> 0 | I28: =VLOOKUP("82020EURO",'[6]Pegar datos'!$C$1409:$L$1906,6,0) -> 0 | J28: =VLOOKUP("82020IPC",'[6]Pegar datos'!$C$1409:$L$1906,3,0) -> 11842 | K28: =VLOOKUP("82020IPC",'[6]Pegar datos'!$C$1409:$L$1906,4,0) -> 21746 | L28: =VLOOKUP("82020IPC",'[6]Pegar datos'!$C$1409:$L$1906,5,0)/1000000 -> 8336.61915 | M28: =VLOOKUP("82020IPC",'[6]Pegar datos'!$C$1409:$L$1906,6,0) -> 23647 | O28: 2020-08-01 | P28: =VLOOKUP("82020TIIE 28",'[6]Pegar datos'!$C$1409:$L$1906,3,0) -> 0 | Q28: =VLOOKUP("82020TIIE 28",'[6]Pegar datos'!$C$1409:$L$1906,4,0) -> 0 | R28: =VLOOKUP("82020TIIE 28",'[6]Pegar datos'!$C$1409:$L$1906,5,0)/1000000 -> 0 | S28: =VLOOKUP("82020TIIE 28",'[6]Pegar datos'!$C$1409:$L$1906,6,0) -> 800 | T28: =VLOOKUP("82020CETE 91",'[6]Pegar datos'!$C$1409:$L$1906,3,0) -> 0 | U28: =VLOOKUP("82020CETE 91",'[6]Pegar datos'!$C$1409:$L$1906,4,0) -> 0 | V28: =VLOOKUP("82020CETE 91",'[6]Pegar datos'!$C$1409:$L$1906,5,0)/1000000 -> 0 | W28: =VLOOKUP("82020CETE 91",'[6]Pegar datos'!$C$1409:$L$1906,6,0) -> 0 | X28: =VLOOKUP("82020AMOVIL",'[6]Pegar datos'!$C$1409:$L$1906,3,0) -> 0 | Y28: =VLOOKUP("82020AMOVIL",'[6]Pegar datos'!$C$1409:$L$1906,4,0) -> 0 | Z28: =VLOOKUP("82020AMOVIL",'[6]Pegar datos'!$C$1409:$L$1906,5,0)/1000000 -> 0 | AA28: =VLOOKUP("82020AMOVIL",'[6]Pegar datos'!$C$1409:$L$1906,6,0) -> 0 | AC28: 2020-08-01 | AD28: =VLOOKUP("82020SWAP D10",'[6]Pegar datos'!$C$1409:$L$1906,3,0) -> 0 | AE28: =VLOOKUP("82020SWAP D10",'[6]Pegar datos'!$C$1409:$L$1906,4,0) -> 0 | AF28: =VLOOKUP("82020SWAP D10",'[6]Pegar datos'!$C$1409:$L$1906,5,0)/1000000 -> 0 | AG28: =VLOOKUP("82020SWAP D10",'[6]Pegar datos'!$C$1409:$L$1906,6,0) -> 0 | AH28: =VLOOKUP("82020SWAP D2",'[6]Pegar datos'!$C$1409:$L$1906,3,0) -> 0 | AI28: =VLOOKUP("82020SWAP D2",'[6]Pegar datos'!$C$1409:$L$1906,4,0) -> 0 | AJ28: =VLOOKUP("82020SWAP D2",'[6]Pegar datos'!$C$1409:$L$1906,5,0)/1000000 -> 0 | AK28: =VLOOKUP("82020SWAP D2",'[6]Pegar datos'!$C$1409:$L$1906,6,0) -> 0 | AL28: =VLOOKUP("82020Mini IPC",'[6]Pegar datos'!$C$1409:$L$1906,3,0) -> 182 | AM28: =VLOOKUP("82020Mini IPC",'[6]Pegar datos'!$C$1409:$L$1906,4,0) -> 208 | AN28: =VLOOKUP("82020Mini IPC",'[6]Pegar datos'!$C$1409:$L$1906,5,0)/1000000 -> 16.00846 | AO28: =VLOOKUP("82020Mini IPC",'[6]Pegar datos'!$C$1409:$L$1906,6,0) -> 50 | AQ28: 2020-08-01 | AR28: =VLOOKUP("82020M30",'[6]Pegar datos'!$C$1409:$L$1906,3,0) -> 0 | AS28: =VLOOKUP("82020M30",'[6]Pegar datos'!$C$1409:$L$1906,4,0) -> 0 | AT28: =VLOOKUP("82020M30",'[6]Pegar datos'!$C$1409:$L$1906,5,0)/1000000 -> 0 | AU28: =VLOOKUP("82020M30",'[6]Pegar datos'!$C$1409:$L$1906,6,0) -> 0 | AV28: =VLOOKUP("82020DC24",'[6]Pegar datos'!$C$1409:$L$1906,3,0) -> 1 | AW28: =VLOOKUP("82020DC24",'[6]Pegar datos'!$C$1409:$L$1906,4,0) -> 500 | AX28: =VLOOKUP("82020DC24",'[6]Pegar datos'!$C$1409:$L$1906,5,0)/1000000 -> 60.8125 | AY28: =VLOOKUP("82020DC24",'[6]Pegar datos'!$C$1409:$L$1906,6,0) -> 5600 | AZ28: =VLOOKUP("82020NV42",'[6]Pegar datos'!$C$1409:$L$1906,3,0) -> 7 | BA28: =VLOOKUP("82020NV42",'[6]Pegar datos'!$C$1409:$L$1906,4,0) -> 1650 | BB28: =VLOOKUP("82020NV42",'[6]Pegar datos'!$C$1409:$L$1906,5,0)/1000000 -> 185.55 | BC28: =VLOOKUP("82020NV42",'[6]Pegar datos'!$C$1409:$L$1906,6,0) -> 0 | BE28: 2020-08-01 | BF28: =VLOOKUP("82020JN22",'[6]Pegar datos'!$C$1409:$L$1906,3,0) -> 0 | BG28: =VLOOKUP("82020JN22",'[6]Pegar datos'!$C$1409:$L$1906,4,0) -> 0 | BH28: =VLOOKUP("82020JN22",'[6]Pegar datos'!$C$1409:$L$1906,5,0)/1000000 -> 0 | BI28: =VLOOKUP("82020JN22",'[6]Pegar datos'!$C$1409:$L$1906,6,0) -> 0 | BJ28: =VLOOKUP("82020NV47",'[6]Pegar datos'!$C$1409:$L$1906,3,0) -> 0 | BK28: =VLOOKUP("82020NV47",'[6]Pegar datos'!$C$1409:$L$1906,4,0) -> 0 | BL28: =VLOOKUP("82020NV47",'[6]Pegar datos'!$C$1409:$L$1906,5,0)/1000000 -> 0 | BM28: =VLOOKUP("82020NV47",'[6]Pegar datos'!$C$1409:$L$1906,6,0) -> 0
A29: 2020-09-01 | B29: =VLOOKUP("92020DÓLAR",'[7]Pegar datos'!$C$1409:$L$1909,3,0) -> 973 | C29: =VLOOKUP("92020DÓLAR",'[7]Pegar datos'!$C$1409:$L$1909,4,0) -> 1301162 | D29: =VLOOKUP("92020DÓLAR",'[7]Pegar datos'!$C$1409:$L$1909,5,0)/1000000 -> 279984.6084 | E29: =VLOOKUP("92020DÓLAR",'[7]Pegar datos'!$C$1409:$L$1909,6,0) -> 489972 | F29: =VLOOKUP("92020EURO",'[7]Pegar datos'!$C$1409:$L$1909,3,0) -> 0 | G29: =VLOOKUP("92020EURO",'[7]Pegar datos'!$C$1409:$L$1909,4,0) -> 0 | H29: =VLOOKUP("92020EURO",'[7]Pegar datos'!$C$1409:$L$1909,5,0)/1000000 -> 0 | I29: =VLOOKUP("92020EURO",'[7]Pegar datos'!$C$1409:$L$1909,6,0) -> 0 | J29: =VLOOKUP("92020IPC",'[7]Pegar datos'!$C$1409:$L$1909,3,0) -> 16117 | K29: =VLOOKUP("92020IPC",'[7]Pegar datos'!$C$1409:$L$1909,4,0) -> 81489 | L29: =VLOOKUP("92020IPC",'[7]Pegar datos'!$C$1409:$L$1909,5,0)/1000000 -> 29834.6347 | M29: =VLOOKUP("92020IPC",'[7]Pegar datos'!$C$1409:$L$1909,6,0) -> 22547 | O29: 2020-09-01 | P29: =VLOOKUP("92020TIIE 28",'[7]Pegar datos'!$C$1409:$L$1909,3,0) -> 0 | Q29: =VLOOKUP("92020TIIE 28",'[7]Pegar datos'!$C$1409:$L$1909,4,0) -> 0 | R29: =VLOOKUP("92020TIIE 28",'[7]Pegar datos'!$C$1409:$L$1909,5,0)/1000000 -> 0 | S29: =VLOOKUP("92020TIIE 28",'[7]Pegar datos'!$C$1409:$L$1909,6,0) -> 600 | T29: =VLOOKUP("92020CETE 91",'[7]Pegar datos'!$C$1409:$L$1909,3,0) -> 0 | U29: =VLOOKUP("92020CETE 91",'[7]Pegar datos'!$C$1409:$L$1909,4,0) -> 0 | V29: =VLOOKUP("92020CETE 91",'[7]Pegar datos'!$C$1409:$L$1909,5,0)/1000000 -> 0 | W29: =VLOOKUP("92020CETE 91",'[7]Pegar datos'!$C$1409:$L$1909,6,0) -> 0 | X29: =VLOOKUP("92020AMOVIL",'[7]Pegar datos'!$C$1409:$L$1909,3,0) -> 0 | Y29: =VLOOKUP("92020AMOVIL",'[7]Pegar datos'!$C$1409:$L$1909,4,0) -> 0 | Z29: =VLOOKUP("92020AMOVIL",'[7]Pegar datos'!$C$1409:$L$1909,5,0)/1000000 -> 0 | AA29: =VLOOKUP("92020AMOVIL",'[7]Pegar datos'!$C$1409:$L$1909,6,0) -> 0 | AC29: 2020-09-01 | AD29: =VLOOKUP("92020SWAP D10",'[7]Pegar datos'!$C$1409:$L$1909,3,0) -> 0 | AE29: =VLOOKUP("92020SWAP D10",'[7]Pegar datos'!$C$1409:$L$1909,4,0) -> 0 | AF29: =VLOOKUP("92020SWAP D10",'[7]Pegar datos'!$C$1409:$L$1909,5,0)/1000000 -> 0 | AG29: =VLOOKUP("92020SWAP D10",'[7]Pegar datos'!$C$1409:$L$1909,6,0) -> 0 | AH29: =VLOOKUP("92020SWAP D2",'[7]Pegar datos'!$C$1409:$L$1909,3,0) -> 0 | AI29: =VLOOKUP("92020SWAP D2",'[7]Pegar datos'!$C$1409:$L$1909,4,0) -> 0 | AJ29: =VLOOKUP("92020SWAP D2",'[7]Pegar datos'!$C$1409:$L$1909,5,0)/1000000 -> 0 | AK29: =VLOOKUP("92020SWAP D2",'[7]Pegar datos'!$C$1409:$L$1909,6,0) -> 0 | AL29: =VLOOKUP("92020Mini IPC",'[7]Pegar datos'!$C$1409:$L$1909,3,0) -> 63 | AM29: =VLOOKUP("92020Mini IPC",'[7]Pegar datos'!$C$1409:$L$1909,4,0) -> 98 | AN29: =VLOOKUP("92020Mini IPC",'[7]Pegar datos'!$C$1409:$L$1909,5,0)/1000000 -> 7.15902 | AO29: =VLOOKUP("92020Mini IPC",'[7]Pegar datos'!$C$1409:$L$1909,6,0) -> 6 | AQ29: 2020-09-01 | AR29: =VLOOKUP("92020M30",'[7]Pegar datos'!$C$1409:$L$1909,3,0) -> 0 | AS29: =VLOOKUP("92020M30",'[7]Pegar datos'!$C$1409:$L$1909,4,0) -> 0 | AT29: =VLOOKUP("92020M30",'[7]Pegar datos'!$C$1409:$L$1909,5,0)/1000000 -> 0 | AU29: =VLOOKUP("92020M30",'[7]Pegar datos'!$C$1409:$L$1909,6,0) -> 0 | AV29: =VLOOKUP("92020DC24",'[7]Pegar datos'!$C$1409:$L$1909,3,0) -> 9 | AW29: =VLOOKUP("92020DC24",'[7]Pegar datos'!$C$1409:$L$1909,4,0) -> 10500 | AX29: =VLOOKUP("92020DC24",'[7]Pegar datos'!$C$1409:$L$1909,5,0)/1000000 -> 1263.4825 | AY29: =VLOOKUP("92020DC24",'[7]Pegar datos'!$C$1409:$L$1909,6,0) -> 5500 | AZ29: =VLOOKUP("92020NV42",'[7]Pegar datos'!$C$1409:$L$1909,3,0) -> 6 | BA29: =VLOOKUP("92020NV42",'[7]Pegar datos'!$C$1409:$L$1909,4,0) -> 1350 | BB29: =VLOOKUP("92020NV42",'[7]Pegar datos'!$C$1409:$L$1909,5,0)/1000000 -> 150.255 | BC29: =VLOOKUP("92020NV42",'[7]Pegar datos'!$C$1409:$L$1909,6,0) -> 0 | BE29: 2020-09-01 | BF29: =VLOOKUP("92020JN22",'[7]Pegar datos'!$C$1409:$L$1909,3,0) -> 0 | BG29: =VLOOKUP("92020JN22",'[7]Pegar datos'!$C$1409:$L$1909,4,0) -> 0 | BH29: =VLOOKUP("92020JN22",'[7]Pegar datos'!$C$1409:$L$1909,5,0)/1000000 -> 0 | BI29: =VLOOKUP("92020JN22",'[7]Pegar datos'!$C$1409:$L$1909,6,0) -> 0 | BJ29: =VLOOKUP("92020NV47",'[7]Pegar datos'!$C$1409:$L$1909,3,0) -> 0 | BK29: =VLOOKUP("92020NV47",'[7]Pegar datos'!$C$1409:$L$1909,4,0) -> 0 | BL29: =VLOOKUP("92020NV47",'[7]Pegar datos'!$C$1409:$L$1909,5,0)/1000000 -> 0 | BM29: =VLOOKUP("92020NV47",'[7]Pegar datos'!$C$1409:$L$1909,6,0) -> 0
A30: 2020-10-01 | B30: =VLOOKUP("102020DÓLAR",'[8]Pegar datos'!$C$1409:$L$1912,3,0) -> 759 | C30: =VLOOKUP("102020DÓLAR",'[8]Pegar datos'!$C$1409:$L$1912,4,0) -> 154988 | D30: =VLOOKUP("102020DÓLAR",'[8]Pegar datos'!$C$1409:$L$1912,5,0)/1000000 -> 33484.46292 | E30: =VLOOKUP("102020DÓLAR",'[8]Pegar datos'!$C$1409:$L$1912,6,0) -> 503172 | F30: =VLOOKUP("102020EURO",'[8]Pegar datos'!$C$1409:$L$1912,3,0) -> 0 | G30: =VLOOKUP("102020EURO",'[8]Pegar datos'!$C$1409:$L$1912,4,0) -> 0 | H30: =VLOOKUP("102020EURO",'[8]Pegar datos'!$C$1409:$L$1912,5,0)/1000000 -> 0 | I30: =VLOOKUP("102020EURO",'[8]Pegar datos'!$C$1409:$L$1912,6,0) -> 0 | J30: =VLOOKUP("102020IPC",'[8]Pegar datos'!$C$1409:$L$1912,3,0) -> 14883 | K30: =VLOOKUP("102020IPC",'[8]Pegar datos'!$C$1409:$L$1912,4,0) -> 26282 | L30: =VLOOKUP("102020IPC",'[8]Pegar datos'!$C$1409:$L$1912,5,0)/1000000 -> 9918.94947 | M30: =VLOOKUP("102020IPC",'[8]Pegar datos'!$C$1409:$L$1912,6,0) -> 20569 | O30: 2020-10-01 | P30: =VLOOKUP("102020TIIE 28",'[8]Pegar datos'!$C$1409:$L$1912,3,0) -> 0 | Q30: =VLOOKUP("102020TIIE 28",'[8]Pegar datos'!$C$1409:$L$1912,4,0) -> 0 | R30: =VLOOKUP("102020TIIE 28",'[8]Pegar datos'!$C$1409:$L$1912,5,0)/1000000 -> 0 | S30: =VLOOKUP("102020TIIE 28",'[8]Pegar datos'!$C$1409:$L$1912,6,0) -> 400 | T30: =VLOOKUP("102020CETE 91",'[8]Pegar datos'!$C$1409:$L$1912,3,0) -> 0 | U30: =VLOOKUP("102020CETE 91",'[8]Pegar datos'!$C$1409:$L$1912,4,0) -> 0 | V30: =VLOOKUP("102020CETE 91",'[8]Pegar datos'!$C$1409:$L$1912,5,0)/1000000 -> 0 | W30: =VLOOKUP("102020CETE 91",'[8]Pegar datos'!$C$1409:$L$1912,6,0) -> 0 | X30: =VLOOKUP("102020AMOVIL",'[8]Pegar datos'!$C$1409:$L$1912,3,0) -> 8 | Y30: =VLOOKUP("102020AMOVIL",'[8]Pegar datos'!$C$1409:$L$1912,4,0) -> 2100 | Z30: =VLOOKUP("102020AMOVIL",'[8]Pegar datos'!$C$1409:$L$1912,5,0)/1000000 -> 2.735 | AA30: =VLOOKUP("102020AMOVIL",'[8]Pegar datos'!$C$1409:$L$1912,6,0) -> 2100 | AC30: 2020-10-01 | AD30: =VLOOKUP("102020SWAP D10",'[8]Pegar datos'!$C$1409:$L$1912,3,0) -> 0 | AE30: =VLOOKUP("102020SWAP D10",'[8]Pegar datos'!$C$1409:$L$1912,4,0) -> 0 | AF30: =VLOOKUP("102020SWAP D10",'[8]Pegar datos'!$C$1409:$L$1912,5,0)/1000000 -> 0 | AG30: =VLOOKUP("102020SWAP D10",'[8]Pegar datos'!$C$1409:$L$1912,6,0) -> 0 | AH30: =VLOOKUP("102020SWAP D2",'[8]Pegar datos'!$C$1409:$L$1912,3,0) -> 0 | AI30: =VLOOKUP("102020SWAP D2",'[8]Pegar datos'!$C$1409:$L$1912,4,0) -> 0 | AJ30: =VLOOKUP("102020SWAP D2",'[8]Pegar datos'!$C$1409:$L$1912,5,0)/1000000 -> 0 | AK30: =VLOOKUP("102020SWAP D2",'[8]Pegar datos'!$C$1409:$L$1912,6,0) -> 0 | AL30: =VLOOKUP("102020Mini IPC",'[8]Pegar datos'!$C$1409:$L$1912,3,0) -> 149 | AM30: =VLOOKUP("102020Mini IPC",'[8]Pegar datos'!$C$1409:$L$1912,4,0) -> 219 | AN30: =VLOOKUP("102020Mini IPC",'[8]Pegar datos'!$C$1409:$L$1912,5,0)/1000000 -> 16.5518 | AO30: =VLOOKUP("102020Mini IPC",'[8]Pegar datos'!$C$1409:$L$1912,6,0) -> 81 | AQ30: 2020-10-01 | AR30: =VLOOKUP("102020M30",'[8]Pegar datos'!$C$1409:$L$1912,3,0) -> 0 | AS30: =VLOOKUP("102020M30",'[8]Pegar datos'!$C$1409:$L$1912,4,0) -> 0 | AT30: =VLOOKUP("102020M30",'[8]Pegar datos'!$C$1409:$L$1912,5,0)/1000000 -> 0 | AU30: =VLOOKUP("102020M30",'[8]Pegar datos'!$C$1409:$L$1912,6,0) -> 0 | AV30: =VLOOKUP("102020DC24",'[8]Pegar datos'!$C$1409:$L$1912,3,0) -> 2 | AW30: =VLOOKUP("102020DC24",'[8]Pegar datos'!$C$1409:$L$1912,4,0) -> 1000 | AX30: =VLOOKUP("102020DC24",'[8]Pegar datos'!$C$1409:$L$1912,5,0)/1000000 -> 118.4625 | AY30: =VLOOKUP("102020DC24",'[8]Pegar datos'!$C$1409:$L$1912,6,0) -> 6500 | AZ30: =VLOOKUP("102020NV42",'[8]Pegar datos'!$C$1409:$L$1912,3,0) -> 6 | BA30: =VLOOKUP("102020NV42",'[8]Pegar datos'!$C$1409:$L$1912,4,0) -> 1300 | BB30: =VLOOKUP("102020NV42",'[8]Pegar datos'!$C$1409:$L$1912,5,0)/1000000 -> 138.66875 | BC30: =VLOOKUP("102020NV42",'[8]Pegar datos'!$C$1409:$L$1912,6,0) -> 0 | BE30: 2020-10-01 | BF30: =VLOOKUP("102020JN22",'[8]Pegar datos'!$C$1409:$L$1912,3,0) -> 0 | BG30: =VLOOKUP("102020JN22",'[8]Pegar datos'!$C$1409:$L$1912,4,0) -> 0 | BH30: =VLOOKUP("102020JN22",'[8]Pegar datos'!$C$1409:$L$1912,5,0)/1000000 -> 0 | BI30: =VLOOKUP("102020JN22",'[8]Pegar datos'!$C$1409:$L$1912,6,0) -> 0 | BJ30: =VLOOKUP("102020NV47",'[8]Pegar datos'!$C$1409:$L$1912,3,0) -> 0 | BK30: =VLOOKUP("102020NV47",'[8]Pegar datos'!$C$1409:$L$1912,4,0) -> 0 | BL30: =VLOOKUP("102020NV47",'[8]Pegar datos'!$C$1409:$L$1912,5,0)/1000000 -> 0 | BM30: =VLOOKUP("102020NV47",'[8]Pegar datos'!$C$1409:$L$1912,6,0) -> 0
A31: 2020-11-01 | B31: =VLOOKUP("112020DÓLAR",'[9]Pegar datos'!$C$1409:$L$1915,3,0) -> 403 | C31: =VLOOKUP("112020DÓLAR",'[9]Pegar datos'!$C$1409:$L$1915,4,0) -> 113464 | D31: =VLOOKUP("112020DÓLAR",'[9]Pegar datos'!$C$1409:$L$1915,5,0)/1000000 -> 23185.04183 | E31: =VLOOKUP("112020DÓLAR",'[9]Pegar datos'!$C$1409:$L$1915,6,0) -> 530041 | F31: =VLOOKUP("112020EURO",'[9]Pegar datos'!$C$1409:$L$1915,3,0) -> 0 | G31: =VLOOKUP("112020EURO",'[9]Pegar datos'!$C$1409:$L$1915,4,0) -> 0 | H31: =VLOOKUP("112020EURO",'[9]Pegar datos'!$C$1409:$L$1915,5,0)/1000000 -> 0 | I31: =VLOOKUP("112020EURO",'[9]Pegar datos'!$C$1409:$L$1915,6,0) -> 0 | J31: =VLOOKUP("112020IPC",'[9]Pegar datos'!$C$1409:$L$1915,3,0) -> 15621 | K31: =VLOOKUP("112020IPC",'[9]Pegar datos'!$C$1409:$L$1915,4,0) -> 30804 | L31: =VLOOKUP("112020IPC",'[9]Pegar datos'!$C$1409:$L$1915,5,0)/1000000 -> 12466.04819 | M31: =VLOOKUP("112020IPC",'[9]Pegar datos'!$C$1409:$L$1915,6,0) -> 15507 | O31: 2020-11-01 | P31: =VLOOKUP("112020TIIE 28",'[9]Pegar datos'!$C$1409:$L$1915,3,0) -> 0 | Q31: =VLOOKUP("112020TIIE 28",'[9]Pegar datos'!$C$1409:$L$1915,4,0) -> 0 | R31: =VLOOKUP("112020TIIE 28",'[9]Pegar datos'!$C$1409:$L$1915,5,0)/1000000 -> 0 | S31: =VLOOKUP("112020TIIE 28",'[9]Pegar datos'!$C$1409:$L$1915,6,0) -> 200 | T31: =VLOOKUP("112020CETE 91",'[9]Pegar datos'!$C$1409:$L$1915,3,0) -> 0 | U31: =VLOOKUP("112020CETE 91",'[9]Pegar datos'!$C$1409:$L$1915,4,0) -> 0 | V31: =VLOOKUP("112020CETE 91",'[9]Pegar datos'!$C$1409:$L$1915,5,0)/1000000 -> 0 | W31: =VLOOKUP("112020CETE 91",'[9]Pegar datos'!$C$1409:$L$1915,6,0) -> 0 | X31: =VLOOKUP("112020AMOVIL",'[9]Pegar datos'!$C$1409:$L$1915,3,0) -> 5 | Y31: =VLOOKUP("112020AMOVIL",'[9]Pegar datos'!$C$1409:$L$1915,4,0) -> 2100 | Z31: =VLOOKUP("112020AMOVIL",'[9]Pegar datos'!$C$1409:$L$1915,5,0)/1000000 -> 3.0514 | AA31: =VLOOKUP("112020AMOVIL",'[9]Pegar datos'!$C$1409:$L$1915,6,0) -> 0 | AC31: 2020-11-01 | AD31: =VLOOKUP("112020SWAP D10",'[9]Pegar datos'!$C$1409:$L$1915,3,0) -> 0 | AE31: =VLOOKUP("112020SWAP D10",'[9]Pegar datos'!$C$1409:$L$1915,4,0) -> 0 | AF31: =VLOOKUP("112020SWAP D10",'[9]Pegar datos'!$C$1409:$L$1915,5,0)/1000000 -> 0 | AG31: =VLOOKUP("112020SWAP D10",'[9]Pegar datos'!$C$1409:$L$1915,6,0) -> 0 | AH31: =VLOOKUP("112020SWAP D2",'[9]Pegar datos'!$C$1409:$L$1915,3,0) -> 0 | AI31: =VLOOKUP("112020SWAP D2",'[9]Pegar datos'!$C$1409:$L$1915,4,0) -> 0 | AJ31: =VLOOKUP("112020SWAP D2",'[9]Pegar datos'!$C$1409:$L$1915,5,0)/1000000 -> 0 | AK31: =VLOOKUP("112020SWAP D2",'[9]Pegar datos'!$C$1409:$L$1915,6,0) -> 0 | AL31: =VLOOKUP("112020Mini IPC",'[9]Pegar datos'!$C$1409:$L$1915,3,0) -> 89 | AM31: =VLOOKUP("112020Mini IPC",'[9]Pegar datos'!$C$1409:$L$1915,4,0) -> 191 | AN31: =VLOOKUP("112020Mini IPC",'[9]Pegar datos'!$C$1409:$L$1915,5,0)/1000000 -> 15.20998 | AO31: =VLOOKUP("112020Mini IPC",'[9]Pegar datos'!$C$1409:$L$1915,6,0) -> 64 | AQ31: 2020-11-01 | AR31: =VLOOKUP("112020M30",'[9]Pegar datos'!$C$1409:$L$1915,3,0) -> 0 | AS31: =VLOOKUP("112020M30",'[9]Pegar datos'!$C$1409:$L$1915,4,0) -> 0 | AT31: =VLOOKUP("112020M30",'[9]Pegar datos'!$C$1409:$L$1915,5,0)/1000000 -> 0 | AU31: =VLOOKUP("112020M30",'[9]Pegar datos'!$C$1409:$L$1915,6,0) -> 0 | AV31: =VLOOKUP("112020DC24",'[9]Pegar datos'!$C$1409:$L$1915,3,0) -> 3 | AW31: =VLOOKUP("112020DC24",'[9]Pegar datos'!$C$1409:$L$1915,4,0) -> 1500 | AX31: =VLOOKUP("112020DC24",'[9]Pegar datos'!$C$1409:$L$1915,5,0)/1000000 -> 178.35 | AY31: =VLOOKUP("112020DC24",'[9]Pegar datos'!$C$1409:$L$1915,6,0) -> 5000 | AZ31: =VLOOKUP("112020NV42",'[9]Pegar datos'!$C$1409:$L$1915,3,0) -> 0 | BA31: =VLOOKUP("112020NV42",'[9]Pegar datos'!$C$1409:$L$1915,4,0) -> 0 | BB31: =VLOOKUP("112020NV42",'[9]Pegar datos'!$C$1409:$L$1915,5,0)/1000000 -> 0 | BC31: =VLOOKUP("112020NV42",'[9]Pegar datos'!$C$1409:$L$1915,6,0) -> 0 | BE31: 2020-11-01 | BF31: =VLOOKUP("112020JN22",'[9]Pegar datos'!$C$1409:$L$1915,3,0) -> 0 | BG31: =VLOOKUP("112020JN22",'[9]Pegar datos'!$C$1409:$L$1915,4,0) -> 0 | BH31: =VLOOKUP("112020JN22",'[9]Pegar datos'!$C$1409:$L$1915,5,0)/1000000 -> 0 | BI31: =VLOOKUP("112020JN22",'[9]Pegar datos'!$C$1409:$L$1915,6,0) -> 0 | BJ31: =VLOOKUP("112020NV47",'[9]Pegar datos'!$C$1409:$L$1915,3,0) -> 0 | BK31: =VLOOKUP("112020NV47",'[9]Pegar datos'!$C$1409:$L$1915,4,0) -> 0 | BL31: =VLOOKUP("112020NV47",'[9]Pegar datos'!$C$1409:$L$1915,5,0)/1000000 -> 0 | BM31: =VLOOKUP("112020NV47",'[9]Pegar datos'!$C$1409:$L$1915,6,0) -> 0
A32: 2020-12-01 | B32: =VLOOKUP("122020DÓLAR",'[10]Pegar datos'!$C$1409:$L$1918,3,0) -> 479 | C32: =VLOOKUP("122020DÓLAR",'[10]Pegar datos'!$C$1409:$L$1918,4,0) -> 1191349 | D32: =VLOOKUP("122020DÓLAR",'[10]Pegar datos'!$C$1409:$L$1918,5,0)/1000000 -> 238173.376 | E32: =VLOOKUP("122020DÓLAR",'[10]Pegar datos'!$C$1409:$L$1918,6,0) -> 473752 | F32: =VLOOKUP("122020EURO",'[10]Pegar datos'!$C$1409:$L$1918,3,0) -> 0 | G32: =VLOOKUP("122020EURO",'[10]Pegar datos'!$C$1409:$L$1918,4,0) -> 0 | H32: =VLOOKUP("122020EURO",'[10]Pegar datos'!$C$1409:$L$1918,5,0)/1000000 -> 0 | I32: =VLOOKUP("122020EURO",'[10]Pegar datos'!$C$1409:$L$1918,6,0) -> 0 | J32: =VLOOKUP("122020IPC",'[10]Pegar datos'!$C$1409:$L$1918,3,0) -> 12017 | K32: =VLOOKUP("122020IPC",'[10]Pegar datos'!$C$1409:$L$1918,4,0) -> 60854 | L32: =VLOOKUP("122020IPC",'[10]Pegar datos'!$C$1409:$L$1918,5,0)/1000000 -> 26679.08693 | M32: =VLOOKUP("122020IPC",'[10]Pegar datos'!$C$1409:$L$1918,6,0) -> 11941 | O32: 2020-12-01 | P32: =VLOOKUP("122020TIIE 28",'[10]Pegar datos'!$C$1409:$L$1918,3,0) -> 0 | Q32: =VLOOKUP("122020TIIE 28",'[10]Pegar datos'!$C$1409:$L$1918,4,0) -> 0 | R32: =VLOOKUP("122020TIIE 28",'[10]Pegar datos'!$C$1409:$L$1918,5,0)/1000000 -> 0 | S32: =VLOOKUP("122020TIIE 28",'[10]Pegar datos'!$C$1409:$L$1918,6,0) -> 0 | T32: =VLOOKUP("122020CETE 91",'[10]Pegar datos'!$C$1409:$L$1918,3,0) -> 0 | U32: =VLOOKUP("122020CETE 91",'[10]Pegar datos'!$C$1409:$L$1918,4,0) -> 0 | V32: =VLOOKUP("122020CETE 91",'[10]Pegar datos'!$C$1409:$L$1918,5,0)/1000000 -> 0 | W32: =VLOOKUP("122020CETE 91",'[10]Pegar datos'!$C$1409:$L$1918,6,0) -> 0 | X32: =VLOOKUP("122020AMOVIL",'[10]Pegar datos'!$C$1409:$L$1918,3,0) -> 0 | Y32: =VLOOKUP("122020AMOVIL",'[10]Pegar datos'!$C$1409:$L$1918,4,0) -> 0 | Z32: =VLOOKUP("122020AMOVIL",'[10]Pegar datos'!$C$1409:$L$1918,5,0)/1000000 -> 0 | AA32: =VLOOKUP("122020AMOVIL",'[10]Pegar datos'!$C$1409:$L$1918,6,0) -> 0 | AC32: 2020-12-01 | AD32: =VLOOKUP("122020SWAP D10",'[10]Pegar datos'!$C$1409:$L$1918,3,0) -> 0 | AE32: =VLOOKUP("122020SWAP D10",'[10]Pegar datos'!$C$1409:$L$1918,4,0) -> 0 | AF32: =VLOOKUP("122020SWAP D10",'[10]Pegar datos'!$C$1409:$L$1918,5,0)/1000000 -> 0 | AG32: =VLOOKUP("122020SWAP D10",'[10]Pegar datos'!$C$1409:$L$1918,6,0) -> 0 | AH32: =VLOOKUP("122020SWAP D2",'[10]Pegar datos'!$C$1409:$L$1918,3,0) -> 0 | AI32: =VLOOKUP("122020SWAP D2",'[10]Pegar datos'!$C$1409:$L$1918,4,0) -> 0 | AJ32: =VLOOKUP("122020SWAP D2",'[10]Pegar datos'!$C$1409:$L$1918,5,0)/1000000 -> 0 | AK32: =VLOOKUP("122020SWAP D2",'[10]Pegar datos'!$C$1409:$L$1918,6,0) -> 0 | AL32: =VLOOKUP("122020Mini IPC",'[10]Pegar datos'!$C$1409:$L$1918,3,0) -> 97 | AM32: =VLOOKUP("122020Mini IPC",'[10]Pegar datos'!$C$1409:$L$1918,4,0) -> 208 | AN32: =VLOOKUP("122020Mini IPC",'[10]Pegar datos'!$C$1409:$L$1918,5,0)/1000000 -> 18.4496 | AO32: =VLOOKUP("122020Mini IPC",'[10]Pegar datos'!$C$1409:$L$1918,6,0) -> 118 | AQ32: 2020-12-01 | AR32: =VLOOKUP("122020M30",'[10]Pegar datos'!$C$1409:$L$1918,3,0) -> 0 | AS32: =VLOOKUP("122020M30",'[10]Pegar datos'!$C$1409:$L$1918,4,0) -> 0 | AT32: =VLOOKUP("122020M30",'[10]Pegar datos'!$C$1409:$L$1918,5,0)/1000000 -> 0 | AU32: =VLOOKUP("122020M30",'[10]Pegar datos'!$C$1409:$L$1918,6,0) -> 0 | AV32: =VLOOKUP("122020DC24",'[10]Pegar datos'!$C$1409:$L$1918,3,0) -> 16 | AW32: =VLOOKUP("122020DC24",'[10]Pegar datos'!$C$1409:$L$1918,4,0) -> 9000 | AX32: =VLOOKUP("122020DC24",'[10]Pegar datos'!$C$1409:$L$1918,5,0)/1000000 -> 1078.38 | AY32: =VLOOKUP("122020DC24",'[10]Pegar datos'!$C$1409:$L$1918,6,0) -> 4000 | AZ32: =VLOOKUP("122020NV42",'[10]Pegar datos'!$C$1409:$L$1918,3,0) -> 0 | BA32: =VLOOKUP("122020NV42",'[10]Pegar datos'!$C$1409:$L$1918,4,0) -> 0 | BB32: =VLOOKUP("122020NV42",'[10]Pegar datos'!$C$1409:$L$1918,5,0)/1000000 -> 0 | BC32: =VLOOKUP("122020NV42",'[10]Pegar datos'!$C$1409:$L$1918,6,0) -> 0 | BE32: 2020-12-01 | BF32: =VLOOKUP("122020JN22",'[10]Pegar datos'!$C$1409:$L$1918,3,0) -> 0 | BG32: =VLOOKUP("122020JN22",'[10]Pegar datos'!$C$1409:$L$1918,4,0) -> 0 | BH32: =VLOOKUP("122020JN22",'[10]Pegar datos'!$C$1409:$L$1918,5,0)/1000000 -> 0 | BI32: =VLOOKUP("122020JN22",'[10]Pegar datos'!$C$1409:$L$1918,6,0) -> 0 | BJ32: =VLOOKUP("122020NV47",'[10]Pegar datos'!$C$1409:$L$1918,3,0) -> 0 | BK32: =VLOOKUP("122020NV47",'[10]Pegar datos'!$C$1409:$L$1918,4,0) -> 0 | BL32: =VLOOKUP("122020NV47",'[10]Pegar datos'!$C$1409:$L$1918,5,0)/1000000 -> 0 | BM32: =VLOOKUP("122020NV47",'[10]Pegar datos'!$C$1409:$L$1918,6,0) -> 0
A33: (1) In Millions | O33: (1) In Millions | AC33: (1) In Millions | AQ33: (1) In Millions | BE33: .
B35: 3 YEAR BOND | F35: 10 YEAR BOND | J35: 20 YEAR BOND | P35: CEMEX | T35: WALMEX | X35: GMEXICO | AD35: GCARSO | AH35: FEMSA | AL35: MR26 | AR35: MY31 | AV35: DC18 | AZ35: JN27-21
B36: Trades | C36: Volume | D36: Notional Value(1) | E36: Open Interest | F36: Trades | G36: Volume | H36: Notional Value(1) | I36: Open Interest | J36: Trades | K36: Volume | L36: Notional Value(1) | M36: Open Interest | P36: Trades | Q36: Volume | R36: Notional Value(1) | S36: Open Interest | T36: Trades | U36: Volume | V36: Notional Value(1) | W36: Open Interest | X36: Trades | Y36: Volume | Z36: Notional Value(1) | AA36: Open Interest | AD36: Trades | AE36: Volume | AF36: Notional Value(1) | AG36: Open Interest | AH36: Trades | AI36: Volume | AJ36: Notional Value(1) | AK36: Open Interest | AL36: Trades | AM36: Volume | AN36: Notional Value(1) | AO36: Open Interest | AR36: Trades | AS36: Volume | AT36: Notional Value(1) | AU36: Open Interest | AV36: Trades | AW36: Volume | AX36: Notional Value(1) | AY36: Open Interest | AZ36: Trades | BA36: Volume | BB36: Notional Value(1) | BC36: Open Interest *
A38: 2019-01-01 | B38: 0 | C38: 0 | D38: 0 | E38: 0 | F38: 0 | G38: 0 | H38: 0 | I38: 0 | J38: 0 | K38: 0 | L38: 0 | M38: 0 | O38: 2019-01-01 | P38: 0 | Q38: 0 | R38: 0 | S38: 0 | T38: 0 | U38: 0 | V38: 0 | W38: 450 | X38: 5 | Y38: 500 | Z38: 2.2267 | AA38: 1750 | AC38: 2019-01-01 | AD38: 0 | AE38: 0 | AF38: 0 | AG38: 0 | AH38: 0 | AI38: 0 | AJ38: 0 | AK38: 0 | AL38: 2 | AM38: 200 | AN38: 17.1475 | AO38: 4100 | AQ38: 2019-01-01 | AR38: 0 | AS38: 0 | AU38: 0 | AV38: 0 | AW38: 0 | AX38: 0 | AY38: 0 | AZ38: 0 | BA38: 0 | BB38: 0 | BC38: 0
A39: 2019-02-01 | B39: 0 | C39: 0 | D39: 0 | E39: 0 | F39: 0 | G39: 0 | H39: 0 | I39: 0 | J39: 0 | K39: 0 | L39: 0 | M39: 0 | O39: 2019-02-01 | P39: 0 | Q39: 0 | R39: 0 | S39: 0 | T39: 0 | U39: 0 | V39: 0 | W39: 450 | X39: 11 | Y39: 1300 | Z39: 6.2441 | AA39: 1050 | AC39: 2019-02-01 | AD39: 0 | AE39: 0 | AF39: 0 | AG39: 0 | AH39: 0 | AI39: 0 | AJ39: 0 | AK39: 0 | AL39: 2 | AM39: 200 | AN39: 17.42 | AO39: 4100 | AQ39: 2019-02-01 | AR39: 1 | AS39: 500 | AT39: 48.9625 | AU39: 500 | AV39: 0 | AW39: 0 | AX39: 0 | AY39: 0 | AZ39: 0 | BA39: 0 | BB39: 0 | BC39: 0
A40: 2019-03-01 | B40: 0 | C40: 0 | D40: 0 | E40: 0 | F40: 0 | G40: 0 | H40: 0 | I40: 0 | J40: 0 | K40: 0 | L40: 0 | M40: 0 | O40: 2019-03-01 | P40: 1 | Q40: 500 | R40: 0.4515 | S40: 500 | T40: 4 | U40: 559 | V40: 2.797943 | W40: 109 | X40: 10 | Y40: 2650 | Z40: 13.241 | AA40: 800 | AC40: 2019-03-01 | AD40: 0 | AE40: 0 | AF40: 0 | AG40: 0 | AH40: 0 | AI40: 0 | AJ40: 0 | AK40: 0 | AL40: 2 | AM40: 8000 | AN40: 713.6 | AO40: 4000 | AQ40: 2019-03-01 | AR40: 4 | AS40: 1300 | AT40: 127.145 | AU40: 0 | AV40: 0 | AW40: 0 | AX40: 0 | AY40: 0 | AZ40: 0 | BA40: 0 | BB40: 0 | BC40: 0
A41: 2019-04-01 | B41: 0 | C41: 0 | D41: 0 | E41: 0 | F41: 0 | G41: 0 | H41: 0 | I41: 0 | J41: 0 | K41: 0 | L41: 0 | M41: 0 | O41: 2019-04-01 | P41: 2 | Q41: 200 | R41: 0.1928 | S41: 300 | T41: 0 | U41: 0 | V41: 0 | W41: 109 | X41: 3 | Y41: 450 | Z41: 2.52255 | AA41: 350 | AC41: 2019-04-01 | AD41: 0 | AE41: 0 | AF41: 0 | AG41: 0 | AH41: 0 | AI41: 0 | AJ41: 0 | AK41: 0 | AL41: 0 | AM41: 0 | AN41: 0 | AO41: 4000 | AQ41: 2019-04-01 | AR41: 1 | AS41: 500 | AT41: 48.375 | AU41: 500 | AV41: 0 | AW41: 0 | AX41: 0 | AY41: 0 | AZ41: 1 | BA41: 500 | BB41: 48.6 | BC41: 500
A42: 2019-05-01 | B42: 0 | C42: 0 | D42: 0 | E42: 0 | F42: 0 | G42: 0 | H42: 0 | I42: 0 | J42: 0 | K42: 0 | L42: 0 | M42: 0 | O42: 2019-05-01 | P42: 0 | Q42: 0 | R42: 0 | S42: 300 | T42: 0 | U42: 0 | V42: 0 | W42: 109 | X42: 8 | Y42: 850 | Z42: 4.3362 | AA42: 1000 | AC42: 2019-05-01 | AD42: 0 | AE42: 0 | AF42: 0 | AG42: 0 | AH42: 0 | AI42: 0 | AJ42: 0 | AK42: 0 | AL42: 4 | AM42: 8000 | AN42: 723.1 | AO42: 4000 | AQ42: 2019-05-01 | AR42: 0 | AS42: 0 | AT42: 0 | AU42: 500 | AV42: 0 | AW42: 0 | AX42: 0 | AY42: 0 | AZ42: 0 | BA42: 0 | BB42: 0 | BC42: 500
A43: 2019-06-01 | B43: 0 | C43: 0 | D43: 0 | E43: 0 | F43: 0 | G43: 0 | H43: 0 | I43: 0 | J43: 0 | K43: 0 | L43: 0 | M43: 0 | O43: 2019-06-01 | P43: 2 | Q43: 600 | R43: 0.4719 | S43: 300 | T43: 2 | U43: 218 | V43: 1.169897 | W43: 109 | X43: 6 | Y43: 1600 | Z43: 8.1677 | AA43: 800 | AC43: 2019-06-01 | AD43: 0 | AE43: 0 | AF43: 0 | AG43: 0 | AH43: 0 | AI43: 0 | AJ43: 0 | AK43: 0 | AL43: 0 | AM43: 0 | AN43: 0 | AO43: 4000 | AQ43: 2019-06-01 | AR43: 0 | AS43: 0 | AT43: 0 | AU43: 0 | AV43: 0 | AW43: 0 | AX43: 0 | AY43: 0 | AZ43: 0 | BA43: 0 | BB43: 0 | BC43: 0
A44: 2019-07-01 | B44: 0 | C44: 0 | D44: 0 | E44: 0 | F44: 0 | G44: 0 | H44: 0 | I44: 0 | J44: 0 | K44: 0 | L44: 0 | M44: 0 | O44: 2019-07-01 | P44: 0 | Q44: 0 | R44: 0 | S44: 300 | T44: 1 | U44: 109 | V44: 0.614433 | W44: 0 | X44: 2 | Y44: 200 | Z44: 1.0025 | AA44: 800 | AC44: 2019-07-01 | AD44: 0 | AE44: 0 | AF44: 0 | AG44: 0 | AH44: 0 | AI44: 0 | AJ44: 0 | AK44: 0 | AL44: 1 | AM44: 500 | AN44: 45.7 | AO44: 4500 | AQ44: 2019-07-01 | AR44: 0 | AS44: 0 | AT44: 0 | AU44: 0 | AV44: 0 | AW44: 0 | AX44: 0 | AY44: 0 | AZ44: 0 | BA44: 0 | BB44: 0 | BC44: 0
A45: 2019-08-01 | B45: 1 | C45: 1 | D45: 101600 | E45: 1 | F45: 0 | G45: 0 | H45: 0 | I45: 0 | J45: 0 | K45: 0 | L45: 0 | M45: 0 | O45: 2019-08-01 | P45: 1 | Q45: 100 | R45: 75800 | S45: 200 | T45: 0 | U45: 0 | V45: 0 | W45: 0 | X45: 6 | Y45: 1000 | Z45: 4.0981 | AA45: 800 | AC45: 2019-08-01 | AD45: 0 | AE45: 0 | AF45: 0 | AG45: 0 | AH45: 0 | AI45: 0 | AJ45: 0 | AK45: 0 | AL45: 1 | AM45: 500 | AN45: 47.175 | AO45: 5000 | AQ45: 2019-08-01 | AR45: 0 | AS45: 0 | AT45: 0 | AU45: 0 | AV45: 0 | AW45: 0 | AX45: 0 | AY45: 0 | AZ45: 0 | BA45: 0 | BB45: 0 | BC45: 0
A46: 2019-09-01 | B46: 1 | C46: 1 | D46: 102625 | E46: 0 | F46: 0 | G46: 0 | H46: 0 | I46: 0 | J46: 0 | K46: 0 | L46: 0 | M46: 0 | O46: 2019-09-01 | P46: 1 | Q46: 200 | R46: 158000 | S46: 0 | T46: 2 | U46: 200 | V46: 1.1351 | W46: 0 | X46: 6 | Y46: 2000 | Z46: 9.369 | AA46: 600 | AC46: 2019-09-01 | AD46: 0 | AE46: 0 | AF46: 0 | AG46: 0 | AH46: 0 | AI46: 0 | AJ46: 0 | AK46: 0 | AL46: 2 | AM46: 4300 | AN46: 403.765 | AO46: 0 | AQ46: 2019-09-01 | AR46: 2 | AS46: 600 | AT46: 63.7575 | AU46: 0 | AV46: 0 | AW46: 0 | AX46: 0 | AY46: 0 | AZ46: 0 | BA46: 0 | BB46: 0 | BC46: 0
A47: 2019-10-01 | B47: 0 | C47: 0 | D47: 0 | E47: 0 | F47: 0 | G47: 0 | H47: 0 | I47: 0 | J47: 0 | K47: 0 | L47: 0 | M47: 0 | O47: 2019-10-01 | P47: 0 | Q47: 0 | R47: 0 | S47: 0 | T47: 6 | U47: 680 | V47: 3.79872 | W47: 580 | X47: 7 | Y47: 600 | Z47: 2.8342 | AA47: 300 | AC47: 2019-10-01 | AD47: 0 | AE47: 0 | AF47: 0 | AG47: 0 | AH47: 0 | AI47: 0 | AJ47: 0 | AK47: 0 | AL47: 0 | AM47: 0 | AN47: 0 | AO47: 0 | AQ47: 2019-10-01 | AR47: 0 | AS47: 0 | AT47: 0 | AU47: 0 | AV47: 0 | AW47: 0 | AX47: 0 | AY47: 0 | AZ47: 0 | BA47: 0 | BB47: 0 | BC47: 0
A48: 2019-11-01 | B48: 0 | C48: 0 | D48: 0 | E48: 0 | F48: 0 | G48: 0 | H48: 0 | I48: 0 | J48: 0 | K48: 0 | L48: 0 | M48: 0 | O48: 2019-11-01 | P48: 2 | Q48: 300 | R48: 0.2114 | S48: 300 | T48: 13 | U48: 1026 | V48: 5.63909 | W48: 1606 | X48: 2 | Y48: 300 | Z48: 1.57155 | AA48: 0 | AC48: 2019-11-01 | AD48: 0 | AE48: 0 | AF48: 0 | AG48: 0 | AH48: 0 | AI48: 0 | AJ48: 0 | AK48: 0 | AL48: 2 | AM48: 1000 | AN48: 95.95 | AO48: 0 | AQ48: 2019-11-01 | AR48: 1 | AS48: 500 | AT48: 52.9125 | AU48: 500 | AV48: 0 | AW48: 0 | AX48: 0 | AY48: 0 | AZ48: 2 | BA48: 1000 | BB48: 103.6625 | BC48: 0
A49: 2019-12-01 | B49: 0 | C49: 0 | D49: 0 | E49: 0 | F49: 0 | G49: 0 | H49: 0 | I49: 0 | J49: 0 | K49: 0 | L49: 0 | M49: 0 | O49: 2019-12-01 | P49: 3 | Q49: 600 | R49: 0.4352 | S49: 500 | T49: 4 | U49: 3212 | V49: 18.409094 | W49: 1606 | X49: 6 | Y49: 900 | Z49: 4.7429 | AA49: 300 | AC49: 2019-12-01 | AD49: 0 | AE49: 0 | AF49: 0 | AG49: 0 | AH49: 0 | AI49: 0 | AJ49: 0 | AK49: 0 | AL49: 0 | AM49: 0 | AN49: 0 | AO49: 0 | AQ49: 2019-12-01 | AR49: 0 | AS49: 0 | AT49: 0 | AU49: 0 | AV49: 0 | AW49: 0 | AX49: 0 | AY49: 0 | AZ49: 0 | BA49: 0 | BB49: 0 | BC49: 0
A50: 2020-01-01 | B50: 0 | C50: 0 | D50: 0 | E50: 0 | F50: 0 | G50: 0 | H50: 0 | I50: 0 | J50: 0 | K50: 0 | L50: 0 | M50: 0 | O50: 2020-01-01 | P50: 2 | Q50: 500 | R50: 0.3938 | S50: 0 | T50: 9 | U50: 1106 | V50: 6.292822 | W50: 500 | X50: 8 | Y50: 650 | Z50: 3.54775 | AA50: 350 | AC50: 2020-01-01 | AD50: 0 | AE50: 0 | AF50: 0 | AG50: 0 | AH50: 0 | AI50: 0 | AJ50: 0 | AK50: 0 | AL50: 0 | AM50: 0 | AN50: 0 | AO50: 0 | AQ50: 2020-01-01 | AR50: 0 | AS50: 0 | AT50: 0 | AU50: 0 | AV50: 0 | AW50: 0 | AX50: 0 | AY50: 0 | AZ50: 0 | BA50: 0 | BB50: 0 | BC50: 0
A51: 2020-02-01 | B51: =VLOOKUP("22020M3",'[1]Pegar datos'!$C$1406:$L$1893,3,0) -> 0 | C51: =VLOOKUP("22020M3",'[1]Pegar datos'!$C$1406:$L$1893,4,0) -> 0 | D51: =VLOOKUP("22020M3",'[1]Pegar datos'!$C$1406:$L$1893,5,0)/1000000 -> 0 | E51: =VLOOKUP("22020M3",'[1]Pegar datos'!$C$1406:$L$1893,6,0) -> 0 | F51: =VLOOKUP("22020M10",'[1]Pegar datos'!$C$1406:$L$1893,3,0) -> 0 | G51: =VLOOKUP("22020M10",'[1]Pegar datos'!$C$1406:$L$1893,4,0) -> 0 | H51: =VLOOKUP("22020M10",'[1]Pegar datos'!$C$1406:$L$1893,5,0)/1000000 -> 0 | I51: =VLOOKUP("22020M10",'[1]Pegar datos'!$C$1406:$L$1893,6,0) -> 0 | J51: =VLOOKUP("22020M20",'[1]Pegar datos'!$C$1406:$L$1893,3,0) -> 0 | K51: =VLOOKUP("22020M20",'[1]Pegar datos'!$C$1406:$L$1893,4,0) -> 0 | L51: =VLOOKUP("22020M20",'[1]Pegar datos'!$C$1406:$L$1893,5,0)/1000000 -> 0 | M51: =VLOOKUP("22020M20",'[1]Pegar datos'!$C$1406:$L$1893,6,0) -> 0 | O51: 2020-02-01 | P51: =VLOOKUP("22020CEMEX",'[1]Pegar datos'!$C$1406:$L$1893,3,0) -> 0 | Q51: =VLOOKUP("22020CEMEX",'[1]Pegar datos'!$C$1406:$L$1893,4,0) -> 0 | R51: =VLOOKUP("22020CEMEX",'[1]Pegar datos'!$C$1406:$L$1893,5,0)/1000000 -> 0 | S51: =VLOOKUP("22020CEMEX",'[1]Pegar datos'!$C$1406:$L$1893,6,0) -> 0 | T51: =VLOOKUP("22020WALMART",'[1]Pegar datos'!$C$1406:$L$1893,3,0) -> 3 | U51: =VLOOKUP("22020WALMART",'[1]Pegar datos'!$C$1406:$L$1893,4,0) -> 300 | V51: =VLOOKUP("22020WALMART",'[1]Pegar datos'!$C$1406:$L$1893,5,0)/1000000 -> 1.7467 | W51: =VLOOKUP("22020WALMART",'[1]Pegar datos'!$C$1406:$L$1893,6,0) -> 200 | X51: =VLOOKUP("22020GMEXICO",'[1]Pegar datos'!$C$1406:$L$1893,3,0) -> 6 | Y51: =VLOOKUP("22020GMEXICO",'[1]Pegar datos'!$C$1406:$L$1893,4,0) -> 650 | Z51: =VLOOKUP("22020GMEXICO",'[1]Pegar datos'!$C$1406:$L$1893,5,0)/1000000 -> 3.174 | AA51: =VLOOKUP("22020GMEXICO",'[1]Pegar datos'!$C$1406:$L$1893,6,0) -> 700 | AC51: 2020-02-01 | AD51: =VLOOKUP("22020GCARSO",'[1]Pegar datos'!$C$1406:$L$1893,3,0) -> 0 | AE51: =VLOOKUP("22020GCARSO",'[1]Pegar datos'!$C$1406:$L$1893,4,0) -> 0 | AF51: =VLOOKUP("22020GCARSO",'[1]Pegar datos'!$C$1406:$L$1893,5,0)/1000000 -> 0 | AG51: =VLOOKUP("22020GCARSO",'[1]Pegar datos'!$C$1406:$L$1893,6,0) -> 0 | AH51: =VLOOKUP("22020FEMSA",'[1]Pegar datos'!$C$1406:$L$1893,3,0) -> 0 | AI51: =VLOOKUP("22020FEMSA",'[1]Pegar datos'!$C$1406:$L$1893,4,0) -> 0 | AJ51: =VLOOKUP("22020FEMSA",'[1]Pegar datos'!$C$1406:$L$1893,5,0)/1000000 -> 0 | AK51: =VLOOKUP("22020FEMSA",'[1]Pegar datos'!$C$1406:$L$1893,6,0) -> 0 | AL51: =VLOOKUP("22020MR26",'[1]Pegar datos'!$C$1406:$L$1893,3,0) -> 0 | AM51: =VLOOKUP("22020MR26",'[1]Pegar datos'!$C$1406:$L$1893,4,0) -> 0 | AN51: =VLOOKUP("22020MR26",'[1]Pegar datos'!$C$1406:$L$1893,5,0)/1000000 -> 0 | AO51: =VLOOKUP("22020MR26",'[1]Pegar datos'!$C$1406:$L$1893,6,0) -> 0 | AQ51: 2020-02-01 | AR51: =VLOOKUP("22020MY31",'[1]Pegar datos'!$C$1406:$L$1893,3,0) -> 0 | AS51: =VLOOKUP("22020MY31",'[1]Pegar datos'!$C$1406:$L$1893,4,0) -> 0 | AT51: =VLOOKUP("22020MY31",'[1]Pegar datos'!$C$1406:$L$1893,5,0)/1000000 -> 0 | AU51: =VLOOKUP("22020MY31",'[1]Pegar datos'!$C$1406:$L$1893,6,0) -> 0 | AV51: =VLOOKUP("22020MY31",'[1]Pegar datos'!$C$1406:$L$1893,3,0) -> 0 | AW51: =VLOOKUP("22020MY31",'[1]Pegar datos'!$C$1406:$L$1893,4,0) -> 0 | AX51: =VLOOKUP("22020MY31",'[1]Pegar datos'!$C$1406:$L$1893,5,0)/1000000 -> 0 | AY51: =VLOOKUP("22020MY31",'[1]Pegar datos'!$C$1406:$L$1893,6,0) -> 0 | AZ51: =VLOOKUP("22020JN27",'[1]Pegar datos'!$C$1406:$L$1893,3,0) -> 0 | BA51: =VLOOKUP("22020JN27",'[1]Pegar datos'!$C$1406:$L$1893,4,0) -> 0 | BB51: =VLOOKUP("22020JN27",'[1]Pegar datos'!$C$1406:$L$1893,5,0)/1000000 -> 0 | BC51: =VLOOKUP("22020JN27",'[1]Pegar datos'!$C$1406:$L$1893,6,0) -> 0
A52: 2020-03-01 | B52: =VLOOKUP("32020M3",'[2]Pegar datos'!$C$1406:$L$1894,3,0) -> 0 | C52: =VLOOKUP("32020M3",'[2]Pegar datos'!$C$1406:$L$1894,4,0) -> 0 | D52: =VLOOKUP("32020M3",'[2]Pegar datos'!$C$1406:$L$1894,5,0)/1000000 -> 0 | E52: =VLOOKUP("32020M3",'[2]Pegar datos'!$C$1406:$L$1894,6,0) -> 0 | F52: =VLOOKUP("32020M10",'[2]Pegar datos'!$C$1406:$L$1894,3,0) -> 0 | G52: =VLOOKUP("32020M10",'[2]Pegar datos'!$C$1406:$L$1894,4,0) -> 0 | H52: =VLOOKUP("32020M10",'[2]Pegar datos'!$C$1406:$L$1894,5,0)/1000000 -> 0 | I52: =VLOOKUP("32020M10",'[2]Pegar datos'!$C$1406:$L$1894,6,0) -> 0 | J52: =VLOOKUP("32020M20",'[2]Pegar datos'!$C$1406:$L$1894,3,0) -> 0 | K52: =VLOOKUP("32020M20",'[2]Pegar datos'!$C$1406:$L$1894,4,0) -> 0 | L52: =VLOOKUP("32020M20",'[2]Pegar datos'!$C$1406:$L$1894,5,0)/1000000 -> 0 | M52: =VLOOKUP("32020M20",'[2]Pegar datos'!$C$1406:$L$1894,6,0) -> 0 | O52: 2020-03-01 | P52: =VLOOKUP("32020CEMEX",'[2]Pegar datos'!$C$1406:$L$1894,3,0) -> 4 | Q52: =VLOOKUP("32020CEMEX",'[2]Pegar datos'!$C$1406:$L$1894,4,0) -> 1200 | R52: =VLOOKUP("32020CEMEX",'[2]Pegar datos'!$C$1406:$L$1894,5,0)/1000000 -> 0.6804 | S52: =VLOOKUP("32020CEMEX",'[2]Pegar datos'!$C$1406:$L$1894,6,0) -> 1000 | T52: =VLOOKUP("32020WALMART",'[2]Pegar datos'!$C$1406:$L$1894,3,0) -> 13 | U52: =VLOOKUP("32020WALMART",'[2]Pegar datos'!$C$1406:$L$1894,4,0) -> 1800 | V52: =VLOOKUP("32020WALMART",'[2]Pegar datos'!$C$1406:$L$1894,5,0)/1000000 -> 10.2658 | W52: =VLOOKUP("32020WALMART",'[2]Pegar datos'!$C$1406:$L$1894,6,0) -> 0 | X52: =VLOOKUP("32020GMEXICO",'[2]Pegar datos'!$C$1406:$L$1894,3,0) -> 19 | Y52: =VLOOKUP("32020GMEXICO",'[2]Pegar datos'!$C$1406:$L$1894,4,0) -> 2200 | Z52: =VLOOKUP("32020GMEXICO",'[2]Pegar datos'!$C$1406:$L$1894,5,0)/1000000 -> 9.1842 | AA52: =VLOOKUP("32020GMEXICO",'[2]Pegar datos'!$C$1406:$L$1894,6,0) -> 500 | AC52: 2020-03-01 | AD52: =VLOOKUP("32020GCARSO",'[2]Pegar datos'!$C$1406:$L$1894,3,0) -> 0 | AE52: =VLOOKUP("32020GCARSO",'[2]Pegar datos'!$C$1406:$L$1894,4,0) -> 0 | AF52: =VLOOKUP("32020GCARSO",'[2]Pegar datos'!$C$1406:$L$1894,5,0)/1000000 -> 0 | AG52: =VLOOKUP("32020GCARSO",'[2]Pegar datos'!$C$1406:$L$1894,6,0) -> 0 | AH52: =VLOOKUP("32020FEMSA",'[2]Pegar datos'!$C$1406:$L$1894,3,0) -> 0 | AI52: =VLOOKUP("32020FEMSA",'[2]Pegar datos'!$C$1406:$L$1894,4,0) -> 0 | AJ52: =VLOOKUP("32020FEMSA",'[2]Pegar datos'!$C$1406:$L$1894,5,0)/1000000 -> 0 | AK52: =VLOOKUP("32020FEMSA",'[2]Pegar datos'!$C$1406:$L$1894,6,0) -> 0 | AL52: =VLOOKUP("32020MR26",'[2]Pegar datos'!$C$1406:$L$1894,3,0) -> 0 | AM52: =VLOOKUP("32020MR26",'[2]Pegar datos'!$C$1406:$L$1894,4,0) -> 0 | AN52: =VLOOKUP("32020MR26",'[2]Pegar datos'!$C$1406:$L$1894,5,0)/1000000 -> 0 | AO52: =VLOOKUP("32020MR26",'[2]Pegar datos'!$C$1406:$L$1894,6,0) -> 0 | AQ52: 2020-03-01 | AR52: =VLOOKUP("32020MY31",'[2]Pegar datos'!$C$1406:$L$1894,3,0) -> 0 | AS52: =VLOOKUP("32020MY31",'[2]Pegar datos'!$C$1406:$L$1894,4,0) -> 0 | AT52: =VLOOKUP("32020MY31",'[2]Pegar datos'!$C$1406:$L$1894,5,0)/1000000 -> 0 | AU52: =VLOOKUP("32020MY31",'[2]Pegar datos'!$C$1406:$L$1894,6,0) -> 0 | AV52: =VLOOKUP("32020MY31",'[2]Pegar datos'!$C$1406:$L$1894,3,0) -> 0 | AW52: =VLOOKUP("32020MY31",'[2]Pegar datos'!$C$1406:$L$1894,4,0) -> 0 | AX52: =VLOOKUP("32020MY31",'[2]Pegar datos'!$C$1406:$L$1894,5,0)/1000000 -> 0 | AY52: =VLOOKUP("32020MY31",'[2]Pegar datos'!$C$1406:$L$1894,6,0) -> 0 | AZ52: =VLOOKUP("32020JN27",'[2]Pegar datos'!$C$1406:$L$1894,3,0) -> 0 | BA52: =VLOOKUP("32020JN27",'[2]Pegar datos'!$C$1406:$L$1894,4,0) -> 0 | BB52: =VLOOKUP("32020JN27",'[2]Pegar datos'!$C$1406:$L$1894,5,0)/1000000 -> 0 | BC52: =VLOOKUP("32020JN27",'[2]Pegar datos'!$C$1406:$L$1894,6,0) -> 0
A53: 2020-04-01 | B53: 0 | C53: 0 | D53: 0 | E53: 0 | F53: 0 | G53: 0 | H53: 0 | I53: 0 | J53: 0 | K53: 0 | L53: 0 | M53: 0 | O53: 2020-04-01 | P53: 2 | Q53: 400 | R53: 0.205 | S53: 600 | T53: 0 | U53: 0 | V53: 0 | W53: 0 | X53: 4 | Y53: 600 | Z53: 2.7164 | AA53: 300 | AC53: 2020-04-01 | AD53: 0 | AE53: 0 | AF53: 0 | AG53: 0 | AH53: 0 | AI53: 0 | AJ53: 0 | AK53: 0 | AL53: 0 | AM53: 0 | AN53: 0 | AO53: 0 | AQ53: 2020-04-01 | AR53: =VLOOKUP("32020MY31",'[2]Pegar datos'!$C$1406:$L$1894,3,0) -> 0 | AS53: =VLOOKUP("32020MY31",'[2]Pegar datos'!$C$1406:$L$1894,4,0) -> 0 | AT53: =VLOOKUP("32020MY31",'[2]Pegar datos'!$C$1406:$L$1894,5,0)/1000000 -> 0 | AU53: =VLOOKUP("32020MY31",'[2]Pegar datos'!$C$1406:$L$1894,6,0) -> 0 | AV53: =VLOOKUP("32020MY31",'[2]Pegar datos'!$C$1406:$L$1894,3,0) -> 0 | AW53: =VLOOKUP("32020MY31",'[2]Pegar datos'!$C$1406:$L$1894,4,0) -> 0 | AX53: =VLOOKUP("32020MY31",'[2]Pegar datos'!$C$1406:$L$1894,5,0)/1000000 -> 0 | AY53: =VLOOKUP("32020MY31",'[2]Pegar datos'!$C$1406:$L$1894,6,0) -> 0 | AZ53: =VLOOKUP("32020JN27",'[2]Pegar datos'!$C$1406:$L$1894,3,0) -> 0 | BA53: =VLOOKUP("32020JN27",'[2]Pegar datos'!$C$1406:$L$1894,4,0) -> 0 | BB53: =VLOOKUP("32020JN27",'[2]Pegar datos'!$C$1406:$L$1894,5,0)/1000000 -> 0 | BC53: =VLOOKUP("32020JN27",'[2]Pegar datos'!$C$1406:$L$1894,6,0) -> 0
A54: 2020-05-01 | B54: =VLOOKUP("52020M3",'[3]Pegar datos'!$C$1407:$L$1898,3,0) -> 0 | C54: =VLOOKUP("52020M3",'[3]Pegar datos'!$C$1407:$L$1898,4,0) -> 0 | D54: =VLOOKUP("52020M3",'[3]Pegar datos'!$C$1407:$L$1898,5,0)/1000000 -> 0 | E54: =VLOOKUP("52020M3",'[3]Pegar datos'!$C$1407:$L$1898,6,0) -> 0 | F54: =VLOOKUP("52020M10",'[3]Pegar datos'!$C$1407:$L$1898,3,0) -> 0 | G54: =VLOOKUP("52020M10",'[3]Pegar datos'!$C$1407:$L$1898,4,0) -> 0 | H54: =VLOOKUP("52020M10",'[3]Pegar datos'!$C$1407:$L$1898,5,0)/1000000 -> 0 | I54: =VLOOKUP("52020M10",'[3]Pegar datos'!$C$1407:$L$1898,6,0) -> 0 | J54: =VLOOKUP("52020M20",'[3]Pegar datos'!$C$1407:$L$1898,3,0) -> 0 | K54: =VLOOKUP("52020M20",'[3]Pegar datos'!$C$1407:$L$1898,4,0) -> 0 | L54: =VLOOKUP("52020M20",'[3]Pegar datos'!$C$1407:$L$1898,5,0)/1000000 -> 0 | M54: =VLOOKUP("52020M20",'[3]Pegar datos'!$C$1407:$L$1898,6,0) -> 0 | O54: 2020-05-01 | P54: =VLOOKUP("52020CEMEX",'[3]Pegar datos'!$C$1407:$L$1898,3,0) -> 0 | Q54: =VLOOKUP("52020CEMEX",'[3]Pegar datos'!$C$1407:$L$1898,4,0) -> 0 | R54: =VLOOKUP("52020CEMEX",'[3]Pegar datos'!$C$1407:$L$1898,5,0)/1000000 -> 0 | S54: =VLOOKUP("52020CEMEX",'[3]Pegar datos'!$C$1407:$L$1898,6,0) -> 600 | T54: =VLOOKUP("52020WALMART",'[3]Pegar datos'!$C$1407:$L$1898,3,0) -> 0 | U54: =VLOOKUP("52020WALMART",'[3]Pegar datos'!$C$1407:$L$1898,4,0) -> 0 | V54: =VLOOKUP("52020WALMART",'[3]Pegar datos'!$C$1407:$L$1898,5,0)/1000000 -> 0 | W54: =VLOOKUP("52020WALMART",'[3]Pegar datos'!$C$1407:$L$1898,6,0) -> 0 | X54: =VLOOKUP("52020GMEXICO",'[3]Pegar datos'!$C$1407:$L$1898,3,0) -> 1 | Y54: =VLOOKUP("52020GMEXICO",'[3]Pegar datos'!$C$1407:$L$1898,4,0) -> 100 | Z54: =VLOOKUP("52020GMEXICO",'[3]Pegar datos'!$C$1407:$L$1898,5,0)/1000000 -> 0.5024 | AA54: =VLOOKUP("52020GMEXICO",'[3]Pegar datos'!$C$1407:$L$1898,6,0) -> 400 | AC54: 2020-05-01 | AD54: =VLOOKUP("52020GCARSO",'[3]Pegar datos'!$C$1407:$L$1898,3,0) -> 0 | AE54: =VLOOKUP("52020GCARSO",'[3]Pegar datos'!$C$1407:$L$1898,4,0) -> 0 | AF54: =VLOOKUP("52020GCARSO",'[3]Pegar datos'!$C$1407:$L$1898,5,0)/1000000 -> 0 | AG54: =VLOOKUP("52020GCARSO",'[3]Pegar datos'!$C$1407:$L$1898,6,0) -> 0 | AH54: =VLOOKUP("52020FEMSA",'[3]Pegar datos'!$C$1407:$L$1898,3,0) -> 0 | AI54: =VLOOKUP("52020FEMSA",'[3]Pegar datos'!$C$1407:$L$1898,4,0) -> 0 | AJ54: =VLOOKUP("52020FEMSA",'[3]Pegar datos'!$C$1407:$L$1898,5,0)/1000000 -> 0 | AK54: =VLOOKUP("52020FEMSA",'[3]Pegar datos'!$C$1407:$L$1898,6,0) -> 0 | AL54: =VLOOKUP("52020MR26",'[3]Pegar datos'!$C$1407:$L$1898,3,0) -> 0 | AM54: =VLOOKUP("52020MR26",'[3]Pegar datos'!$C$1407:$L$1898,4,0) -> 0 | AN54: =VLOOKUP("52020MR26",'[3]Pegar datos'!$C$1407:$L$1898,5,0)/1000000 -> 0 | AO54: =VLOOKUP("52020MR26",'[3]Pegar datos'!$C$1407:$L$1898,6,0) -> 0 | AQ54: 2020-05-01 | AR54: =VLOOKUP("52020MY31",'[3]Pegar datos'!$C$1407:$L$1898,3,0) -> 0 | AS54: =VLOOKUP("52020MY31",'[3]Pegar datos'!$C$1407:$L$1898,4,0) -> 0 | AT54: =VLOOKUP("52020MY31",'[3]Pegar datos'!$C$1407:$L$1898,5,0)/1000000 -> 0 | AU54: =VLOOKUP("52020MY31",'[3]Pegar datos'!$C$1407:$L$1898,6,0) -> 0 | AV54: =VLOOKUP("52020MY31",'[3]Pegar datos'!$C$1407:$L$1898,3,0) -> 0 | AW54: =VLOOKUP("52020MY31",'[3]Pegar datos'!$C$1407:$L$1898,4,0) -> 0 | AX54: =VLOOKUP("52020MY31",'[3]Pegar datos'!$C$1407:$L$1898,5,0)/1000000 -> 0 | AY54: =VLOOKUP("52020MY31",'[3]Pegar datos'!$C$1407:$L$1898,6,0) -> 0 | AZ54: =VLOOKUP("52020JN27",'[3]Pegar datos'!$C$1407:$L$1898,3,0) -> 0 | BA54: =VLOOKUP("52020JN27",'[3]Pegar datos'!$C$1407:$L$1898,4,0) -> 0 | BB54: =VLOOKUP("52020JN27",'[3]Pegar datos'!$C$1407:$L$1898,5,0)/1000000 -> 0 | BC54: =VLOOKUP("52020JN27",'[3]Pegar datos'!$C$1407:$L$1898,6,0) -> 0
A55: 2020-06-01 | B55: =VLOOKUP("62020M3",'[4]Pegar datos'!$C$1409:$L$1900,3,0) -> 0 | C55: =VLOOKUP("62020M3",'[4]Pegar datos'!$C$1409:$L$1900,4,0) -> 0 | D55: =VLOOKUP("62020M3",'[4]Pegar datos'!$C$1409:$L$1900,5,0)/1000000 -> 0 | E55: =VLOOKUP("62020M3",'[4]Pegar datos'!$C$1409:$L$1900,6,0) -> 0 | F55: =VLOOKUP("62020M10",'[4]Pegar datos'!$C$1409:$L$1900,3,0) -> 0 | G55: =VLOOKUP("62020M10",'[4]Pegar datos'!$C$1409:$L$1900,4,0) -> 0 | H55: =VLOOKUP("62020M10",'[4]Pegar datos'!$C$1409:$L$1900,5,0)/1000000 -> 0 | I55: =VLOOKUP("62020M10",'[4]Pegar datos'!$C$1409:$L$1900,6,0) -> 0 | J55: =VLOOKUP("62020M20",'[4]Pegar datos'!$C$1409:$L$1900,3,0) -> 0 | K55: =VLOOKUP("62020M20",'[4]Pegar datos'!$C$1409:$L$1900,4,0) -> 0 | L55: =VLOOKUP("62020M20",'[4]Pegar datos'!$C$1409:$L$1900,5,0)/1000000 -> 0 | M55: =VLOOKUP("62020M20",'[4]Pegar datos'!$C$1409:$L$1900,6,0) -> 0 | O55: 2020-06-01 | P55: =VLOOKUP("62020CEMEX",'[4]Pegar datos'!$C$1409:$L$1900,3,0) -> 3 | Q55: =VLOOKUP("62020CEMEX",'[4]Pegar datos'!$C$1409:$L$1900,4,0) -> 600 | R55: =VLOOKUP("62020CEMEX",'[4]Pegar datos'!$C$1409:$L$1900,5,0)/1000000 -> 0.365 | S55: =VLOOKUP("62020CEMEX",'[4]Pegar datos'!$C$1409:$L$1900,6,0) -> 0 | T55: =VLOOKUP("62020WALMART",'[4]Pegar datos'!$C$1409:$L$1900,3,0) -> 0 | U55: =VLOOKUP("62020WALMART",'[4]Pegar datos'!$C$1409:$L$1900,4,0) -> 0 | V55: =VLOOKUP("62020WALMART",'[4]Pegar datos'!$C$1409:$L$1900,5,0)/1000000 -> 0 | W55: =VLOOKUP("62020WALMART",'[4]Pegar datos'!$C$1409:$L$1900,6,0) -> 0 | X55: =VLOOKUP("62020GMEXICO",'[4]Pegar datos'!$C$1409:$L$1900,3,0) -> 0 | Y55: =VLOOKUP("62020GMEXICO",'[4]Pegar datos'!$C$1409:$L$1900,4,0) -> 0 | Z55: =VLOOKUP("62020GMEXICO",'[4]Pegar datos'!$C$1409:$L$1900,5,0)/1000000 -> 0 | AA55: =VLOOKUP("62020GMEXICO",'[4]Pegar datos'!$C$1409:$L$1900,6,0) -> 0 | AC55: 2020-06-01 | AD55: =VLOOKUP("62020GCARSO",'[4]Pegar datos'!$C$1409:$L$1900,3,0) -> 2 | AE55: =VLOOKUP("62020GCARSO",'[4]Pegar datos'!$C$1409:$L$1900,4,0) -> 300 | AF55: =VLOOKUP("62020GCARSO",'[4]Pegar datos'!$C$1409:$L$1900,5,0)/1000000 -> 1.574 | AG55: =VLOOKUP("62020GCARSO",'[4]Pegar datos'!$C$1409:$L$1900,6,0) -> 100 | AH55: =VLOOKUP("62020FEMSA",'[4]Pegar datos'!$C$1409:$L$1900,3,0) -> 0 | AI55: =VLOOKUP("62020FEMSA",'[4]Pegar datos'!$C$1409:$L$1900,4,0) -> 0 | AJ55: =VLOOKUP("62020FEMSA",'[4]Pegar datos'!$C$1409:$L$1900,5,0)/1000000 -> 0 | AK55: =VLOOKUP("62020FEMSA",'[4]Pegar datos'!$C$1409:$L$1900,6,0) -> 0 | AL55: =VLOOKUP("62020MR26",'[4]Pegar datos'!$C$1409:$L$1900,3,0) -> 0 | AM55: =VLOOKUP("62020MR26",'[4]Pegar datos'!$C$1409:$L$1900,4,0) -> 0 | AN55: =VLOOKUP("62020MR26",'[4]Pegar datos'!$C$1409:$L$1900,5,0)/1000000 -> 0 | AO55: =VLOOKUP("62020MR26",'[4]Pegar datos'!$C$1409:$L$1900,6,0) -> 0 | AQ55: 2020-06-01 | AR55: =VLOOKUP("62020MY31",'[4]Pegar datos'!$C$1409:$L$1900,3,0) -> 0 | AS55: =VLOOKUP("62020MY31",'[4]Pegar datos'!$C$1409:$L$1900,4,0) -> 0 | AT55: =VLOOKUP("62020MY31",'[4]Pegar datos'!$C$1409:$L$1900,5,0)/1000000 -> 0 | AU55: =VLOOKUP("62020MY31",'[4]Pegar datos'!$C$1409:$L$1900,6,0) -> 0 | AV55: =VLOOKUP("62020MY31",'[4]Pegar datos'!$C$1409:$L$1900,3,0) -> 0 | AW55: =VLOOKUP("62020MY31",'[4]Pegar datos'!$C$1409:$L$1900,4,0) -> 0 | AX55: =VLOOKUP("62020MY31",'[4]Pegar datos'!$C$1409:$L$1900,5,0)/1000000 -> 0 | AY55: =VLOOKUP("62020MY31",'[4]Pegar datos'!$C$1409:$L$1900,6,0) -> 0 | AZ55: =VLOOKUP("62020JN27",'[4]Pegar datos'!$C$1409:$L$1900,3,0) -> 0 | BA55: =VLOOKUP("62020JN27",'[4]Pegar datos'!$C$1409:$L$1900,4,0) -> 0 | BB55: =VLOOKUP("62020JN27",'[4]Pegar datos'!$C$1409:$L$1900,5,0)/1000000 -> 0 | BC55: =VLOOKUP("62020JN27",'[4]Pegar datos'!$C$1409:$L$1900,6,0) -> 0
A56: 2020-07-01 | B56: =VLOOKUP("72020M3",'[5]Pegar datos'!$C$1409:$L$1903,3,0) -> 0 | C56: =VLOOKUP("72020M3",'[5]Pegar datos'!$C$1409:$L$1903,4,0) -> 0 | D56: =VLOOKUP("72020M3",'[5]Pegar datos'!$C$1409:$L$1903,5,0)/1000000 -> 0 | E56: =VLOOKUP("72020M3",'[5]Pegar datos'!$C$1409:$L$1903,6,0) -> 0 | F56: =VLOOKUP("72020M10",'[5]Pegar datos'!$C$1409:$L$1903,3,0) -> 0 | G56: =VLOOKUP("72020M10",'[5]Pegar datos'!$C$1409:$L$1903,4,0) -> 0 | H56: =VLOOKUP("72020M10",'[5]Pegar datos'!$C$1409:$L$1903,5,0)/1000000 -> 0 | I56: =VLOOKUP("72020M10",'[5]Pegar datos'!$C$1409:$L$1903,6,0) -> 0 | J56: =VLOOKUP("72020M20",'[5]Pegar datos'!$C$1409:$L$1903,3,0) -> 0 | K56: =VLOOKUP("72020M20",'[5]Pegar datos'!$C$1409:$L$1903,4,0) -> 0 | L56: =VLOOKUP("72020M20",'[5]Pegar datos'!$C$1409:$L$1903,5,0)/1000000 -> 0 | M56: =VLOOKUP("72020M20",'[5]Pegar datos'!$C$1409:$L$1903,6,0) -> 0 | O56: 2020-07-01 | P56: =VLOOKUP("72020CEMEX",'[5]Pegar datos'!$C$1409:$L$1903,3,0) -> 0 | Q56: =VLOOKUP("72020CEMEX",'[5]Pegar datos'!$C$1409:$L$1903,4,0) -> 0 | R56: =VLOOKUP("72020CEMEX",'[5]Pegar datos'!$C$1409:$L$1903,5,0)/1000000 -> 0 | S56: =VLOOKUP("72020CEMEX",'[5]Pegar datos'!$C$1409:$L$1903,6,0) -> 0 | T56: =VLOOKUP("72020WALMART",'[5]Pegar datos'!$C$1409:$L$1903,3,0) -> 0 | U56: =VLOOKUP("72020WALMART",'[5]Pegar datos'!$C$1409:$L$1903,4,0) -> 0 | V56: =VLOOKUP("72020WALMART",'[5]Pegar datos'!$C$1409:$L$1903,5,0)/1000000 -> 0 | W56: =VLOOKUP("72020WALMART",'[5]Pegar datos'!$C$1409:$L$1903,6,0) -> 0 | X56: =VLOOKUP("72020GMEXICO",'[5]Pegar datos'!$C$1409:$L$1903,3,0) -> 1 | Y56: =VLOOKUP("72020GMEXICO",'[5]Pegar datos'!$C$1409:$L$1903,4,0) -> 100 | Z56: =VLOOKUP("72020GMEXICO",'[5]Pegar datos'!$C$1409:$L$1903,5,0)/1000000 -> 0.5599 | AA56: =VLOOKUP("72020GMEXICO",'[5]Pegar datos'!$C$1409:$L$1903,6,0) -> 0 | AC56: 2020-07-01 | AD56: =VLOOKUP("72020GCARSO",'[5]Pegar datos'!$C$1409:$L$1903,3,0) -> 0 | AE56: =VLOOKUP("72020GCARSO",'[5]Pegar datos'!$C$1409:$L$1903,4,0) -> 0 | AF56: =VLOOKUP("72020GCARSO",'[5]Pegar datos'!$C$1409:$L$1903,5,0)/1000000 -> 0 | AG56: =VLOOKUP("72020GCARSO",'[5]Pegar datos'!$C$1409:$L$1903,6,0) -> 0 | AH56: =VLOOKUP("72020FEMSA",'[5]Pegar datos'!$C$1409:$L$1903,3,0) -> 0 | AI56: =VLOOKUP("72020FEMSA",'[5]Pegar datos'!$C$1409:$L$1903,4,0) -> 0 | AJ56: =VLOOKUP("72020FEMSA",'[5]Pegar datos'!$C$1409:$L$1903,5,0)/1000000 -> 0 | AK56: =VLOOKUP("72020FEMSA",'[5]Pegar datos'!$C$1409:$L$1903,6,0) -> 0 | AL56: =VLOOKUP("72020MR26",'[5]Pegar datos'!$C$1409:$L$1903,3,0) -> 0 | AM56: =VLOOKUP("72020MR26",'[5]Pegar datos'!$C$1409:$L$1903,4,0) -> 0 | AN56: =VLOOKUP("72020MR26",'[5]Pegar datos'!$C$1409:$L$1903,5,0)/1000000 -> 0 | AO56: =VLOOKUP("72020MR26",'[5]Pegar datos'!$C$1409:$L$1903,6,0) -> 0 | AQ56: 2020-07-01 | AR56: =VLOOKUP("72020MY31",'[5]Pegar datos'!$C$1409:$L$1903,3,0) -> 0 | AS56: =VLOOKUP("72020MY31",'[5]Pegar datos'!$C$1409:$L$1903,4,0) -> 0 | AT56: =VLOOKUP("72020MY31",'[5]Pegar datos'!$C$1409:$L$1903,5,0)/1000000 -> 0 | AU56: =VLOOKUP("72020MY31",'[5]Pegar datos'!$C$1409:$L$1903,6,0) -> 0 | AV56: =VLOOKUP("72020MY31",'[5]Pegar datos'!$C$1409:$L$1903,3,0) -> 0 | AW56: =VLOOKUP("72020MY31",'[5]Pegar datos'!$C$1409:$L$1903,4,0) -> 0 | AX56: =VLOOKUP("72020MY31",'[5]Pegar datos'!$C$1409:$L$1903,5,0)/1000000 -> 0 | AY56: =VLOOKUP("72020MY31",'[5]Pegar datos'!$C$1409:$L$1903,6,0) -> 0 | AZ56: =VLOOKUP("72020JN27",'[5]Pegar datos'!$C$1409:$L$1903,3,0) -> 0 | BA56: =VLOOKUP("72020JN27",'[5]Pegar datos'!$C$1409:$L$1903,4,0) -> 0 | BB56: =VLOOKUP("72020JN27",'[5]Pegar datos'!$C$1409:$L$1903,5,0)/1000000 -> 0 | BC56: =VLOOKUP("72020JN27",'[5]Pegar datos'!$C$1409:$L$1903,6,0) -> 0
A57: 2020-08-01 | B57: =VLOOKUP("82020M3",'[6]Pegar datos'!$C$1409:$L$1906,3,0) -> 0 | C57: =VLOOKUP("82020M3",'[6]Pegar datos'!$C$1409:$L$1906,4,0) -> 0 | D57: =VLOOKUP("82020M3",'[6]Pegar datos'!$C$1409:$L$1906,5,0)/1000000 -> 0 | E57: =VLOOKUP("82020M3",'[6]Pegar datos'!$C$1409:$L$1906,6,0) -> 0 | F57: =VLOOKUP("82020M10",'[6]Pegar datos'!$C$1409:$L$1906,3,0) -> 0 | G57: =VLOOKUP("82020M10",'[6]Pegar datos'!$C$1409:$L$1906,4,0) -> 0 | H57: =VLOOKUP("82020M10",'[6]Pegar datos'!$C$1409:$L$1906,5,0)/1000000 -> 0 | I57: =VLOOKUP("82020M10",'[6]Pegar datos'!$C$1409:$L$1906,6,0) -> 0 | J57: =VLOOKUP("82020M20",'[6]Pegar datos'!$C$1409:$L$1906,3,0) -> 0 | K57: =VLOOKUP("82020M20",'[6]Pegar datos'!$C$1409:$L$1906,4,0) -> 0 | L57: =VLOOKUP("82020M20",'[6]Pegar datos'!$C$1409:$L$1906,5,0)/1000000 -> 0 | M57: =VLOOKUP("82020M20",'[6]Pegar datos'!$C$1409:$L$1906,6,0) -> 0 | O57: 2020-08-01 | P57: =VLOOKUP("82020CEMEX",'[6]Pegar datos'!$C$1409:$L$1906,3,0) -> 0 | Q57: =VLOOKUP("82020CEMEX",'[6]Pegar datos'!$C$1409:$L$1906,4,0) -> 0 | R57: =VLOOKUP("82020CEMEX",'[6]Pegar datos'!$C$1409:$L$1906,5,0)/1000000 -> 0 | S57: =VLOOKUP("82020CEMEX",'[6]Pegar datos'!$C$1409:$L$1906,6,0) -> 0 | T57: =VLOOKUP("82020WALMART",'[6]Pegar datos'!$C$1409:$L$1906,3,0) -> 1 | U57: =VLOOKUP("82020WALMART",'[6]Pegar datos'!$C$1409:$L$1906,4,0) -> 250 | V57: =VLOOKUP("82020WALMART",'[6]Pegar datos'!$C$1409:$L$1906,5,0)/1000000 -> 1.297 | W57: =VLOOKUP("82020WALMART",'[6]Pegar datos'!$C$1409:$L$1906,6,0) -> 250 | X57: =VLOOKUP("82020GMEXICO",'[6]Pegar datos'!$C$1409:$L$1906,3,0) -> 1 | Y57: =VLOOKUP("82020GMEXICO",'[6]Pegar datos'!$C$1409:$L$1906,4,0) -> 100 | Z57: =VLOOKUP("82020GMEXICO",'[6]Pegar datos'!$C$1409:$L$1906,5,0)/1000000 -> 0.573 | AA57: =VLOOKUP("82020GMEXICO",'[6]Pegar datos'!$C$1409:$L$1906,6,0) -> 100 | AC57: 2020-08-01 | AD57: =VLOOKUP("82020GCARSO",'[6]Pegar datos'!$C$1409:$L$1906,3,0) -> 0 | AE57: =VLOOKUP("82020GCARSO",'[6]Pegar datos'!$C$1409:$L$1906,4,0) -> 0 | AF57: =VLOOKUP("82020GCARSO",'[6]Pegar datos'!$C$1409:$L$1906,5,0)/1000000 -> 0 | AG57: =VLOOKUP("82020GCARSO",'[6]Pegar datos'!$C$1409:$L$1906,6,0) -> 0 | AH57: =VLOOKUP("82020FEMSA",'[6]Pegar datos'!$C$1409:$L$1906,3,0) -> 0 | AI57: =VLOOKUP("82020FEMSA",'[6]Pegar datos'!$C$1409:$L$1906,4,0) -> 0 | AJ57: =VLOOKUP("82020FEMSA",'[6]Pegar datos'!$C$1409:$L$1906,5,0)/1000000 -> 0 | AK57: =VLOOKUP("82020FEMSA",'[6]Pegar datos'!$C$1409:$L$1906,6,0) -> 0 | AL57: =VLOOKUP("82020MR26",'[6]Pegar datos'!$C$1409:$L$1906,3,0) -> 0 | AM57: =VLOOKUP("82020MR26",'[6]Pegar datos'!$C$1409:$L$1906,4,0) -> 0 | AN57: =VLOOKUP("82020MR26",'[6]Pegar datos'!$C$1409:$L$1906,5,0)/1000000 -> 0 | AO57: =VLOOKUP("82020MR26",'[6]Pegar datos'!$C$1409:$L$1906,6,0) -> 0 | AQ57: 2020-08-01 | AR57: =VLOOKUP("82020MY31",'[6]Pegar datos'!$C$1409:$L$1906,3,0) -> 0 | AS57: =VLOOKUP("82020MY31",'[6]Pegar datos'!$C$1409:$L$1906,4,0) -> 0 | AT57: =VLOOKUP("82020MY31",'[6]Pegar datos'!$C$1409:$L$1906,5,0)/1000000 -> 0 | AU57: =VLOOKUP("82020MY31",'[6]Pegar datos'!$C$1409:$L$1906,6,0) -> 0 | AV57: =VLOOKUP("82020MY31",'[6]Pegar datos'!$C$1409:$L$1906,3,0) -> 0 | AW57: =VLOOKUP("82020MY31",'[6]Pegar datos'!$C$1409:$L$1906,4,0) -> 0 | AX57: =VLOOKUP("82020MY31",'[6]Pegar datos'!$C$1409:$L$1906,5,0)/1000000 -> 0 | AY57: =VLOOKUP("82020MY31",'[6]Pegar datos'!$C$1409:$L$1906,6,0) -> 0 | AZ57: =VLOOKUP("82020JN27",'[6]Pegar datos'!$C$1409:$L$1906,3,0) -> 0 | BA57: =VLOOKUP("82020JN27",'[6]Pegar datos'!$C$1409:$L$1906,4,0) -> 0 | BB57: =VLOOKUP("82020JN27",'[6]Pegar datos'!$C$1409:$L$1906,5,0)/1000000 -> 0 | BC57: =VLOOKUP("82020JN27",'[6]Pegar datos'!$C$1409:$L$1906,6,0) -> 0
A58: 2020-09-01 | B58: =VLOOKUP("92020M3",'[7]Pegar datos'!$C$1409:$L$1909,3,0) -> 0 | C58: =VLOOKUP("92020M3",'[7]Pegar datos'!$C$1409:$L$1909,4,0) -> 0 | D58: =VLOOKUP("92020M3",'[7]Pegar datos'!$C$1409:$L$1909,5,0)/1000000 -> 0 | E58: =VLOOKUP("92020M3",'[7]Pegar datos'!$C$1409:$L$1909,6,0) -> 0 | F58: =VLOOKUP("92020M10",'[7]Pegar datos'!$C$1409:$L$1909,3,0) -> 0 | G58: =VLOOKUP("92020M10",'[7]Pegar datos'!$C$1409:$L$1909,4,0) -> 0 | H58: =VLOOKUP("92020M10",'[7]Pegar datos'!$C$1409:$L$1909,5,0)/1000000 -> 0 | I58: =VLOOKUP("92020M10",'[7]Pegar datos'!$C$1409:$L$1909,6,0) -> 0 | J58: =VLOOKUP("92020M20",'[7]Pegar datos'!$C$1409:$L$1909,3,0) -> 0 | K58: =VLOOKUP("92020M20",'[7]Pegar datos'!$C$1409:$L$1909,4,0) -> 0 | L58: =VLOOKUP("92020M20",'[7]Pegar datos'!$C$1409:$L$1909,5,0)/1000000 -> 0 | M58: =VLOOKUP("92020M20",'[7]Pegar datos'!$C$1409:$L$1909,6,0) -> 0 | O58: 2020-09-01 | P58: =VLOOKUP("92020CEMEX",'[7]Pegar datos'!$C$1409:$L$1909,3,0) -> 0 | Q58: =VLOOKUP("92020CEMEX",'[7]Pegar datos'!$C$1409:$L$1909,4,0) -> 0 | R58: =VLOOKUP("92020CEMEX",'[7]Pegar datos'!$C$1409:$L$1909,5,0)/1000000 -> 0 | S58: =VLOOKUP("92020CEMEX",'[7]Pegar datos'!$C$1409:$L$1909,6,0) -> 0 | T58: =VLOOKUP("92020WALMART",'[7]Pegar datos'!$C$1409:$L$1909,3,0) -> 0 | U58: =VLOOKUP("92020WALMART",'[7]Pegar datos'!$C$1409:$L$1909,4,0) -> 0 | V58: =VLOOKUP("92020WALMART",'[7]Pegar datos'!$C$1409:$L$1909,5,0)/1000000 -> 0 | W58: =VLOOKUP("92020WALMART",'[7]Pegar datos'!$C$1409:$L$1909,6,0) -> 250 | X58: =VLOOKUP("92020GMEXICO",'[7]Pegar datos'!$C$1409:$L$1909,3,0) -> 1 | Y58: =VLOOKUP("92020GMEXICO",'[7]Pegar datos'!$C$1409:$L$1909,4,0) -> 100 | Z58: =VLOOKUP("92020GMEXICO",'[7]Pegar datos'!$C$1409:$L$1909,5,0)/1000000 -> 0.551 | AA58: =VLOOKUP("92020GMEXICO",'[7]Pegar datos'!$C$1409:$L$1909,6,0) -> 200 | AC58: 2020-09-01 | AD58: =VLOOKUP("92020GCARSO",'[7]Pegar datos'!$C$1409:$L$1909,3,0) -> 0 | AE58: =VLOOKUP("92020GCARSO",'[7]Pegar datos'!$C$1409:$L$1909,4,0) -> 0 | AF58: =VLOOKUP("92020GCARSO",'[7]Pegar datos'!$C$1409:$L$1909,5,0)/1000000 -> 0 | AG58: =VLOOKUP("92020GCARSO",'[7]Pegar datos'!$C$1409:$L$1909,6,0) -> 0 | AH58: =VLOOKUP("92020FEMSA",'[7]Pegar datos'!$C$1409:$L$1909,3,0) -> 0 | AI58: =VLOOKUP("92020FEMSA",'[7]Pegar datos'!$C$1409:$L$1909,4,0) -> 0 | AJ58: =VLOOKUP("92020FEMSA",'[7]Pegar datos'!$C$1409:$L$1909,5,0)/1000000 -> 0 | AK58: =VLOOKUP("92020FEMSA",'[7]Pegar datos'!$C$1409:$L$1909,6,0) -> 0 | AL58: =VLOOKUP("92020MR26",'[7]Pegar datos'!$C$1409:$L$1909,3,0) -> 0 | AM58: =VLOOKUP("92020MR26",'[7]Pegar datos'!$C$1409:$L$1909,4,0) -> 0 | AN58: =VLOOKUP("92020MR26",'[7]Pegar datos'!$C$1409:$L$1909,5,0)/1000000 -> 0 | AO58: =VLOOKUP("92020MR26",'[7]Pegar datos'!$C$1409:$L$1909,6,0) -> 0 | AQ58: 2020-09-01 | AR58: =VLOOKUP("92020MY31",'[7]Pegar datos'!$C$1409:$L$1909,3,0) -> 0 | AS58: =VLOOKUP("92020MY31",'[7]Pegar datos'!$C$1409:$L$1909,4,0) -> 0 | AT58: =VLOOKUP("92020MY31",'[7]Pegar datos'!$C$1409:$L$1909,5,0)/1000000 -> 0 | AU58: =VLOOKUP("92020MY31",'[7]Pegar datos'!$C$1409:$L$1909,6,0) -> 0 | AV58: =VLOOKUP("92020MY31",'[7]Pegar datos'!$C$1409:$L$1909,3,0) -> 0 | AW58: =VLOOKUP("92020MY31",'[7]Pegar datos'!$C$1409:$L$1909,4,0) -> 0 | AX58: =VLOOKUP("92020MY31",'[7]Pegar datos'!$C$1409:$L$1909,5,0)/1000000 -> 0 | AY58: =VLOOKUP("92020MY31",'[7]Pegar datos'!$C$1409:$L$1909,6,0) -> 0 | AZ58: =VLOOKUP("92020JN27",'[7]Pegar datos'!$C$1409:$L$1909,3,0) -> 0 | BA58: =VLOOKUP("92020JN27",'[7]Pegar datos'!$C$1409:$L$1909,4,0) -> 0 | BB58: =VLOOKUP("92020JN27",'[7]Pegar datos'!$C$1409:$L$1909,5,0)/1000000 -> 0 | BC58: =VLOOKUP("92020JN27",'[7]Pegar datos'!$C$1409:$L$1909,6,0) -> 0
A59: 2020-10-01 | B59: =VLOOKUP("102020M3",'[8]Pegar datos'!$C$1409:$L$1912,3,0) -> 0 | C59: =VLOOKUP("102020M3",'[8]Pegar datos'!$C$1409:$L$1912,4,0) -> 0 | D59: =VLOOKUP("102020M3",'[8]Pegar datos'!$C$1409:$L$1912,5,0)/1000000 -> 0 | E59: =VLOOKUP("102020M3",'[8]Pegar datos'!$C$1409:$L$1912,6,0) -> 0 | F59: =VLOOKUP("102020M10",'[8]Pegar datos'!$C$1409:$L$1912,3,0) -> 0 | G59: =VLOOKUP("102020M10",'[8]Pegar datos'!$C$1409:$L$1912,4,0) -> 0 | H59: =VLOOKUP("102020M10",'[8]Pegar datos'!$C$1409:$L$1912,5,0)/1000000 -> 0 | I59: =VLOOKUP("102020M10",'[8]Pegar datos'!$C$1409:$L$1912,6,0) -> 0 | J59: =VLOOKUP("102020M20",'[8]Pegar datos'!$C$1409:$L$1912,3,0) -> 0 | K59: =VLOOKUP("102020M20",'[8]Pegar datos'!$C$1409:$L$1912,4,0) -> 0 | L59: =VLOOKUP("102020M20",'[8]Pegar datos'!$C$1409:$L$1912,5,0)/1000000 -> 0 | M59: =VLOOKUP("102020M20",'[8]Pegar datos'!$C$1409:$L$1912,6,0) -> 0 | O59: 2020-10-01 | P59: =VLOOKUP("102020CEMEX",'[8]Pegar datos'!$C$1409:$L$1912,3,0) -> 0 | Q59: =VLOOKUP("102020CEMEX",'[8]Pegar datos'!$C$1409:$L$1912,4,0) -> 0 | R59: =VLOOKUP("102020CEMEX",'[8]Pegar datos'!$C$1409:$L$1912,5,0)/1000000 -> 0 | S59: =VLOOKUP("102020CEMEX",'[8]Pegar datos'!$C$1409:$L$1912,6,0) -> 0 | T59: =VLOOKUP("102020WALMART",'[8]Pegar datos'!$C$1409:$L$1912,3,0) -> 0 | U59: =VLOOKUP("102020WALMART",'[8]Pegar datos'!$C$1409:$L$1912,4,0) -> 0 | V59: =VLOOKUP("102020WALMART",'[8]Pegar datos'!$C$1409:$L$1912,5,0)/1000000 -> 0 | W59: =VLOOKUP("102020WALMART",'[8]Pegar datos'!$C$1409:$L$1912,6,0) -> 250 | X59: =VLOOKUP("102020GMEXICO",'[8]Pegar datos'!$C$1409:$L$1912,3,0) -> 0 | Y59: =VLOOKUP("102020GMEXICO",'[8]Pegar datos'!$C$1409:$L$1912,4,0) -> 0 | Z59: =VLOOKUP("102020GMEXICO",'[8]Pegar datos'!$C$1409:$L$1912,5,0)/1000000 -> 0 | AA59: =VLOOKUP("102020GMEXICO",'[8]Pegar datos'!$C$1409:$L$1912,6,0) -> 200 | AC59: 2020-10-01 | AD59: =VLOOKUP("102020GCARSO",'[8]Pegar datos'!$C$1409:$L$1912,3,0) -> 0 | AE59: =VLOOKUP("102020GCARSO",'[8]Pegar datos'!$C$1409:$L$1912,4,0) -> 0 | AF59: =VLOOKUP("102020GCARSO",'[8]Pegar datos'!$C$1409:$L$1912,5,0)/1000000 -> 0 | AG59: =VLOOKUP("102020GCARSO",'[8]Pegar datos'!$C$1409:$L$1912,6,0) -> 0 | AH59: =VLOOKUP("102020FEMSA",'[8]Pegar datos'!$C$1409:$L$1912,3,0) -> 5 | AI59: =VLOOKUP("102020FEMSA",'[8]Pegar datos'!$C$1409:$L$1912,4,0) -> 180 | AJ59: =VLOOKUP("102020FEMSA",'[8]Pegar datos'!$C$1409:$L$1912,5,0)/1000000 -> 2.08396 | AK59: =VLOOKUP("102020FEMSA",'[8]Pegar datos'!$C$1409:$L$1912,6,0) -> 180 | AL59: =VLOOKUP("102020MR26",'[8]Pegar datos'!$C$1409:$L$1912,3,0) -> 0 | AM59: =VLOOKUP("102020MR26",'[8]Pegar datos'!$C$1409:$L$1912,4,0) -> 0 | AN59: =VLOOKUP("102020MR26",'[8]Pegar datos'!$C$1409:$L$1912,5,0)/1000000 -> 0 | AO59: =VLOOKUP("102020MR26",'[8]Pegar datos'!$C$1409:$L$1912,6,0) -> 0 | AQ59: 2020-10-01 | AR59: =VLOOKUP("102020MY31",'[8]Pegar datos'!$C$1409:$L$1912,3,0) -> 0 | AS59: =VLOOKUP("102020MY31",'[8]Pegar datos'!$C$1409:$L$1912,4,0) -> 0 | AT59: =VLOOKUP("102020MY31",'[8]Pegar datos'!$C$1409:$L$1912,5,0)/1000000 -> 0 | AU59: =VLOOKUP("102020MY31",'[8]Pegar datos'!$C$1409:$L$1912,6,0) -> 0 | AV59: =VLOOKUP("102020MY31",'[8]Pegar datos'!$C$1409:$L$1912,3,0) -> 0 | AW59: =VLOOKUP("102020MY31",'[8]Pegar datos'!$C$1409:$L$1912,4,0) -> 0 | AX59: =VLOOKUP("102020MY31",'[8]Pegar datos'!$C$1409:$L$1912,5,0)/1000000 -> 0 | AY59: =VLOOKUP("102020MY31",'[8]Pegar datos'!$C$1409:$L$1912,6,0) -> 0 | AZ59: =VLOOKUP("102020JN27",'[8]Pegar datos'!$C$1409:$L$1912,3,0) -> 0 | BA59: =VLOOKUP("102020JN27",'[8]Pegar datos'!$C$1409:$L$1912,4,0) -> 0 | BB59: =VLOOKUP("102020JN27",'[8]Pegar datos'!$C$1409:$L$1912,5,0)/1000000 -> 0 | BC59: =VLOOKUP("102020JN27",'[8]Pegar datos'!$C$1409:$L$1912,6,0) -> 0
A60: 2020-11-01 | B60: =VLOOKUP("112020M3",'[9]Pegar datos'!$C$1409:$L$1915,3,0) -> 0 | C60: =VLOOKUP("112020M3",'[9]Pegar datos'!$C$1409:$L$1915,4,0) -> 0 | D60: =VLOOKUP("112020M3",'[9]Pegar datos'!$C$1409:$L$1915,5,0)/1000000 -> 0 | E60: =VLOOKUP("112020M3",'[9]Pegar datos'!$C$1409:$L$1915,6,0) -> 0 | F60: =VLOOKUP("112020M10",'[9]Pegar datos'!$C$1409:$L$1915,3,0) -> 0 | G60: =VLOOKUP("112020M10",'[9]Pegar datos'!$C$1409:$L$1915,4,0) -> 0 | H60: =VLOOKUP("112020M10",'[9]Pegar datos'!$C$1409:$L$1915,5,0)/1000000 -> 0 | I60: =VLOOKUP("112020M10",'[9]Pegar datos'!$C$1409:$L$1915,6,0) -> 0 | J60: =VLOOKUP("112020M20",'[9]Pegar datos'!$C$1409:$L$1915,3,0) -> 0 | K60: =VLOOKUP("112020M20",'[9]Pegar datos'!$C$1409:$L$1915,4,0) -> 0 | L60: =VLOOKUP("112020M20",'[9]Pegar datos'!$C$1409:$L$1915,5,0)/1000000 -> 0 | M60: =VLOOKUP("112020M20",'[9]Pegar datos'!$C$1409:$L$1915,6,0) -> 0 | O60: 2020-11-01 | P60: =VLOOKUP("112020CEMEX",'[9]Pegar datos'!$C$1409:$L$1915,3,0) -> 0 | Q60: =VLOOKUP("112020CEMEX",'[9]Pegar datos'!$C$1409:$L$1915,4,0) -> 0 | R60: =VLOOKUP("112020CEMEX",'[9]Pegar datos'!$C$1409:$L$1915,5,0)/1000000 -> 0 | S60: =VLOOKUP("112020CEMEX",'[9]Pegar datos'!$C$1409:$L$1915,6,0) -> 0 | T60: =VLOOKUP("112020WALMART",'[9]Pegar datos'!$C$1409:$L$1915,3,0) -> 2 | U60: =VLOOKUP("112020WALMART",'[9]Pegar datos'!$C$1409:$L$1915,4,0) -> 250 | V60: =VLOOKUP("112020WALMART",'[9]Pegar datos'!$C$1409:$L$1915,5,0)/1000000 -> 1.358375 | W60: =VLOOKUP("112020WALMART",'[9]Pegar datos'!$C$1409:$L$1915,6,0) -> 250 | X60: =VLOOKUP("112020GMEXICO",'[9]Pegar datos'!$C$1409:$L$1915,3,0) -> 2 | Y60: =VLOOKUP("112020GMEXICO",'[9]Pegar datos'!$C$1409:$L$1915,4,0) -> 200 | Z60: =VLOOKUP("112020GMEXICO",'[9]Pegar datos'!$C$1409:$L$1915,5,0)/1000000 -> 1.2746 | AA60: =VLOOKUP("112020GMEXICO",'[9]Pegar datos'!$C$1409:$L$1915,6,0) -> 0 | AC60: 2020-11-01 | AD60: =VLOOKUP("112020GCARSO",'[9]Pegar datos'!$C$1409:$L$1915,3,0) -> 0 | AE60: =VLOOKUP("112020GCARSO",'[9]Pegar datos'!$C$1409:$L$1915,4,0) -> 0 | AF60: =VLOOKUP("112020GCARSO",'[9]Pegar datos'!$C$1409:$L$1915,5,0)/1000000 -> 0 | AG60: =VLOOKUP("112020GCARSO",'[9]Pegar datos'!$C$1409:$L$1915,6,0) -> 0 | AH60: =VLOOKUP("112020FEMSA",'[9]Pegar datos'!$C$1409:$L$1915,3,0) -> 4 | AI60: =VLOOKUP("112020FEMSA",'[9]Pegar datos'!$C$1409:$L$1915,4,0) -> 180 | AJ60: =VLOOKUP("112020FEMSA",'[9]Pegar datos'!$C$1409:$L$1915,5,0)/1000000 -> 2.43418 | AK60: =VLOOKUP("112020FEMSA",'[9]Pegar datos'!$C$1409:$L$1915,6,0) -> 0 | AL60: =VLOOKUP("112020MR26",'[9]Pegar datos'!$C$1409:$L$1915,3,0) -> 0 | AM60: =VLOOKUP("112020MR26",'[9]Pegar datos'!$C$1409:$L$1915,4,0) -> 0 | AN60: =VLOOKUP("112020MR26",'[9]Pegar datos'!$C$1409:$L$1915,5,0)/1000000 -> 0 | AO60: =VLOOKUP("112020MR26",'[9]Pegar datos'!$C$1409:$L$1915,6,0) -> 0 | AQ60: 2020-11-01 | AR60: =VLOOKUP("112020MY31",'[9]Pegar datos'!$C$1409:$L$1915,3,0) -> 0 | AS60: =VLOOKUP("112020MY31",'[9]Pegar datos'!$C$1409:$L$1915,4,0) -> 0 | AT60: =VLOOKUP("112020MY31",'[9]Pegar datos'!$C$1409:$L$1915,5,0)/1000000 -> 0 | AU60: =VLOOKUP("112020MY31",'[9]Pegar datos'!$C$1409:$L$1915,6,0) -> 0 | AV60: =VLOOKUP("112020MY31",'[9]Pegar datos'!$C$1409:$L$1915,3,0) -> 0 | AW60: =VLOOKUP("112020MY31",'[9]Pegar datos'!$C$1409:$L$1915,4,0) -> 0 | AX60: =VLOOKUP("112020MY31",'[9]Pegar datos'!$C$1409:$L$1915,5,0)/1000000 -> 0 | AY60: =VLOOKUP("112020MY31",'[9]Pegar datos'!$C$1409:$L$1915,6,0) -> 0 | AZ60: =VLOOKUP("112020JN27",'[9]Pegar datos'!$C$1409:$L$1915,3,0) -> 0 | BA60: =VLOOKUP("112020JN27",'[9]Pegar datos'!$C$1409:$L$1915,4,0) -> 0 | BB60: =VLOOKUP("112020JN27",'[9]Pegar datos'!$C$1409:$L$1915,5,0)/1000000 -> 0 | BC60: =VLOOKUP("112020JN27",'[9]Pegar datos'!$C$1409:$L$1915,6,0) -> 0
A61: 2020-12-01 | B61: =VLOOKUP("122020M3",'[10]Pegar datos'!$C$1409:$L$1918,3,0) -> 0 | C61: =VLOOKUP("122020M3",'[10]Pegar datos'!$C$1409:$L$1918,4,0) -> 0 | D61: =VLOOKUP("122020M3",'[10]Pegar datos'!$C$1409:$L$1918,5,0)/1000000 -> 0 | E61: =VLOOKUP("122020M3",'[10]Pegar datos'!$C$1409:$L$1918,6,0) -> 0 | F61: =VLOOKUP("122020M10",'[10]Pegar datos'!$C$1409:$L$1918,3,0) -> 0 | G61: =VLOOKUP("122020M10",'[10]Pegar datos'!$C$1409:$L$1918,4,0) -> 0 | H61: =VLOOKUP("122020M10",'[10]Pegar datos'!$C$1409:$L$1918,5,0)/1000000 -> 0 | I61: =VLOOKUP("122020M10",'[10]Pegar datos'!$C$1409:$L$1918,6,0) -> 0 | J61: =VLOOKUP("122020M20",'[10]Pegar datos'!$C$1409:$L$1918,3,0) -> 0 | K61: =VLOOKUP("122020M20",'[10]Pegar datos'!$C$1409:$L$1918,4,0) -> 0 | L61: =VLOOKUP("122020M20",'[10]Pegar datos'!$C$1409:$L$1918,5,0)/1000000 -> 0 | M61: =VLOOKUP("122020M20",'[10]Pegar datos'!$C$1409:$L$1918,6,0) -> 0 | O61: 2020-12-01 | P61: =VLOOKUP("122020CEMEX",'[10]Pegar datos'!$C$1409:$L$1918,3,0) -> 0 | Q61: =VLOOKUP("122020CEMEX",'[10]Pegar datos'!$C$1409:$L$1918,4,0) -> 0 | R61: =VLOOKUP("122020CEMEX",'[10]Pegar datos'!$C$1409:$L$1918,5,0)/1000000 -> 0 | S61: =VLOOKUP("122020CEMEX",'[10]Pegar datos'!$C$1409:$L$1918,6,0) -> 0 | T61: =VLOOKUP("122020WALMART",'[10]Pegar datos'!$C$1409:$L$1918,3,0) -> 2 | U61: =VLOOKUP("122020WALMART",'[10]Pegar datos'!$C$1409:$L$1918,4,0) -> 500 | V61: =VLOOKUP("122020WALMART",'[10]Pegar datos'!$C$1409:$L$1918,5,0)/1000000 -> 2.86075 | W61: =VLOOKUP("122020WALMART",'[10]Pegar datos'!$C$1409:$L$1918,6,0) -> 250 | X61: =VLOOKUP("122020GMEXICO",'[10]Pegar datos'!$C$1409:$L$1918,3,0) -> 0 | Y61: =VLOOKUP("122020GMEXICO",'[10]Pegar datos'!$C$1409:$L$1918,4,0) -> 0 | Z61: =VLOOKUP("122020GMEXICO",'[10]Pegar datos'!$C$1409:$L$1918,5,0)/1000000 -> 0 | AA61: =VLOOKUP("122020GMEXICO",'[10]Pegar datos'!$C$1409:$L$1918,6,0) -> 0 | AC61: 2020-12-01 | AD61: =VLOOKUP("122020GCARSO",'[10]Pegar datos'!$C$1409:$L$1918,3,0) -> 0 | AE61: =VLOOKUP("122020GCARSO",'[10]Pegar datos'!$C$1409:$L$1918,4,0) -> 0 | AF61: =VLOOKUP("122020GCARSO",'[10]Pegar datos'!$C$1409:$L$1918,5,0)/1000000 -> 0 | AG61: =VLOOKUP("122020GCARSO",'[10]Pegar datos'!$C$1409:$L$1918,6,0) -> 0 | AH61: =VLOOKUP("122020FEMSA",'[10]Pegar datos'!$C$1409:$L$1918,3,0) -> 0 | AI61: =VLOOKUP("122020FEMSA",'[10]Pegar datos'!$C$1409:$L$1918,4,0) -> 0 | AJ61: =VLOOKUP("122020FEMSA",'[10]Pegar datos'!$C$1409:$L$1918,5,0)/1000000 -> 0 | AK61: =VLOOKUP("122020FEMSA",'[10]Pegar datos'!$C$1409:$L$1918,6,0) -> 0 | AL61: =VLOOKUP("122020MR26",'[10]Pegar datos'!$C$1409:$L$1918,3,0) -> 0 | AM61: =VLOOKUP("122020MR26",'[10]Pegar datos'!$C$1409:$L$1918,4,0) -> 0 | AN61: =VLOOKUP("122020MR26",'[10]Pegar datos'!$C$1409:$L$1918,5,0)/1000000 -> 0 | AO61: =VLOOKUP("122020MR26",'[10]Pegar datos'!$C$1409:$L$1918,6,0) -> 0 | AQ61: 2020-12-01 | AR61: =VLOOKUP("122020MY31",'[10]Pegar datos'!$C$1409:$L$1918,3,0) -> 0 | AS61: =VLOOKUP("122020MY31",'[10]Pegar datos'!$C$1409:$L$1918,4,0) -> 0 | AT61: =VLOOKUP("122020MY31",'[10]Pegar datos'!$C$1409:$L$1918,5,0)/1000000 -> 0 | AU61: =VLOOKUP("122020MY31",'[10]Pegar datos'!$C$1409:$L$1918,6,0) -> 0 | AV61: =VLOOKUP("122020MY31",'[10]Pegar datos'!$C$1409:$L$1918,3,0) -> 0 | AW61: =VLOOKUP("122020MY31",'[10]Pegar datos'!$C$1409:$L$1918,4,0) -> 0 | AX61: =VLOOKUP("122020MY31",'[10]Pegar datos'!$C$1409:$L$1918,5,0)/1000000 -> 0 | AY61: =VLOOKUP("122020MY31",'[10]Pegar datos'!$C$1409:$L$1918,6,0) -> 0 | AZ61: =VLOOKUP("122020JN27",'[10]Pegar datos'!$C$1409:$L$1918,3,0) -> 0 | BA61: =VLOOKUP("122020JN27",'[10]Pegar datos'!$C$1409:$L$1918,4,0) -> 0 | BB61: =VLOOKUP("122020JN27",'[10]Pegar datos'!$C$1409:$L$1918,5,0)/1000000 -> 0 | BC61: =VLOOKUP("122020JN27",'[10]Pegar datos'!$C$1409:$L$1918,6,0) -> 0
A62: (1) In Millions | O62: (1) In Millions | AC62: (1) In Millions | AQ62: (1) In Millions
AQ63: * JN21 December 2016 Open Interest data have been updated

Sheet Options Data
A1: MEXICAN STOCK EXCHANGE | O1: MEXICAN STOCK EXCHANGE
A2: DECEMBER OPERATIONAL HIGHLIGHTS | O2: DECEMBER OPERATIONAL HIGHLIGHTS
A4: OPERATING FIGURES OPTIONS MARKET | O4: OPERATING FIGURES OPTIONS MARKET
B6: IPC INDEX | F6: DOLLAR | J6: AMERICA MOVIL | P6: TELEVISA | T6: GRUPO MEXICO | X6: ORBIA
B7: Trades | C7: Volume | D7: Notional Value(1) | E7: Open Interest | F7: Trades | G7: Volume | H7: Notional Value | I7: Open Interest | J7: Trades | K7: Volume | L7: Notional Value | M7: Open Interest | P7: Trades | Q7: Volume | R7: Notional Value | S7: Open Interest | T7: Trades | U7: Volume | V7: Notional Value | W7: Open Interest | X7: Trades | Y7: Volume | Z7: Notional Value | AA7: Open Interest
A9: 2019-01-01 | B9: 220 | C9: 4501 | D9: 1936770000 | E9: 4275 | F9: 21 | G9: 11700 | H9: 2284550000 | I9: 9200 | J9: 5 | K9: 1100 | L9: 1650000 | M9: 31100 | O9: 2019-01-01 | P9: 6 | Q9: 455 | R9: 2002000 | S9: 255 | T9: 0 | U9: 0 | V9: 0 | W9: 0 | X9: 0 | Y9: 0 | Z9: 0 | AA9: 0
A10: 2019-02-01 | B10: 165 | C10: 446 | D10: 199950000 | E10: 4536 | F10: 2 | G10: 1000 | H10: 186500000 | I10: 10200 | J10: 4 | K10: 5100 | L10: 7650000 | M10: 30350 | O10: 2019-02-01 | P10: 0 | Q10: 0 | R10: 0 | S10: 255 | T10: 1 | U10: 2000 | V10: 8800000 | W10: 2000 | X10: 0 | Y10: 0 | Z10: 0 | AA10: 0
A11: 2019-03-01 | B11: 201 | C11: 590 | D11: 246395000 | E11: 1825 | F11: 8 | G11: 2530 | H11: 496297500 | I11: 2530 | J11: 4 | K11: 20000 | L11: 27500000 | M11: 40000 | O11: 2019-03-01 | P11: 1 | Q11: 100 | R11: 440000 | S11: 250 | T11: 0 | U11: 0 | V11: 0 | W11: 0 | X11: 1 | Y11: 5000 | Z11: 23000000 | AA11: 0
A12: 2019-04-01 | B12: 165 | C12: 194 | D12: 85560000 | E12: 1892 | F12: 10 | G12: 3030 | H12: 578810000 | I12: 5560 | J12: 4 | K12: 15600 | L12: 21490000 | M12: 55600 | O12: 2019-04-01 | P12: 0 | Q12: 0 | R12: 0 | S12: 250 | T12: 3 | U12: 20000 | V12: 106000000 | W12: 20000 | X12: 0 | Y12: 0 | Z12: 0 | AA12: 0
A13: 2019-05-01 | B13: 213 | C13: 376 | D13: 160515000 | E13: 1992 | F13: 15 | G13: 2981 | H13: 589069500 | I13: 6951 | J13: 7 | K13: 38600 | L13: 53290000 | M13: 55000 | O13: 2019-05-01 | P13: 0 | Q13: 0 | R13: 0 | S13: 250 | T13: 4 | U13: 27000 | V13: 138000000 | W13: 17000 | X13: 0 | Y13: 0 | Z13: 0 | AA13: 0
A14: 2019-06-01 | B14: 436 | C14: 920 | D14: 376145000 | E14: 756 | F14: 14 | G14: 5093 | H14: 999992000 | I14: 5793 | J14: 2 | K14: 10000 | L14: 14000000 | M14: 10000 | O14: 2019-06-01 | P14: 0 | Q14: 0 | R14: 0 | S14: 0 | T14: 2 | U14: 10000 | V14: 50000000 | W14: 0 | X14: 0 | Y14: 0 | Z14: 0 | AA14: 0
A15: 2019-07-01 | B15: 361 | C15: 493 | D15: 212740000 | E15: 893 | F15: 10 | G15: 3500 | H15: 678150000 | I15: 8693 | J15: 0 | K15: 0 | L15: 0 | M15: 10000 | O15: 2019-07-01 | P15: 0 | Q15: 0 | R15: 0 | S15: 0 | T15: 0 | U15: 0 | V15: 0 | W15: 0 | X15: 3 | Y15: 15000 | Z15: 60000000 | AA15: 15000
A16: 2019-08-01 | B16: 308 | C16: 824 | D16: 335095000 | E16: 1219 | F16: 20 | G16: 6918 | H16: 1369105000 | I16: 10193 | J16: 0 | K16: 0 | L16: 0 | M16: 10000 | O16: 2019-08-01 | P16: 0 | Q16: 0 | R16: 0 | S16: 0 | T16: 0 | U16: 0 | V16: 0 | W16: 0 | X16: 1 | Y16: 15000 | Z16: 60000000 | AA16: 0
A17: 2019-09-01 | B17: 402 | C17: 683 | D17: 291080000 | E17: 449 | F17: 8 | G17: 1806 | H17: 355930000 | I17: 3206 | J17: 4 | K17: 10500 | L17: 15225000 | M17: 10500 | O17: 2019-09-01 | P17: 0 | Q17: 0 | R17: 0 | S17: 0 | T17: 0 | U17: 0 | V17: 0 | W17: 0 | X17: 0 | Y17: 0 | Z17: 0 | AA17: 0
A18: 2019-10-01 | B18: 423 | C18: 604 | D18: 262470000 | E18: 563 | F18: 8 | G18: 3050 | H18: 594550000 | I18: 20000 | J18: 12 | K18: 29733 | L18: 43112850 | M18: 34983 | O18: 2019-10-01 | P18: 0 | Q18: 0 | R18: 0 | S18: 0 | T18: 0 | U18: 0 | V18: 0 | W18: 0 | X18: 0 | Y18: 0 | Z18: 0 | AA18: 0
A19: 2019-11-01 | B19: 392 | C19: 690 | D19: 297985000 | E19: 869 | F19: 2 | G19: 1250 | H19: 248250000 | I19: 6256 | J19: 14 | K19: 70000 | L19: 101500000 | M19: 104983 | O19: 2019-11-01 | P19: 0 | Q19: 0 | R19: 0 | S19: 0 | T19: 0 | U19: 0 | V19: 0 | W19: 0 | X19: 0 | Y19: 0 | Z19: 0 | AA19: 0
A20: 2019-12-01 | B20: 622 | C20: 766 | D20: 337740000 | E20: 328 | F20: 8 | G20: 4117 | H20: 797850000 | I20: 1815 | J20: 16 | K20: 104983 | L20: 152225350 | M20: 0 | O20: 2019-12-01 | P20: 0 | Q20: 0 | R20: 0 | S20: 0 | T20: 0 | U20: 0 | V20: 0 | W20: 0 | X20: 0 | Y20: 0 | Z20: 0 | AA20: 0
A21: 2020-01-01 | B21: 775 | C21: 1062 | D21: 479055000 | E21: 624 | F21: 14 | G21: 3000 | H21: 579400000 | I21: 4815 | J21: 6 | K21: 885 | L21: 1283750 | M21: 885 | O21: 2020-01-01 | P21: 0 | Q21: 0 | R21: 0 | S21: 0 | T21: 0 | U21: 0 | V21: 0 | W21: 0 | X21: 0 | Y21: 0 | Z21: 0 | AA21: 0
A22: 2020-02-01 | B22: =VLOOKUP("22020IPC",'[1]Pegar datos'!$C$2768:$L$3044,3,0) -> 608 | C22: =VLOOKUP("22020IPC",'[1]Pegar datos'!$C$2768:$L$3044,4,0) -> 923 | D22: =VLOOKUP("22020IPC",'[1]Pegar datos'!$C$2768:$L$3044,5,0) -> 410950000 | E22: =VLOOKUP("22020IPC",'[1]Pegar datos'!$C$2768:$L$3044,6,0) -> 831 | F22: =VLOOKUP("22020DOLAR",'[1]Pegar datos'!$C$2768:$L$3044,3,0) -> 10 | G22: =VLOOKUP("22020DOLAR",'[1]Pegar datos'!$C$2768:$L$3044,4,0) -> 25615 | H22: =VLOOKUP("22020DOLAR",'[1]Pegar datos'!$C$2768:$L$3044,5,0) -> 5012985000 | I22: =VLOOKUP("22020DOLAR",'[1]Pegar datos'!$C$2768:$L$3044,6,0) -> 26075 | J22: =VLOOKUP("22020AMOVIL",'[1]Pegar datos'!$C$2768:$L$3044,3,0) -> 2 | K22: =VLOOKUP("22020AMOVIL",'[1]Pegar datos'!$C$2768:$L$3044,4,0) -> 6625 | L22: =VLOOKUP("22020AMOVIL",'[1]Pegar datos'!$C$2768:$L$3044,5,0) -> 10506250 | M22: =VLOOKUP("22020AMOVIL",'[1]Pegar datos'!$C$2768:$L$3044,6,0) -> 6885 | O22: 2020-02-01 | P22: =VLOOKUP("22020TELEVISA",'[1]Pegar datos'!$C$2768:$L$3044,3,0) -> 0 | Q22: =VLOOKUP("22020TELEVISA",'[1]Pegar datos'!$C$2768:$L$3044,4,0) -> 0 | R22: =VLOOKUP("22020TELEVISA",'[1]Pegar datos'!$C$2768:$L$3044,5,0)/1000000 -> 0 | S22: =VLOOKUP("22020TELEVISA",'[1]Pegar datos'!$C$2768:$L$3044,6,0) -> 0 | T22: =VLOOKUP("22020GMEXICO",'[1]Pegar datos'!$C$2768:$L$3044,3,0) -> 7 | U22: =VLOOKUP("22020GMEXICO",'[1]Pegar datos'!$C$2768:$L$3044,4,0) -> 2000 | V22: =VLOOKUP("22020GMEXICO",'[1]Pegar datos'!$C$2768:$L$3044,5,0)/1000000 -> 9.6 | W22: =VLOOKUP("22020GMEXICO",'[1]Pegar datos'!$C$2768:$L$3044,6,0) -> 2000 | X22: =VLOOKUP("22020MEXICHEM",'[1]Pegar datos'!$C$2768:$L$3044,3,0) -> 0 | Y22: =VLOOKUP("22020MEXICHEM",'[1]Pegar datos'!$C$2768:$L$3044,4,0) -> 0 | Z22: =VLOOKUP("22020MEXICHEM",'[1]Pegar datos'!$C$2768:$L$3044,5,0)/1000000 -> 0 | AA22: =VLOOKUP("22020MEXICHEM",'[1]Pegar datos'!$C$2768:$L$3044,6,0) -> 0
A23: 2020-03-01 | B23: =VLOOKUP("32020IPC",'[2]Pegar datos'!$C$2769:$L$3045,3,0) -> 434 | C23: =VLOOKUP("32020IPC",'[2]Pegar datos'!$C$2769:$L$3045,4,0) -> 551 | D23: =VLOOKUP("32020IPC",'[2]Pegar datos'!$C$2769:$L$3045,5,0) -> 218870000 | E23: =VLOOKUP("32020IPC",'[2]Pegar datos'!$C$2769:$L$3045,6,0) -> 315 | F23: =VLOOKUP("32020DOLAR",'[2]Pegar datos'!$C$2769:$L$3045,3,0) -> 10 | G23: =VLOOKUP("32020DOLAR",'[2]Pegar datos'!$C$2769:$L$3045,4,0) -> 22724 | H23: =VLOOKUP("32020DOLAR",'[2]Pegar datos'!$C$2769:$L$3045,5,0) -> 4475225000 | I23: =VLOOKUP("32020DOLAR",'[2]Pegar datos'!$C$2769:$L$3045,6,0) -> 10599 | J23: =VLOOKUP("32020AMOVIL",'[2]Pegar datos'!$C$2769:$L$3045,3,0) -> 1 | K23: =VLOOKUP("32020AMOVIL",'[2]Pegar datos'!$C$2769:$L$3045,4,0) -> 6000 | L23: =VLOOKUP("32020AMOVIL",'[2]Pegar datos'!$C$2769:$L$3045,5,0) -> 9600000 | M23: =VLOOKUP("32020AMOVIL",'[2]Pegar datos'!$C$2769:$L$3045,6,0) -> 6000 | O23: 2020-03-01 | P23: =VLOOKUP("32020TELEVISA",'[2]Pegar datos'!$C$2769:$L$3045,3,0) -> 0 | Q23: =VLOOKUP("32020TELEVISA",'[2]Pegar datos'!$C$2769:$L$3045,4,0) -> 0 | R23: =VLOOKUP("32020TELEVISA",'[2]Pegar datos'!$C$2769:$L$3045,5,0)/1000000 -> 0 | S23: =VLOOKUP("32020TELEVISA",'[2]Pegar datos'!$C$2769:$L$3045,6,0) -> 0 | T23: =VLOOKUP("32020GMEXICO",'[2]Pegar datos'!$C$2769:$L$3045,3,0) -> 0 | U23: =VLOOKUP("32020GMEXICO",'[2]Pegar datos'!$C$2769:$L$3045,4,0) -> 0 | V23: =VLOOKUP("32020GMEXICO",'[2]Pegar datos'!$C$2769:$L$3045,5,0)/1000000 -> 0 | W23: =VLOOKUP("32020GMEXICO",'[2]Pegar datos'!$C$2769:$L$3045,6,0) -> 0 | X23: =VLOOKUP("32020MEXICHEM",'[2]Pegar datos'!$C$2769:$L$3045,3,0) -> 0 | Y23: =VLOOKUP("32020MEXICHEM",'[2]Pegar datos'!$C$2769:$L$3045,4,0) -> 0 | Z23: =VLOOKUP("32020MEXICHEM",'[2]Pegar datos'!$C$2769:$L$3045,5,0)/1000000 -> 0 | AA23: =VLOOKUP("32020MEXICHEM",'[2]Pegar datos'!$C$2769:$L$3045,6,0) -> 0
A24: 2020-04-01 | B24: 161 | C24: 163 | D24: 56610000 | E24: 347 | F24: 3 | G24: 72 | H24: 17808000 | I24: 10623 | J24: 0 | K24: 0 | L24: 0 | M24: 6000 | O24: 2020-04-01 | P24: =VLOOKUP("32020TELEVISA",'[2]Pegar datos'!$C$2769:$L$3045,3,0) -> 0 | Q24: =VLOOKUP("32020TELEVISA",'[2]Pegar datos'!$C$2769:$L$3045,4,0) -> 0 | R24: =VLOOKUP("32020TELEVISA",'[2]Pegar datos'!$C$2769:$L$3045,5,0)/1000000 -> 0 | S24: =VLOOKUP("32020TELEVISA",'[2]Pegar datos'!$C$2769:$L$3045,6,0) -> 0 | T24: =VLOOKUP("32020GMEXICO",'[2]Pegar datos'!$C$2769:$L$3045,3,0) -> 0 | U24: =VLOOKUP("32020GMEXICO",'[2]Pegar datos'!$C$2769:$L$3045,4,0) -> 0 | V24: =VLOOKUP("32020GMEXICO",'[2]Pegar datos'!$C$2769:$L$3045,5,0)/1000000 -> 0 | W24: =VLOOKUP("32020GMEXICO",'[2]Pegar datos'!$C$2769:$L$3045,6,0) -> 0 | X24: =VLOOKUP("32020MEXICHEM",'[2]Pegar datos'!$C$2769:$L$3045,3,0) -> 0 | Y24: =VLOOKUP("32020MEXICHEM",'[2]Pegar datos'!$C$2769:$L$3045,4,0) -> 0 | Z24: =VLOOKUP("32020MEXICHEM",'[2]Pegar datos'!$C$2769:$L$3045,5,0)/1000000 -> 0 | AA24: =VLOOKUP("32020MEXICHEM",'[2]Pegar datos'!$C$2769:$L$3045,6,0) -> 0
A25: 2020-05-01 | B25: =VLOOKUP("52020IPC",'[3]Pegar datos'!$C$2773:$L$3049,3,0) -> 185 | C25: =VLOOKUP("52020IPC",'[3]Pegar datos'!$C$2773:$L$3049,4,0) -> 189 | D25: =VLOOKUP("52020IPC",'[3]Pegar datos'!$C$2773:$L$3049,5,0)/1000000 -> 68.14 | E25: =VLOOKUP("52020IPC",'[3]Pegar datos'!$C$2773:$L$3049,6,0) -> 405 | F25: =VLOOKUP("52020DOLAR",'[3]Pegar datos'!$C$2773:$L$3049,3,0) -> 20 | G25: =VLOOKUP("52020DOLAR",'[3]Pegar datos'!$C$2773:$L$3049,4,0) -> 1925 | H25: =VLOOKUP("52020DOLAR",'[3]Pegar datos'!$C$2773:$L$3049,5,0)/1000000 -> 452.655 | I25: =VLOOKUP("52020DOLAR",'[3]Pegar datos'!$C$2773:$L$3049,6,0) -> 12548 | J25: =VLOOKUP("52020AMOVIL",'[3]Pegar datos'!$C$2773:$L$3049,3,0) -> 0 | K25: =VLOOKUP("52020AMOVIL",'[3]Pegar datos'!$C$2773:$L$3049,4,0) -> 0 | L25: =VLOOKUP("52020AMOVIL",'[3]Pegar datos'!$C$2773:$L$3049,5,0)/1000000 -> 0 | M25: =VLOOKUP("52020AMOVIL",'[3]Pegar datos'!$C$2773:$L$3049,6,0) -> 6000 | O25: 2020-05-01 | P25: =VLOOKUP("52020TELEVISA",'[3]Pegar datos'!$C$2773:$L$3049,3,0) -> 0 | Q25: =VLOOKUP("52020TELEVISA",'[3]Pegar datos'!$C$2773:$L$3049,4,0) -> 0 | R25: =VLOOKUP("52020TELEVISA",'[3]Pegar datos'!$C$2773:$L$3049,5,0)/1000000 -> 0 | S25: =VLOOKUP("52020TELEVISA",'[3]Pegar datos'!$C$2773:$L$3049,6,0) -> 0 | T25: =VLOOKUP("52020GMEXICO",'[3]Pegar datos'!$C$2773:$L$3049,3,0) -> 0 | U25: =VLOOKUP("52020GMEXICO",'[3]Pegar datos'!$C$2773:$L$3049,4,0) -> 0 | V25: =VLOOKUP("52020GMEXICO",'[3]Pegar datos'!$C$2773:$L$3049,5,0)/1000000 -> 0 | W25: =VLOOKUP("52020GMEXICO",'[3]Pegar datos'!$C$2773:$L$3049,6,0) -> 0 | X25: =VLOOKUP("52020MEXICHEM",'[3]Pegar datos'!$C$2773:$L$3049,3,0) -> 0 | Y25: =VLOOKUP("52020MEXICHEM",'[3]Pegar datos'!$C$2773:$L$3049,4,0) -> 0 | Z25: =VLOOKUP("52020MEXICHEM",'[3]Pegar datos'!$C$2773:$L$3049,5,0)/1000000 -> 0 | AA25: =VLOOKUP("52020MEXICHEM",'[3]Pegar datos'!$C$2773:$L$3049,6,0) -> 0
A26: 2020-06-01 | B26: =VLOOKUP("62020IPC",'[4]Pegar datos'!$C$2775:$L$3051,3,0) -> 498 | C26: =VLOOKUP("62020IPC",'[4]Pegar datos'!$C$2775:$L$3051,4,0) -> 504 | D26: =VLOOKUP("62020IPC",'[4]Pegar datos'!$C$2775:$L$3051,5,0)/1000000 -> 185.3 | E26: =VLOOKUP("62020IPC",'[4]Pegar datos'!$C$2775:$L$3051,6,0) -> 182 | F26: =VLOOKUP("62020DOLAR",'[4]Pegar datos'!$C$2775:$L$3051,3,0) -> 11 | G26: =VLOOKUP("62020DOLAR",'[4]Pegar datos'!$C$2775:$L$3051,4,0) -> 2525 | H26: =VLOOKUP("62020DOLAR",'[4]Pegar datos'!$C$2775:$L$3051,5,0)/1000000 -> 555.55 | I26: =VLOOKUP("62020DOLAR",'[4]Pegar datos'!$C$2775:$L$3051,6,0) -> 5800 | J26: =VLOOKUP("62020AMOVIL",'[4]Pegar datos'!$C$2775:$L$3051,3,0) -> 0 | K26: =VLOOKUP("62020AMOVIL",'[4]Pegar datos'!$C$2775:$L$3051,4,0) -> 0 | L26: =VLOOKUP("62020AMOVIL",'[4]Pegar datos'!$C$2775:$L$3051,5,0)/1000000 -> 0 | M26: =VLOOKUP("62020AMOVIL",'[4]Pegar datos'!$C$2775:$L$3051,6,0) -> 0 | O26: 2020-06-01 | P26: =VLOOKUP("62020TELEVISA",'[4]Pegar datos'!$C$2775:$L$3051,3,0) -> 0 | Q26: =VLOOKUP("62020TELEVISA",'[4]Pegar datos'!$C$2775:$L$3051,4,0) -> 0 | R26: =VLOOKUP("62020TELEVISA",'[4]Pegar datos'!$C$2775:$L$3051,5,0)/1000000 -> 0 | S26: =VLOOKUP("62020TELEVISA",'[4]Pegar datos'!$C$2775:$L$3051,6,0) -> 0 | T26: =VLOOKUP("62020GMEXICO",'[4]Pegar datos'!$C$2775:$L$3051,3,0) -> 0 | U26: =VLOOKUP("62020GMEXICO",'[4]Pegar datos'!$C$2775:$L$3051,4,0) -> 0 | V26: =VLOOKUP("62020GMEXICO",'[4]Pegar datos'!$C$2775:$L$3051,5,0)/1000000 -> 0 | W26: =VLOOKUP("62020GMEXICO",'[4]Pegar datos'!$C$2775:$L$3051,6,0) -> 0 | X26: =VLOOKUP("62020MEXICHEM",'[4]Pegar datos'!$C$2775:$L$3051,3,0) -> 0 | Y26: =VLOOKUP("62020MEXICHEM",'[4]Pegar datos'!$C$2775:$L$3051,4,0) -> 0 | Z26: =VLOOKUP("62020MEXICHEM",'[4]Pegar datos'!$C$2775:$L$3051,5,0)/1000000 -> 0 | AA26: =VLOOKUP("62020MEXICHEM",'[4]Pegar datos'!$C$2775:$L$3051,6,0) -> 0
A27: 2020-07-01 | B27: =VLOOKUP("72020IPC",'[5]Pegar datos'!$C$2778:$L$3054,3,0) -> 488 | C27: =VLOOKUP("72020IPC",'[5]Pegar datos'!$C$2778:$L$3054,4,0) -> 491 | D27: =VLOOKUP("72020IPC",'[5]Pegar datos'!$C$2778:$L$3054,5,0)/1000000 -> 178.885 | E27: =VLOOKUP("72020IPC",'[5]Pegar datos'!$C$2778:$L$3054,6,0) -> 256 | F27: =VLOOKUP("72020DOLAR",'[5]Pegar datos'!$C$2778:$L$3054,3,0) -> 8 | G27: =VLOOKUP("72020DOLAR",'[5]Pegar datos'!$C$2778:$L$3054,4,0) -> 2000 | H27: =VLOOKUP("72020DOLAR",'[5]Pegar datos'!$C$2778:$L$3054,5,0)/1000000 -> 448.6 | I27: =VLOOKUP("72020DOLAR",'[5]Pegar datos'!$C$2778:$L$3054,6,0) -> 7800 | J27: =VLOOKUP("72020AMOVIL",'[5]Pegar datos'!$C$2778:$L$3054,3,0) -> 1 | K27: =VLOOKUP("72020AMOVIL",'[5]Pegar datos'!$C$2778:$L$3054,4,0) -> 10000 | L27: =VLOOKUP("72020AMOVIL",'[5]Pegar datos'!$C$2778:$L$3054,5,0)/1000000 -> 14 | M27: =VLOOKUP("72020AMOVIL",'[5]Pegar datos'!$C$2778:$L$3054,6,0) -> 10000 | O27: 2020-07-01 | P27: =VLOOKUP("72020TELEVISA",'[5]Pegar datos'!$C$2778:$L$3054,3,0) -> 0 | Q27: =VLOOKUP("72020TELEVISA",'[5]Pegar datos'!$C$2778:$L$3054,4,0) -> 0 | R27: =VLOOKUP("72020TELEVISA",'[5]Pegar datos'!$C$2778:$L$3054,5,0)/1000000 -> 0 | S27: =VLOOKUP("72020TELEVISA",'[5]Pegar datos'!$C$2778:$L$3054,6,0) -> 0 | T27: =VLOOKUP("72020GMEXICO",'[5]Pegar datos'!$C$2778:$L$3054,3,0) -> 0 | U27: =VLOOKUP("72020GMEXICO",'[5]Pegar datos'!$C$2778:$L$3054,4,0) -> 0 | V27: =VLOOKUP("72020GMEXICO",'[5]Pegar datos'!$C$2778:$L$3054,5,0)/1000000 -> 0 | W27: =VLOOKUP("72020GMEXICO",'[5]Pegar datos'!$C$2778:$L$3054,6,0) -> 0 | X27: =VLOOKUP("72020MEXICHEM",'[5]Pegar datos'!$C$2778:$L$3054,3,0) -> 0 | Y27: =VLOOKUP("72020MEXICHEM",'[5]Pegar datos'!$C$2778:$L$3054,4,0) -> 0 | Z27: =VLOOKUP("72020MEXICHEM",'[5]Pegar datos'!$C$2778:$L$3054,5,0)/1000000 -> 0 | AA27: =VLOOKUP("72020MEXICHEM",'[5]Pegar datos'!$C$2778:$L$3054,6,0) -> 0
A28: 2020-08-01 | B28: =VLOOKUP("82020IPC",'[6]Pegar datos'!$C$2781:$L$3057,3,0) -> 359 | C28: =VLOOKUP("82020IPC",'[6]Pegar datos'!$C$2781:$L$3057,4,0) -> 558 | D28: =VLOOKUP("82020IPC",'[6]Pegar datos'!$C$2781:$L$3057,5,0)/1000000 -> 210.535 | E28: =VLOOKUP("82020IPC",'[6]Pegar datos'!$C$2781:$L$3057,6,0) -> 446 | F28: =VLOOKUP("82020DOLAR",'[6]Pegar datos'!$C$2781:$L$3057,3,0) -> 6 | G28: =VLOOKUP("82020DOLAR",'[6]Pegar datos'!$C$2781:$L$3057,4,0) -> 300 | H28: =VLOOKUP("82020DOLAR",'[6]Pegar datos'!$C$2781:$L$3057,5,0)/1000000 -> 64.5 | I28: =VLOOKUP("82020DOLAR",'[6]Pegar datos'!$C$2781:$L$3057,6,0) -> 8000 | J28: =VLOOKUP("82020AMOVIL",'[6]Pegar datos'!$C$2781:$L$3057,3,0) -> 2 | K28: =VLOOKUP("82020AMOVIL",'[6]Pegar datos'!$C$2781:$L$3057,4,0) -> 10001 | L28: =VLOOKUP("82020AMOVIL",'[6]Pegar datos'!$C$2781:$L$3057,5,0)/1000000 -> 14.5011 | M28: =VLOOKUP("82020AMOVIL",'[6]Pegar datos'!$C$2781:$L$3057,6,0) -> 20000 | O28: 2020-08-01 | P28: =VLOOKUP("82020TELEVISA",'[6]Pegar datos'!$C$2781:$L$3057,3,0) -> 0 | Q28: =VLOOKUP("82020TELEVISA",'[6]Pegar datos'!$C$2781:$L$3057,4,0) -> 0 | R28: =VLOOKUP("82020TELEVISA",'[6]Pegar datos'!$C$2781:$L$3057,5,0)/1000000 -> 0 | S28: =VLOOKUP("82020TELEVISA",'[6]Pegar datos'!$C$2781:$L$3057,6,0) -> 0 | T28: =VLOOKUP("82020GMEXICO",'[6]Pegar datos'!$C$2781:$L$3057,3,0) -> 0 | U28: =VLOOKUP("82020GMEXICO",'[6]Pegar datos'!$C$2781:$L$3057,4,0) -> 0 | V28: =VLOOKUP("82020GMEXICO",'[6]Pegar datos'!$C$2781:$L$3057,5,0)/1000000 -> 0 | W28: =VLOOKUP("82020GMEXICO",'[6]Pegar datos'!$C$2781:$L$3057,6,0) -> 0 | X28: =VLOOKUP("82020MEXICHEM",'[6]Pegar datos'!$C$2781:$L$3057,3,0) -> 0 | Y28: =VLOOKUP("82020MEXICHEM",'[6]Pegar datos'!$C$2781:$L$3057,4,0) -> 0 | Z28: =VLOOKUP("82020MEXICHEM",'[6]Pegar datos'!$C$2781:$L$3057,5,0)/1000000 -> 0 | AA28: =VLOOKUP("82020MEXICHEM",'[6]Pegar datos'!$C$2781:$L$3057,6,0) -> 0
A29: 2020-09-01 | B29: =VLOOKUP("92020IPC",'[7]Pegar datos'!$C$2784:$L$3060,3,0) -> 418 | C29: =VLOOKUP("92020IPC",'[7]Pegar datos'!$C$2784:$L$3060,4,0) -> 1038 | D29: =VLOOKUP("92020IPC",'[7]Pegar datos'!$C$2784:$L$3060,5,0)/1000000 -> 383.655 | E29: =VLOOKUP("92020IPC",'[7]Pegar datos'!$C$2784:$L$3060,6,0) -> 738 | F29: =VLOOKUP("92020DOLAR",'[7]Pegar datos'!$C$2784:$L$3060,3,0) -> 19 | G29: =VLOOKUP("92020DOLAR",'[7]Pegar datos'!$C$2784:$L$3060,4,0) -> 11120 | H29: =VLOOKUP("92020DOLAR",'[7]Pegar datos'!$C$2784:$L$3060,5,0)/1000000 -> 2426.5 | I29: =VLOOKUP("92020DOLAR",'[7]Pegar datos'!$C$2784:$L$3060,6,0) -> 3280 | J29: =VLOOKUP("92020AMOVIL",'[7]Pegar datos'!$C$2784:$L$3060,3,0) -> 0 | K29: =VLOOKUP("92020AMOVIL",'[7]Pegar datos'!$C$2784:$L$3060,4,0) -> 0 | L29: =VLOOKUP("92020AMOVIL",'[7]Pegar datos'!$C$2784:$L$3060,5,0)/1000000 -> 0 | M29: =VLOOKUP("92020AMOVIL",'[7]Pegar datos'!$C$2784:$L$3060,6,0) -> 0 | O29: 2020-09-01 | P29: =VLOOKUP("92020TELEVISA",'[7]Pegar datos'!$C$2784:$L$3060,3,0) -> 0 | Q29: =VLOOKUP("92020TELEVISA",'[7]Pegar datos'!$C$2784:$L$3060,4,0) -> 0 | R29: =VLOOKUP("92020TELEVISA",'[7]Pegar datos'!$C$2784:$L$3060,5,0)/1000000 -> 0 | S29: =VLOOKUP("92020TELEVISA",'[7]Pegar datos'!$C$2784:$L$3060,6,0) -> 0 | T29: =VLOOKUP("92020GMEXICO",'[7]Pegar datos'!$C$2784:$L$3060,3,0) -> 0 | U29: =VLOOKUP("92020GMEXICO",'[7]Pegar datos'!$C$2784:$L$3060,4,0) -> 0 | V29: =VLOOKUP("92020GMEXICO",'[7]Pegar datos'!$C$2784:$L$3060,5,0)/1000000 -> 0 | W29: =VLOOKUP("92020GMEXICO",'[7]Pegar datos'!$C$2784:$L$3060,6,0) -> 0 | X29: =VLOOKUP("92020MEXICHEM",'[7]Pegar datos'!$C$2784:$L$3060,3,0) -> 0 | Y29: =VLOOKUP("92020MEXICHEM",'[7]Pegar datos'!$C$2784:$L$3060,4,0) -> 0 | Z29: =VLOOKUP("92020MEXICHEM",'[7]Pegar datos'!$C$2784:$L$3060,5,0)/1000000 -> 0 | AA29: =VLOOKUP("92020MEXICHEM",'[7]Pegar datos'!$C$2784:$L$3060,6,0) -> 0
A30: 2020-10-01 | B30: =VLOOKUP("102020IPC",'[8]Pegar datos'!$C$2787:$L$3063,3,0) -> 488 | C30: =VLOOKUP("102020IPC",'[8]Pegar datos'!$C$2787:$L$3063,4,0) -> 1623 | D30: =VLOOKUP("102020IPC",'[8]Pegar datos'!$C$2787:$L$3063,5,0)/1000000 -> 594.445 | E30: =VLOOKUP("102020IPC",'[8]Pegar datos'!$C$2787:$L$3063,6,0) -> 1848 | F30: =VLOOKUP("102020DOLAR",'[8]Pegar datos'!$C$2787:$L$3063,3,0) -> 7 | G30: =VLOOKUP("102020DOLAR",'[8]Pegar datos'!$C$2787:$L$3063,4,0) -> 2600 | H30: =VLOOKUP("102020DOLAR",'[8]Pegar datos'!$C$2787:$L$3063,5,0)/1000000 -> 571.4 | I30: =VLOOKUP("102020DOLAR",'[8]Pegar datos'!$C$2787:$L$3063,6,0) -> 5880 | J30: =VLOOKUP("102020AMOVIL",'[8]Pegar datos'!$C$2787:$L$3063,3,0) -> 0 | K30: =VLOOKUP("102020AMOVIL",'[8]Pegar datos'!$C$2787:$L$3063,4,0) -> 0 | L30: =VLOOKUP("102020AMOVIL",'[8]Pegar datos'!$C$2787:$L$3063,5,0)/1000000 -> 0 | M30: =VLOOKUP("102020AMOVIL",'[8]Pegar datos'!$C$2787:$L$3063,6,0) -> 0 | O30: 2020-10-01 | P30: =VLOOKUP("102020TELEVISA",'[8]Pegar datos'!$C$2787:$L$3063,3,0) -> 0 | Q30: =VLOOKUP("102020TELEVISA",'[8]Pegar datos'!$C$2787:$L$3063,4,0) -> 0 | R30: =VLOOKUP("102020TELEVISA",'[8]Pegar datos'!$C$2787:$L$3063,5,0)/1000000 -> 0 | S30: =VLOOKUP("102020TELEVISA",'[8]Pegar datos'!$C$2787:$L$3063,6,0) -> 0 | T30: =VLOOKUP("102020GMEXICO",'[8]Pegar datos'!$C$2787:$L$3063,3,0) -> 0 | U30: =VLOOKUP("102020GMEXICO",'[8]Pegar datos'!$C$2787:$L$3063,4,0) -> 0 | V30: =VLOOKUP("102020GMEXICO",'[8]Pegar datos'!$C$2787:$L$3063,5,0)/1000000 -> 0 | W30: =VLOOKUP("102020GMEXICO",'[8]Pegar datos'!$C$2787:$L$3063,6,0) -> 0 | X30: =VLOOKUP("102020MEXICHEM",'[8]Pegar datos'!$C$2787:$L$3063,3,0) -> 0 | Y30: =VLOOKUP("102020MEXICHEM",'[8]Pegar datos'!$C$2787:$L$3063,4,0) -> 0 | Z30: =VLOOKUP("102020MEXICHEM",'[8]Pegar datos'!$C$2787:$L$3063,5,0)/1000000 -> 0 | AA30: =VLOOKUP("102020MEXICHEM",'[8]Pegar datos'!$C$2787:$L$3063,6,0) -> 0
A31: 2020-11-01 | B31: =VLOOKUP("112020IPC",'[9]Pegar datos'!$C$2790:$L$3066,3,0) -> 178 | C31: =VLOOKUP("112020IPC",'[9]Pegar datos'!$C$2790:$L$3066,4,0) -> 178 | D31: =VLOOKUP("112020IPC",'[9]Pegar datos'!$C$2790:$L$3066,5,0)/1000000 -> 69.425 | E31: =VLOOKUP("112020IPC",'[9]Pegar datos'!$C$2790:$L$3066,6,0) -> 1890 | F31: =VLOOKUP("112020DOLAR",'[9]Pegar datos'!$C$2790:$L$3066,3,0) -> 5 | G31: =VLOOKUP("112020DOLAR",'[9]Pegar datos'!$C$2790:$L$3066,4,0) -> 1000 | H31: =VLOOKUP("112020DOLAR",'[9]Pegar datos'!$C$2790:$L$3066,5,0)/1000000 -> 204.4 | I31: =VLOOKUP("112020DOLAR",'[9]Pegar datos'!$C$2790:$L$3066,6,0) -> 6880 | J31: =VLOOKUP("112020AMOVIL",'[9]Pegar datos'!$C$2790:$L$3066,3,0) -> 0 | K31: =VLOOKUP("112020AMOVIL",'[9]Pegar datos'!$C$2790:$L$3066,4,0) -> 0 | L31: =VLOOKUP("112020AMOVIL",'[9]Pegar datos'!$C$2790:$L$3066,5,0)/1000000 -> 0 | M31: =VLOOKUP("112020AMOVIL",'[9]Pegar datos'!$C$2790:$L$3066,6,0) -> 0 | O31: 2020-11-01 | P31: =VLOOKUP("112020TELEVISA",'[9]Pegar datos'!$C$2790:$L$3066,3,0) -> 0 | Q31: =VLOOKUP("112020TELEVISA",'[9]Pegar datos'!$C$2790:$L$3066,4,0) -> 0 | R31: =VLOOKUP("112020TELEVISA",'[9]Pegar datos'!$C$2790:$L$3066,5,0)/1000000 -> 0 | S31: =VLOOKUP("112020TELEVISA",'[9]Pegar datos'!$C$2790:$L$3066,6,0) -> 0 | T31: =VLOOKUP("112020GMEXICO",'[9]Pegar datos'!$C$2790:$L$3066,3,0) -> 0 | U31: =VLOOKUP("112020GMEXICO",'[9]Pegar datos'!$C$2790:$L$3066,4,0) -> 0 | V31: =VLOOKUP("112020GMEXICO",'[9]Pegar datos'!$C$2790:$L$3066,5,0)/1000000 -> 0 | W31: =VLOOKUP("112020GMEXICO",'[9]Pegar datos'!$C$2790:$L$3066,6,0) -> 0 | X31: =VLOOKUP("112020MEXICHEM",'[9]Pegar datos'!$C$2790:$L$3066,3,0) -> 0 | Y31: =VLOOKUP("112020MEXICHEM",'[9]Pegar datos'!$C$2790:$L$3066,4,0) -> 0 | Z31: =VLOOKUP("112020MEXICHEM",'[9]Pegar datos'!$C$2790:$L$3066,5,0)/1000000 -> 0 | AA31: =VLOOKUP("112020MEXICHEM",'[9]Pegar datos'!$C$2790:$L$3066,6,0) -> 0
A32: 2020-12-01 | B32: =VLOOKUP("122020IPC",'[10]Pegar datos'!$C$2793:$L$3069,3,0) -> 369 | C32: =VLOOKUP("122020IPC",'[10]Pegar datos'!$C$2793:$L$3069,4,0) -> 370 | D32: =VLOOKUP("122020IPC",'[10]Pegar datos'!$C$2793:$L$3069,5,0)/1000000 -> 161.06 | E32: =VLOOKUP("122020IPC",'[10]Pegar datos'!$C$2793:$L$3069,6,0) -> 168 | F32: =VLOOKUP("122020DOLAR",'[10]Pegar datos'!$C$2793:$L$3069,3,0) -> 14 | G32: =VLOOKUP("122020DOLAR",'[10]Pegar datos'!$C$2793:$L$3069,4,0) -> 5200 | H32: =VLOOKUP("122020DOLAR",'[10]Pegar datos'!$C$2793:$L$3069,5,0)/1000000 -> 1088.6 | I32: =VLOOKUP("122020DOLAR",'[10]Pegar datos'!$C$2793:$L$3069,6,0) -> 80 | J32: =VLOOKUP("122020AMOVIL",'[10]Pegar datos'!$C$2793:$L$3069,3,0) -> 0 | K32: =VLOOKUP("122020AMOVIL",'[10]Pegar datos'!$C$2793:$L$3069,4,0) -> 0 | L32: =VLOOKUP("122020AMOVIL",'[10]Pegar datos'!$C$2793:$L$3069,5,0)/1000000 -> 0 | M32: =VLOOKUP("122020AMOVIL",'[10]Pegar datos'!$C$2793:$L$3069,6,0) -> 0 | O32: 2020-12-01 | P32: =VLOOKUP("122020TELEVISA",'[10]Pegar datos'!$C$2793:$L$3069,3,0) -> 0 | Q32: =VLOOKUP("122020TELEVISA",'[10]Pegar datos'!$C$2793:$L$3069,4,0) -> 0 | R32: =VLOOKUP("122020TELEVISA",'[10]Pegar datos'!$C$2793:$L$3069,5,0)/1000000 -> 0 | S32: =VLOOKUP("122020TELEVISA",'[10]Pegar datos'!$C$2793:$L$3069,6,0) -> 0 | T32: =VLOOKUP("122020GMEXICO",'[10]Pegar datos'!$C$2793:$L$3069,3,0) -> 0 | U32: =VLOOKUP("122020GMEXICO",'[10]Pegar datos'!$C$2793:$L$3069,4,0) -> 0 | V32: =VLOOKUP("122020GMEXICO",'[10]Pegar datos'!$C$2793:$L$3069,5,0)/1000000 -> 0 | W32: =VLOOKUP("122020GMEXICO",'[10]Pegar datos'!$C$2793:$L$3069,6,0) -> 0 | X32: =VLOOKUP("122020MEXICHEM",'[10]Pegar datos'!$C$2793:$L$3069,3,0) -> 0 | Y32: =VLOOKUP("122020MEXICHEM",'[10]Pegar datos'!$C$2793:$L$3069,4,0) -> 0 | Z32: =VLOOKUP("122020MEXICHEM",'[10]Pegar datos'!$C$2793:$L$3069,5,0)/1000000 -> 0 | AA32: =VLOOKUP("122020MEXICHEM",'[10]Pegar datos'!$C$2793:$L$3069,6,0) -> 0
A33: (1) In Millions
B35: CEMEX | F35: WALMEX | J35: NAFTRAC | P35: FEMSA
B36: Trades | C36: Volume | D36: Notional Value | E36: Open Interest | F36: Trades | G36: Volume | H36: Notional Value | I36: Open Interest | J36: Trades | K36: Volume | L36: Notional Value | M36: Open Interest | P36: Trades | Q36: Volume | R36: Notional Value | S36: Open Interest
A38: 2019-01-01 | B38: 6 | C38: 10300 | D38: 10305000 | E38: 10240 | F38: 0 | G38: 0 | H38: 0 | I38: 42540 | J38: 2 | K38: 2 | L38: 8600 | M38: 2 | O38: 2019-01-01 | P38: 0 | Q38: 0 | R38: 0 | S38: 0
A39: 2019-02-01 | B39: 8 | C39: 34190 | D39: 32190000 | E39: 31860 | F39: 3 | G39: 2000 | H39: 9800000 | I39: 44540 | J39: 0 | K39: 0 | L39: 0 | M39: 2 | O39: 2019-02-01 | P39: 0 | Q39: 0 | R39: 0 | S39: 0
A40: 2019-03-01 | B40: 5 | C40: 30000 | D40: 27000000 | E40: 10000 | F40: 6 | G40: 4000 | H40: 19900000 | I40: 44540 | J40: 0 | K40: 0 | L40: 0 | M40: 0 | O40: 2019-03-01 | P40: 0 | Q40: 0 | R40: 0 | S40: 0
A41: 2019-04-01 | B41: 5 | C41: 37000 | D41: 33300000 | E41: 31000 | F41: 3 | G41: 4100 | H41: 23350000 | I41: 48640 | J41: 0 | K41: 0 | L41: 0 | M41: 0 | O41: 2019-04-01 | P41: 0 | Q41: 0 | R41: 0 | S41: 0
A42: 2019-05-01 | B42: 15 | C42: 93500 | D42: 80400000 | E42: 78500 | F42: 1 | G42: 1300 | H42: 6630000 | I42: 48340 | J42: 0 | K42: 0 | L42: 0 | M42: 0 | O42: 2019-05-01 | P42: 0 | Q42: 0 | R42: 0 | S42: 0
A43: 2019-06-01 | B43: 2 | C43: 20000 | D43: 14000000 | E43: 20000 | F43: 0 | G43: 0 | H43: 0 | I43: 0 | J43: 0 | K43: 0 | L43: 0 | M43: 0 | O43: 2019-06-01 | P43: 0 | Q43: 0 | R43: 0 | S43: 0
A44: 2019-07-01 | B44: 2 | C44: 10000 | D44: 7000000 | E44: 30000 | F44: 0 | G44: 0 | H44: 0 | I44: 0 | J44: 0 | K44: 0 | L44: 0 | M44: 0 | O44: 2019-07-01 | P44: 0 | Q44: 0 | R44: 0 | S44: 0
A45: 2019-08-01 | B45: 4 | C45: 27500 | D45: 17875000 | E45: 55000 | F45: 1 | G45: 10000 | H45: 57000000 | I45: 10000 | J45: 0 | K45: 0 | L45: 0 | M45: 0 | O45: 2019-08-01 | P45: 0 | Q45: 0 | R45: 0 | S45: 0
A46: 2019-09-01 | B46: 6 | C46: 30000 | D46: 21500000 | E46: 10000 | F46: 5 | G46: 5585 | H46: 32650000 | I46: 15585 | J46: 0 | K46: 0 | L46: 0 | M46: 0 | O46: 2019-09-01 | P46: 0 | Q46: 0 | R46: 0 | S46: 0
A47: 2019-10-01 | B47: 1 | C47: 5000 | D47: 3750000 | E47: 15000 | F47: 6 | G47: 7000 | H47: 39750000 | I47: 15085 | J47: 0 | K47: 0 | L47: 0 | M47: 0 | O47: 2019-10-01 | P47: 0 | Q47: 0 | R47: 0 | S47: 0
A48: 2019-11-01 | B48: 8 | C48: 30380 | D48: 22025500 | E48: 25000 | F48: 6 | G48: 24085 | H48: 132113000 | I48: 15150 | J48: 0 | K48: 0 | L48: 0 | M48: 0 | O48: 2019-11-01 | P48: 0 | Q48: 0 | R48: 0 | S48: 0
A49: 2019-12-01 | B49: 1 | C49: 15000 | D49: 10500000 | E49: 15000 | F49: 0 | G49: 0 | H49: 0 | I49: 0 | J49: 0 | K49: 0 | L49: 0 | M49: 0 | O49: 2019-12-01 | P49: 0 | Q49: 0 | R49: 0 | S49: 0
A50: 2020-01-01 | B50: 12 | C50: 24358 | D50: 17050600 | E50: 24358 | F50: 1 | G50: 12 | H50: 67200 | I50: 12 | J50: 0 | K50: 0 | L50: 0 | M50: 0 | O50: 2020-01-01 | P50: 0 | Q50: 0 | R50: 0 | S50: 0
A51: 2020-02-01 | B51: =VLOOKUP("22020CEMEX",'[1]Pegar datos'!$C$2768:$L$3044,3,0) -> 7 | C51: =VLOOKUP("22020CEMEX",'[1]Pegar datos'!$C$2768:$L$3044,4,0) -> 35378 | D51: =VLOOKUP("22020CEMEX",'[1]Pegar datos'!$C$2768:$L$3044,5,0) -> 24662600 | E51: =VLOOKUP("22020CEMEX",'[1]Pegar datos'!$C$2768:$L$3044,6,0) -> 35348 | F51: =VLOOKUP("22020WALMART",'[1]Pegar datos'!$C$2768:$L$3044,3,0) -> 1 | G51: =VLOOKUP("22020WALMART",'[1]Pegar datos'!$C$2768:$L$3044,4,0) -> 12 | H51: =VLOOKUP("22020WALMART",'[1]Pegar datos'!$C$2768:$L$3044,5,0) -> 67200 | I51: =VLOOKUP("22020WALMART",'[1]Pegar datos'!$C$2768:$L$3044,6,0) -> 0 | J51: =VLOOKUP("22020NAFTRAC",'[1]Pegar datos'!$C$2768:$L$3044,3,0) -> 0 | K51: =VLOOKUP("22020NAFTRAC",'[1]Pegar datos'!$C$2768:$L$3044,4,0) -> 0 | L51: =VLOOKUP("22020NAFTRAC",'[1]Pegar datos'!$C$2768:$L$3044,5,0)/1000000 -> 0 | M51: =VLOOKUP("22020NAFTRAC",'[1]Pegar datos'!$C$2768:$L$3044,6,0) -> 0 | O51: 2020-02-01 | P51: =VLOOKUP("22020FEMSA",'[1]Pegar datos'!$C$2768:$L$3044,3,0) -> 0 | Q51: =VLOOKUP("22020FEMSA",'[1]Pegar datos'!$C$2768:$L$3044,4,0) -> 0 | R51: =VLOOKUP("22020FEMSA",'[1]Pegar datos'!$C$2768:$L$3044,5,0)/1000000 -> 0 | S51: =VLOOKUP("22020FEMSA",'[1]Pegar datos'!$C$2768:$L$3044,6,0) -> 0
A52: 2020-03-01 | B52: =VLOOKUP("32020CEMEX",'[2]Pegar datos'!$C$2769:$L$3045,3,0) -> 0 | C52: =VLOOKUP("32020CEMEX",'[2]Pegar datos'!$C$2769:$L$3045,4,0) -> 0 | D52: =VLOOKUP("32020CEMEX",'[2]Pegar datos'!$C$2769:$L$3045,5,0) -> 0 | E52: =VLOOKUP("32020CEMEX",'[2]Pegar datos'!$C$2769:$L$3045,6,0) -> 10000 | F52: =VLOOKUP("32020WALMART",'[2]Pegar datos'!$C$2769:$L$3045,3,0) -> 0 | G52: =VLOOKUP("32020WALMART",'[2]Pegar datos'!$C$2769:$L$3045,4,0) -> 0 | H52: =VLOOKUP("32020WALMART",'[2]Pegar datos'!$C$2769:$L$3045,5,0)/1000000 -> 0 | I52: =VLOOKUP("32020WALMART",'[2]Pegar datos'!$C$2769:$L$3045,6,0) -> 0 | J52: =VLOOKUP("32020NAFTRAC",'[2]Pegar datos'!$C$2769:$L$3045,3,0) -> 0 | K52: =VLOOKUP("32020NAFTRAC",'[2]Pegar datos'!$C$2769:$L$3045,4,0) -> 0 | L52: =VLOOKUP("32020NAFTRAC",'[2]Pegar datos'!$C$2769:$L$3045,5,0)/1000000 -> 0 | M52: =VLOOKUP("32020NAFTRAC",'[2]Pegar datos'!$C$2769:$L$3045,6,0) -> 0 | O52: 2020-03-01 | P52: =VLOOKUP("32020FEMSA",'[2]Pegar datos'!$C$2769:$L$3045,3,0) -> 0 | Q52: =VLOOKUP("32020FEMSA",'[2]Pegar datos'!$C$2769:$L$3045,4,0) -> 0 | R52: =VLOOKUP("32020FEMSA",'[2]Pegar datos'!$C$2769:$L$3045,5,0)/1000000 -> 0 | S52: =VLOOKUP("32020FEMSA",'[2]Pegar datos'!$C$2769:$L$3045,6,0) -> 0
A53: 2020-04-01 | B53: 0 | C53: 0 | D53: 0 | E53: 10000 | F53: 0 | G53: 0 | H53: 0 | I53: 0 | J53: 0 | K53: 0 | L53: 0 | M53: 0 | O53: 2020-04-01 | P53: =VLOOKUP("32020FEMSA",'[2]Pegar datos'!$C$2769:$L$3045,3,0) -> 0 | Q53: =VLOOKUP("32020FEMSA",'[2]Pegar datos'!$C$2769:$L$3045,4,0) -> 0 | R53: =VLOOKUP("32020FEMSA",'[2]Pegar datos'!$C$2769:$L$3045,5,0)/1000000 -> 0 | S53: =VLOOKUP("32020FEMSA",'[2]Pegar datos'!$C$2769:$L$3045,6,0) -> 0
A54: 2020-05-01 | B54: =VLOOKUP("52020CEMEX",'[3]Pegar datos'!$C$2773:$L$3049,3,0) -> 0 | C54: =VLOOKUP("52020CEMEX",'[3]Pegar datos'!$C$2773:$L$3049,4,0) -> 0 | D54: =VLOOKUP("52020CEMEX",'[3]Pegar datos'!$C$2773:$L$3049,5,0)/1000000 -> 0 | E54: =VLOOKUP("52020CEMEX",'[3]Pegar datos'!$C$2773:$L$3049,6,0) -> 10000 | F54: =VLOOKUP("52020WALMART",'[3]Pegar datos'!$C$2773:$L$3049,3,0) -> 0 | G54: =VLOOKUP("52020WALMART",'[3]Pegar datos'!$C$2773:$L$3049,4,0) -> 0 | H54: =VLOOKUP("52020WALMART",'[3]Pegar datos'!$C$2773:$L$3049,5,0)/1000000 -> 0 | I54: =VLOOKUP("52020WALMART",'[3]Pegar datos'!$C$2773:$L$3049,6,0) -> 0 | J54: =VLOOKUP("52020NAFTRAC",'[3]Pegar datos'!$C$2773:$L$3049,3,0) -> 0 | K54: =VLOOKUP("52020NAFTRAC",'[3]Pegar datos'!$C$2773:$L$3049,4,0) -> 0 | L54: =VLOOKUP("52020NAFTRAC",'[3]Pegar datos'!$C$2773:$L$3049,5,0)/1000000 -> 0 | M54: =VLOOKUP("52020NAFTRAC",'[3]Pegar datos'!$C$2773:$L$3049,6,0) -> 0 | O54: 2020-05-01 | P54: =VLOOKUP("52020FEMSA",'[3]Pegar datos'!$C$2773:$L$3049,3,0) -> 0 | Q54: =VLOOKUP("52020FEMSA",'[3]Pegar datos'!$C$2773:$L$3049,4,0) -> 0 | R54: =VLOOKUP("52020FEMSA",'[3]Pegar datos'!$C$2773:$L$3049,5,0)/1000000 -> 0 | S54: =VLOOKUP("52020FEMSA",'[3]Pegar datos'!$C$2773:$L$3049,6,0) -> 0
A55: 2020-06-01 | B55: =VLOOKUP("62020CEMEX",'[4]Pegar datos'!$C$2775:$L$3051,3,0) -> 0 | C55: =VLOOKUP("62020CEMEX",'[4]Pegar datos'!$C$2775:$L$3051,4,0) -> 0 | D55: =VLOOKUP("62020CEMEX",'[4]Pegar datos'!$C$2775:$L$3051,5,0)/1000000 -> 0 | E55: =VLOOKUP("62020CEMEX",'[4]Pegar datos'!$C$2775:$L$3051,6,0) -> 0 | F55: =VLOOKUP("62020WALMART",'[4]Pegar datos'!$C$2775:$L$3051,3,0) -> 0 | G55: =VLOOKUP("62020WALMART",'[4]Pegar datos'!$C$2775:$L$3051,4,0) -> 0 | H55: =VLOOKUP("62020WALMART",'[4]Pegar datos'!$C$2775:$L$3051,5,0)/1000000 -> 0 | I55: =VLOOKUP("62020WALMART",'[4]Pegar datos'!$C$2775:$L$3051,6,0) -> 0 | J55: =VLOOKUP("62020NAFTRAC",'[4]Pegar datos'!$C$2775:$L$3051,3,0) -> 0 | K55: =VLOOKUP("62020NAFTRAC",'[4]Pegar datos'!$C$2775:$L$3051,4,0) -> 0 | L55: =VLOOKUP("62020NAFTRAC",'[4]Pegar datos'!$C$2775:$L$3051,5,0)/1000000 -> 0 | M55: =VLOOKUP("62020NAFTRAC",'[4]Pegar datos'!$C$2775:$L$3051,6,0) -> 0 | O55: 2020-06-01 | P55: =VLOOKUP("62020FEMSA",'[4]Pegar datos'!$C$2775:$L$3051,3,0) -> 0 | Q55: =VLOOKUP("62020FEMSA",'[4]Pegar datos'!$C$2775:$L$3051,4,0) -> 0 | R55: =VLOOKUP("62020FEMSA",'[4]Pegar datos'!$C$2775:$L$3051,5,0)/1000000 -> 0 | S55: =VLOOKUP("62020FEMSA",'[4]Pegar datos'!$C$2775:$L$3051,6,0) -> 0
A56: 2020-07-01 | B56: =VLOOKUP("72020CEMEX",'[5]Pegar datos'!$C$2778:$L$3054,3,0) -> 0 | C56: =VLOOKUP("72020CEMEX",'[5]Pegar datos'!$C$2778:$L$3054,4,0) -> 0 | D56: =VLOOKUP("72020CEMEX",'[5]Pegar datos'!$C$2778:$L$3054,5,0)/1000000 -> 0 | E56: =VLOOKUP("72020CEMEX",'[5]Pegar datos'!$C$2778:$L$3054,6,0) -> 0 | F56: =VLOOKUP("72020WALMART",'[5]Pegar datos'!$C$2778:$L$3054,3,0) -> 0 | G56: =VLOOKUP("72020WALMART",'[5]Pegar datos'!$C$2778:$L$3054,4,0) -> 0 | H56: =VLOOKUP("72020WALMART",'[5]Pegar datos'!$C$2778:$L$3054,5,0)/1000000 -> 0 | I56: =VLOOKUP("72020WALMART",'[5]Pegar datos'!$C$2778:$L$3054,6,0) -> 0 | J56: =VLOOKUP("72020NAFTRAC",'[5]Pegar datos'!$C$2778:$L$3054,3,0) -> 0 | K56: =VLOOKUP("72020NAFTRAC",'[5]Pegar datos'!$C$2778:$L$3054,4,0) -> 0 | L56: =VLOOKUP("72020NAFTRAC",'[5]Pegar datos'!$C$2778:$L$3054,5,0)/1000000 -> 0 | M56: =VLOOKUP("72020NAFTRAC",'[5]Pegar datos'!$C$2778:$L$3054,6,0) -> 0 | O56: 2020-07-01 | P56: =VLOOKUP("72020FEMSA",'[5]Pegar datos'!$C$2778:$L$3054,3,0) -> 0 | Q56: =VLOOKUP("72020FEMSA",'[5]Pegar datos'!$C$2778:$L$3054,4,0) -> 0 | R56: =VLOOKUP("72020FEMSA",'[5]Pegar datos'!$C$2778:$L$3054,5,0)/1000000 -> 0 | S56: =VLOOKUP("72020FEMSA",'[5]Pegar datos'!$C$2778:$L$3054,6,0) -> 0
A57: 2020-08-01 | B57: =VLOOKUP("82020CEMEX",'[6]Pegar datos'!$C$2781:$L$3057,3,0) -> 6 | C57: =VLOOKUP("82020CEMEX",'[6]Pegar datos'!$C$2781:$L$3057,4,0) -> 23000 | D57: =VLOOKUP("82020CEMEX",'[6]Pegar datos'!$C$2781:$L$3057,5,0)/1000000 -> 17.25 | E57: =VLOOKUP("82020CEMEX",'[6]Pegar datos'!$C$2781:$L$3057,6,0) -> 23000 | F57: =VLOOKUP("82020WALMART",'[6]Pegar datos'!$C$2781:$L$3057,3,0) -> 1 | G57: =VLOOKUP("82020WALMART",'[6]Pegar datos'!$C$2781:$L$3057,4,0) -> 1 | H57: =VLOOKUP("82020WALMART",'[6]Pegar datos'!$C$2781:$L$3057,5,0)/1000000 -> 0.0063 | I57: =VLOOKUP("82020WALMART",'[6]Pegar datos'!$C$2781:$L$3057,6,0) -> 0 | J57: =VLOOKUP("82020NAFTRAC",'[6]Pegar datos'!$C$2781:$L$3057,3,0) -> 0 | K57: =VLOOKUP("82020NAFTRAC",'[6]Pegar datos'!$C$2781:$L$3057,4,0) -> 0 | L57: =VLOOKUP("82020NAFTRAC",'[6]Pegar datos'!$C$2781:$L$3057,5,0)/1000000 -> 0 | M57: =VLOOKUP("82020NAFTRAC",'[6]Pegar datos'!$C$2781:$L$3057,6,0) -> 0 | O57: 2020-08-01 | P57: =VLOOKUP("82020FEMSA",'[6]Pegar datos'!$C$2781:$L$3057,3,0) -> 2 | Q57: =VLOOKUP("82020FEMSA",'[6]Pegar datos'!$C$2781:$L$3057,4,0) -> 10000 | R57: =VLOOKUP("82020FEMSA",'[6]Pegar datos'!$C$2781:$L$3057,5,0)/1000000 -> 132.5 | S57: =VLOOKUP("82020FEMSA",'[6]Pegar datos'!$C$2781:$L$3057,6,0) -> 10000
A58: 2020-09-01 | B58: =VLOOKUP("92020CEMEX",'[7]Pegar datos'!$C$2784:$L$3060,3,0) -> 1 | C58: =VLOOKUP("92020CEMEX",'[7]Pegar datos'!$C$2784:$L$3060,4,0) -> 13000 | D58: =VLOOKUP("92020CEMEX",'[7]Pegar datos'!$C$2784:$L$3060,5,0)/1000000 -> 9.75 | E58: =VLOOKUP("92020CEMEX",'[7]Pegar datos'!$C$2784:$L$3060,6,0) -> 26000 | F58: =VLOOKUP("92020WALMART",'[7]Pegar datos'!$C$2784:$L$3060,3,0) -> 1 | G58: =VLOOKUP("92020WALMART",'[7]Pegar datos'!$C$2784:$L$3060,4,0) -> 2000 | H58: =VLOOKUP("92020WALMART",'[7]Pegar datos'!$C$2784:$L$3060,5,0)/1000000 -> 10.2 | I58: =VLOOKUP("92020WALMART",'[7]Pegar datos'!$C$2784:$L$3060,6,0) -> 2000 | J58: =VLOOKUP("92020NAFTRAC",'[7]Pegar datos'!$C$2784:$L$3060,3,0) -> 0 | K58: =VLOOKUP("92020NAFTRAC",'[7]Pegar datos'!$C$2784:$L$3060,4,0) -> 0 | L58: =VLOOKUP("92020NAFTRAC",'[7]Pegar datos'!$C$2784:$L$3060,5,0)/1000000 -> 0 | M58: =VLOOKUP("92020NAFTRAC",'[7]Pegar datos'!$C$2784:$L$3060,6,0) -> 0 | O58: 2020-09-01 | P58: =VLOOKUP("92020FEMSA",'[7]Pegar datos'!$C$2784:$L$3060,3,0) -> 0 | Q58: =VLOOKUP("92020FEMSA",'[7]Pegar datos'!$C$2784:$L$3060,4,0) -> 0 | R58: =VLOOKUP("92020FEMSA",'[7]Pegar datos'!$C$2784:$L$3060,5,0)/1000000 -> 0 | S58: =VLOOKUP("92020FEMSA",'[7]Pegar datos'!$C$2784:$L$3060,6,0) -> 0
A59: 2020-10-01 | B59: =VLOOKUP("102020CEMEX",'[8]Pegar datos'!$C$2787:$L$3063,3,0) -> 0 | C59: =VLOOKUP("102020CEMEX",'[8]Pegar datos'!$C$2787:$L$3063,4,0) -> 0 | D59: =VLOOKUP("102020CEMEX",'[8]Pegar datos'!$C$2787:$L$3063,5,0)/1000000 -> 0 | E59: =VLOOKUP("102020CEMEX",'[8]Pegar datos'!$C$2787:$L$3063,6,0) -> 26000 | F59: =VLOOKUP("102020WALMART",'[8]Pegar datos'!$C$2787:$L$3063,3,0) -> 1 | G59: =VLOOKUP("102020WALMART",'[8]Pegar datos'!$C$2787:$L$3063,4,0) -> 5000 | H59: =VLOOKUP("102020WALMART",'[8]Pegar datos'!$C$2787:$L$3063,5,0)/1000000 -> 25.5 | I59: =VLOOKUP("102020WALMART",'[8]Pegar datos'!$C$2787:$L$3063,6,0) -> 7000 | J59: =VLOOKUP("102020NAFTRAC",'[8]Pegar datos'!$C$2787:$L$3063,3,0) -> 0 | K59: =VLOOKUP("102020NAFTRAC",'[8]Pegar datos'!$C$2787:$L$3063,4,0) -> 0 | L59: =VLOOKUP("102020NAFTRAC",'[8]Pegar datos'!$C$2787:$L$3063,5,0)/1000000 -> 0 | M59: =VLOOKUP("102020NAFTRAC",'[8]Pegar datos'!$C$2787:$L$3063,6,0) -> 0 | O59: 2020-10-01 | P59: =VLOOKUP("102020FEMSA",'[8]Pegar datos'!$C$2787:$L$3063,3,0) -> 0 | Q59: =VLOOKUP("102020FEMSA",'[8]Pegar datos'!$C$2787:$L$3063,4,0) -> 0 | R59: =VLOOKUP("102020FEMSA",'[8]Pegar datos'!$C$2787:$L$3063,5,0)/1000000 -> 0 | S59: =VLOOKUP("102020FEMSA",'[8]Pegar datos'!$C$2787:$L$3063,6,0) -> 0
A60: 2020-11-01 | B60: =VLOOKUP("112020CEMEX",'[9]Pegar datos'!$C$2790:$L$3066,3,0) -> 0 | C60: =VLOOKUP("112020CEMEX",'[9]Pegar datos'!$C$2790:$L$3066,4,0) -> 0 | D60: =VLOOKUP("112020CEMEX",'[9]Pegar datos'!$C$2790:$L$3066,5,0)/1000000 -> 0 | E60: =VLOOKUP("112020CEMEX",'[9]Pegar datos'!$C$2790:$L$3066,6,0) -> 26000 | F60: =VLOOKUP("112020WALMART",'[9]Pegar datos'!$C$2790:$L$3066,3,0) -> 0 | G60: =VLOOKUP("112020WALMART",'[9]Pegar datos'!$C$2790:$L$3066,4,0) -> 0 | H60: =VLOOKUP("112020WALMART",'[9]Pegar datos'!$C$2790:$L$3066,5,0)/1000000 -> 0 | I60: =VLOOKUP("112020WALMART",'[9]Pegar datos'!$C$2790:$L$3066,6,0) -> 7000 | J60: =VLOOKUP("112020NAFTRAC",'[9]Pegar datos'!$C$2790:$L$3066,3,0) -> 0 | K60: =VLOOKUP("112020NAFTRAC",'[9]Pegar datos'!$C$2790:$L$3066,4,0) -> 0 | L60: =VLOOKUP("112020NAFTRAC",'[9]Pegar datos'!$C$2790:$L$3066,5,0)/1000000 -> 0 | M60: =VLOOKUP("112020NAFTRAC",'[9]Pegar datos'!$C$2790:$L$3066,6,0) -> 0 | O60: 2020-11-01 | P60: =VLOOKUP("112020FEMSA",'[9]Pegar datos'!$C$2790:$L$3066,3,0) -> 4 | Q60: =VLOOKUP("112020FEMSA",'[9]Pegar datos'!$C$2790:$L$3066,4,0) -> 420 | R60: =VLOOKUP("112020FEMSA",'[9]Pegar datos'!$C$2790:$L$3066,5,0)/1000000 -> 5.88 | S60: =VLOOKUP("112020FEMSA",'[9]Pegar datos'!$C$2790:$L$3066,6,0) -> 420
A61: 2020-12-01 | B61: =VLOOKUP("122020CEMEX",'[10]Pegar datos'!$C$2793:$L$3069,3,0) -> 0 | C61: =VLOOKUP("122020CEMEX",'[10]Pegar datos'!$C$2793:$L$3069,4,0) -> 0 | D61: =VLOOKUP("122020CEMEX",'[10]Pegar datos'!$C$2793:$L$3069,5,0)/1000000 -> 0 | E61: =VLOOKUP("122020CEMEX",'[10]Pegar datos'!$C$2793:$L$3069,6,0) -> 0 | F61: =VLOOKUP("122020WALMART",'[10]Pegar datos'!$C$2793:$L$3069,3,0) -> 1 | G61: =VLOOKUP("122020WALMART",'[10]Pegar datos'!$C$2793:$L$3069,4,0) -> 2000 | H61: =VLOOKUP("122020WALMART",'[10]Pegar datos'!$C$2793:$L$3069,5,0)/1000000 -> 10.4 | I61: =VLOOKUP("122020WALMART",'[10]Pegar datos'!$C$2793:$L$3069,6,0) -> 2000 | J61: =VLOOKUP("122020NAFTRAC",'[10]Pegar datos'!$C$2793:$L$3069,3,0) -> 0 | K61: =VLOOKUP("122020NAFTRAC",'[10]Pegar datos'!$C$2793:$L$3069,4,0) -> 0 | L61: =VLOOKUP("122020NAFTRAC",'[10]Pegar datos'!$C$2793:$L$3069,5,0)/1000000 -> 0 | M61: =VLOOKUP("122020NAFTRAC",'[10]Pegar datos'!$C$2793:$L$3069,6,0) -> 0 | O61: 2020-12-01 | P61: =VLOOKUP("122020FEMSA",'[10]Pegar datos'!$C$2793:$L$3069,3,0) -> 0 | Q61: =VLOOKUP("122020FEMSA",'[10]Pegar datos'!$C$2793:$L$3069,4,0) -> 0 | R61: =VLOOKUP("122020FEMSA",'[10]Pegar datos'!$C$2793:$L$3069,5,0)/1000000 -> 0 | S61: =VLOOKUP("122020FEMSA",'[10]Pegar datos'!$C$2793:$L$3069,6,0) -> 420
A62: (1) In Millions

Sheet AuC
A1: MEXICAN STOCK EXCHANGE
A2: DECEMBER OPERATIONAL HIGHLIGHTS
A4: ASSETS UNDER CUSTODY
A6: Local | B6: 2019-01-01 | C6: 2019-02-01 | D6: 2019-03-01 | E6: 2019-04-01 | F6: 2019-05-01 | G6: 2019-06-01 | H6: 2019-07-01 | I6: 2019-08-01 | J6: 2019-09-01 | K6: 2019-10-01 | L6: 2019-11-01 | M6: 2019-12-01
A8: Equity (1) | B8: 12855062.08 | C8: 12768087.79 | D8: 12756663.57 | E8: 13089849.38 | F8: 12921441.29 | G8: 13044123.01 | H8: 12932354.47 | I8: 12748165.59 | J8: 13205430.94 | K8: 13327390.59 | L8: 13331266.33 | M8: 13449594.53
A9: Debt (1) | B9: 11030570.34 | C9: 11054223.34 | D9: 11094429 | E9: 11175813.18 | F9: 11270224.66 | G9: 11334355.11 | H9: 11354273.44 | I9: 11421514.1 | J9: 11508654.72 | K9: 11685764.08 | L9: 11725899.12 | M9: 11779792.25
A12: Local | B12: 2020-01-01 | C12: 2020-02-01 | D12: 2020-03-01 | E12: 2020-04-01 | F12: 2020-05-01 | G12: 2020-06-01 | H12: 2020-07-01 | I12: 2020-08-01 | J12: 2020-09-01 | K12: 2020-10-01 | L12: 2020-11-01 | M12: 2020-12-01
A14: Equity (1) | B14: 13710823.95 | C14: 13704726.02 | D14: 12695482.83 | E14: 12285905.23 | F14: 12710570.02 | G14: 13024339.21 | H14: 13003186.36 | I14: 13571700.78 | J14: 13130583.94 | K14: 13341646.92 | L14: 13668548.03 | M14: 14228256.37
A15: Debt (1) | B15: 11742419.42 | C15: 11789212.86 | D15: 11845028.7 | E15: 11884988.33 | F15: 11973128.5 | G15: 12032560.63 | H15: 12092223.8 | I15: 12147127.29 | J15: 12236310.7 | K15: 12277383.96 | L15: 12390527.56 | M15: 12478843.22
A18: Global | B18: 2019-01-01 | C18: 2019-02-01 | D18: 2019-03-01 | E18: 2019-04-01 | F18: 2019-05-01 | G18: 2019-06-01 | H18: 2019-07-01 | I18: 2019-08-01 | J18: 2019-09-01 | K18: 2019-10-01 | L18: 2019-11-01 | M18: 2019-12-01
A20: Equity (1) | B20: 812548.5028 | C20: 816163.8755 | D20: 820952.6179 | E20: 844497.8745 | F20: 836829.5826 | G20: 835546.2964 | H20: 848872.4853 | I20: 803234.7395 | J20: 831202.4161 | K20: 828374.7057 | L20: 873377.944 | M20: 879770.1747
A21: Debt (1) | B21: 232203.1669 | C21: 231226.6453 | D21: 229283.6031 | E21: 228537.714 | F21: 230739.618 | G21: 225194.1766 | H21: 216939.167 | I21: 224581.2579 | J21: 218595.0161 | K21: 215773.2443 | L21: 204787.5293 | M21: 199955.3662
A24: Global | B24: 2020-01-01 | C24: 2020-02-01 | D24: 2020-03-01 | E24: 2020-04-01 | F24: 2020-05-01 | G24: 2020-06-01 | H24: 2020-07-01 | I24: 2020-08-01 | J24: 2020-09-01 | K24: 2020-10-01 | L24: 2020-11-01 | M24: 2020-12-01
A26: Equity (1) | B26: 919374.6083 | C26: 932599.2728 | D26: 940441.1311 | E26: 996492.9559 | F26: 1002592.669 | G26: 1071953.719 | H26: 1095425.955 | I26: 1127804.737 | J26: 1130373.908 | K26: 1147454.324 | L26: 1162531.878 | M26: 1203341.84
A27: Debt (1) | B27: 192163.9635 | C27: 186546.3691 | D27: 205313.14 | E27: 210094.4713 | F27: 207975.7377 | G27: 200271.0194 | H27: 195003.7141 | I27: 197229.1327 | J27: 201010.236 | K27: 204584.3855 | L27: 197526.0794 | M27: 195141.7488
A29: (1) In Millions
